Workbook

Sheet Hlavička
A1: HLAVIČKA | K1: =COUNTA(SeznamDokladů!B13:B10001)-1 -> 14
A2: Kontaktní e-mail na příjemce: | B2: HELP_OPVK@msmt.cz
A3: Registrační číslo projektu | B3: CZ.1.07/3.2.xx/yy.1111
A4: Název projektu | B4: Tvorba a ověření komplexního vzdělávacího programu
A5: Název příjemce podpory | B5: Test
A6: Pořadové číslo Monitorovací zprávy | B6: 02/2012
A7: Monitorovací období | B7: OD | D7: DO
B8: 2012-06-30 | D8: 2012-12-31 | F8: Poslední finalizace dokladů proběhla:
A9: Minimální hodnota účetních dokladů, které příjemce musí dokládat v MZ | B9: 0 | F9: 2012-10-11T09:51:47
A11: Verze příručky pro příjemce platná pro uplatňované výdaje v tomto monitorovaném období | B11: Verze 6
A12: % nepřímých nákladů (z právního aktu) | B12: 18
A13: Vyberte typ rozpočtu | B13: Rozpočet projektu (OPVK) - verze9
C14: FALSE | D14: TRUE | E14: TRUE
A15: Název příjemce / partnerů | B15: Zkratka názvu příjemce / partnera | C15: Podíl na dotaci (Ano/Ne) | D15: Číslo projektového účtu | E15: IČO | I15: Podíl na dotaci (Ano/Ne) | J15: Zkratka názvu příjemce / partnera
A16: =B5 -> Test | B16: TP | C16: Ano | I16: Ano | J16: TP
A17: Test příjemce 1 | B17: TP1 | C17: Ano | J17: TP1
A18: Test příjemce 2 | B18: TP2 | C18: Ne | J18: TP3
A19: TP3 | B19: TP3 | C19: Ano
A105: Nastavení limitů jednotlivých kapitol z výzvy
A106: Kapitola | B106: Limit v % | C106: Částky rozpočtu | D106: Částky po změnách | E106: Vyhodnocení | I106: Vyhodnocení
A107: Kapitola 1. - navýšení maximálně o: | B107: 0.15 | C107: =Rozpočet!D14 -> 1979637.2 | D107: =Rozpočet!G14 -> 1972677.2 | E107: =IF(((D107/C107-1))>B107,"Limit překročen !!","OK") -> OK | I107: OK | J107: Změnilo se vyhodnocení limitu pro maximální navýšení kapitoly 1!
A109: Kapitola | B109: Limit v % | C109: Částky rozpočtu | D109: Naplnění limitu | E109: Vyhodnocení | I109: Vyhodnocení
A110: Kapitola 3. - tvoří maximálně z celku: | B110: 0.25 | C110: =VLOOKUP("3 ZAŘÍZENÍ",Rozpočet!$A$14:$G$886,7,0) -> 113200 | D110: =C110/$C$115 -> 0.03595744435 | E110: =IF(D110>B110,"Limit je překročen !!","OK") -> OK | I110: OK | J110: Změnilo se vyhodnocení limitů pro povolený podíl kapitoly ZAŘÍZENÍ na celkových výdajích!
A111: =IF(VALUE(C129)=4,"","Kapitola 4. - tvoří maximálně z celku:") -> Kapitola 4. - tvoří maximálně z celku: | C111: =IF(VALUE(C129)=4,"",VLOOKUP("4 MÍSTNÍ KANCELÁŘ",Rozpočet!$A$14:$G$886,7,0)) -> 6960 | D111: =IF(VALUE(C129)=4,"",C111/$C$115) -> 0.002210811066 | E111: =IF(VALUE(C129)=4,"",IF(Pct_costs=0,"OK",IF(D111>B111,"Limit je překročen !!","OK"))) -> Limit je překročen !! | I111: OK | J111: Změnilo se vyhodnocení limitů pro povolený podíl kapitoly MÍSTNÍ KANCELÁŘ na celkových výdajích!
A112: ="Kapitola "&TEXT(C129,0)&". - tvoří maximálně z celku:" -> Kapitola 5. - tvoří maximálně z celku: | B112: 0.49 | C112: =VLOOKUP(TEXT(C129,0)&" NÁKUP SLUŽEB",Rozpočet!$A$14:$G$886,7,0) -> 540100 | D112: =C112/$C$115 -> 0.1715602093 | E112: =IF(D112>B112,"Limit je překročen !!","OK") -> OK | I112: OK | J112: Změnilo se vyhodnocení limitů pro povolený podíl kapitoly NÁKUP SLUŽEB na celkových výdajích!
A113: PŘÍMÁ PODPORA - tvoří maximálně z celku: | B113: 0.2 | C113: =VLOOKUP($C$130,Rozpočet!$A$14:$G$886,7,0) -> 0 | D113: =C113/$C$115 -> 0 | E113: =IF(D113>B113,"Limit je překročen !!","OK") -> OK | I113: OK | J113: Změnilo se vyhodnocení limitů pro povolený podíl kapitoly PŘÍMÁ PODPORA na celkových výdajích!
A114: KŘÍŽOVÉ FINANCOVÁNÍ - tvoří maximálně z celku: | B114: 0.09 | C114: =VLOOKUP($C$131,Rozpočet!$A$14:$I$886,7,FALSE) -> 0 | D114: =C114/$C$115 -> 0 | E114: =IF(D114>B114,"Limit je překročen !!","OK") -> OK | I114: OK | J114: Změnilo se vyhodnocení limitů pro povolený podíl kapitoly KŘÍŽOVÉ FINANCOVÁNÍ na celkových výdajích!
A115: Celkové výdaje projektu | C115: =VLOOKUP($C$128&"CELKOVÉ VÝDAJE PROJEKTU",Rozpočet!$A$14:$G$886,7,0) -> 3148165.896
A117: Schválená výše zálohy z právního aktu v Kč: | B117: 228000
A120: Parametry výzvy: | B120: % nepřímých nákladů (z právního aktu) | C120: =B12/100 -> 0.18
A121: Verze souboru: | C121: 1.0
A122: Kapitola Mzdové příspěvky je: | C122: =VLOOKUP($B$13,Rozpocty!$J$2:$L$11,3,0) -> 7.1*
A123: Celkové způsobilé výdaje investiční | C123: =VLOOKUP($B$13,Rozpocty!$J$2:$Q$11,4,0) -> 11.1
A124: Celkové způsobilé výdaje neinvestiční | C124: =VLOOKUP($B$13,Rozpocty!$J$2:$Q$11,5,0) -> 11.2
A125: Křížové financování - Investiční část | C125: =VLOOKUP($B$13,Rozpocty!$J$2:$Q$11,6,0) -> 3.8.1
A126: Křížové financování - Neinvestiční část | C126: =VLOOKUP($B$13,Rozpocty!$J$2:$Q$11,7,0) -> 3.8.2
A127: Stavební úpravy v rámci křížového financování | C127: =VLOOKUP($B$13,Rozpocty!$J$2:$Q$11,8,0) -> 6.2
A128: Kapitola Celkové výdaje projektu | C128: =VLOOKUP($B$13,Rozpocty!$J$2:$S$11,10,0) -> 13
A129: Kapitola NÁKUP SLUŽEB | C129: =VLOOKUP(B13,Rozpocty!$J$2:$R$11,9,FALSE) -> 5
A130: Kapitola PŘÍMÁ PODPORA | C130: =VLOOKUP($B$13,Rozpocty!$J$2:$T$11,11,0) -> 7 PŘÍMA PODPORA
A131: Kapitola KŔÍŽOVÉ FINANCOVÁNÍ | C131: =VLOOKUP($B$13,Rozpocty!$J$2:$U$11,12,0) -> 15 KŘÍŽOVÉ FINANCOVÁNÍ | D131: =VLOOKUP(C131,Rozpočet!$A$14:$G$886,7,0) -> 0
A132: Kapitola 1 | C132: =VLOOKUP($B$13,Rozpocty!$J$2:$AJ$11,13,0) -> 1 OSOBNÍ NÁKLADY
A133: Kapitola 2 | C133: =VLOOKUP($B$13,Rozpocty!$J$2:$AJ$11,14,0) -> 2 SLUŽEBNÍ CESTY ZAHRANIČNÍ
A134: Kapitola 3 | C134: =VLOOKUP($B$13,Rozpocty!$J$2:$AJ$11,15,0) -> 3 ZAŘÍZENÍ
A135: Kapitola 4 | C135: =VLOOKUP($B$13,Rozpocty!$J$2:$AJ$11,16,0) -> 4 MÍSTNÍ KANCELÁŘ
A136: Kapitola 5 | C136: =VLOOKUP($B$13,Rozpocty!$J$2:$AJ$11,17,0) -> 5 NÁKUP SLUŽEB
A137: Kapitola 6 | C137: =VLOOKUP($B$13,Rozpocty!$J$2:$AJ$11,18,0) -> 6 STAVEBNÍ ÚPRAVY
A138: Kapitola 7 | C138: =VLOOKUP($B$13,Rozpocty!$J$2:$AJ$11,19,0) -> 7 PŘÍMA PODPORA
A139: Kapitola 8 | C139: =VLOOKUP($B$13,Rozpocty!$J$2:$AJ$11,20,0) -> 8 NÁKLADY VYPLÝVAJÍCÍ PŘÍMO ZE SMLOUVY/ROZHODNUTÍ
A140: Kapitola 9 | C140: =VLOOKUP($B$13,Rozpocty!$J$2:$AJ$11,21,0) -> 9 PŘÍMÉ ZPŮSOBILÉ VÝDAJE CELKEM
A141: Kapitola 10 | C141: =VLOOKUP($B$13,Rozpocty!$J$2:$AJ$11,22,0) -> 10 NEPŘÍMÉ NÁKLADY
A142: Kapitola 11 | C142: =VLOOKUP($B$13,Rozpocty!$J$2:$AJ$11,23,0) -> 11 CELKOVÉ ZPŮSOBILÉ VÝDAJE
A143: Kapitola 12 | C143: =VLOOKUP($B$13,Rozpocty!$J$2:$AJ$11,24,0) -> 12 CELKOVÉ NEZPŮSOBILÉ VÝDAJE
A144: Kapitola 13 | C144: =VLOOKUP($B$13,Rozpocty!$J$2:$AJ$11,25,0) -> 13 CELKOVÉ VÝDAJE PROJEKTU
A145: Kapitola 14 | C145: =VLOOKUP($B$13,Rozpocty!$J$2:$AJ$11,26,0) -> 14 PŘÍJMY PROJEKTU CELKEM
A146: Kapitola 15 | C146: =VLOOKUP($B$13,Rozpocty!$J$2:$AJ$11,27,0) -> 15 KŘÍŽOVÉ FINANCOVÁNÍ
A147: Kapitola 16 | C147: =VLOOKUP($B$13,Rozpocty!$J$2:$AK$11,28,0) -> 0
A148: PŘÍMÉ ZPŮSOBILÉ VÝDAJE CELKEM | C148: =VLOOKUP($B$13,Rozpocty!$J$2:$AL$11,29,0) -> 9 PŘÍMÉ ZPŮSOBILÉ VÝDAJE CELKEM | D148: =VLOOKUP(C148,Rozpočet!$A$14:$G$886,7,0) -> 2667937.2
A160: Limity kapitol dle příručky pro příjemce
A161: Kapitola | B161: Limit v % | C161: Změna v rozpočtu | D161: Naplnění limitu | E161: Vyhodnocení | I161: Vyhodnocení
A162: =IF(C132=0," ",A132 & " - " & C132) -> Kapitola 1 - 1 OSOBNÍ NÁKLADY | B162: =IF(A162=" "," ",15%) -> 0.15 | C162: =IF(A162=" "," ",VLOOKUP(C132,Rozpočet!$A$14:$I$888,9,FALSE)) -> -0.003515795723 | D162: =IF(A162=" "," ",(C162)) -> -0.003515795723 | E162: =IF(A162=" "," ",IF(-B162>D162,"Limit je překročen !!","OK")) -> OK | F162: snížení kapitoly rozpočtu | I162: OK | J162: Změnilo se vyhodnocení 15% limitu pro kapitolu 1!
A163: Kapitola 2 - 2 SLUŽEBNÍ CESTY ZAHRANIČNÍ | B163: 0.15 | C163: =IF(A163=" "," ",VLOOKUP(C133,Rozpočet!$A$14:$I$888,9,FALSE)) -> 0 | D163: =IF(A163=" "," ",(C163)) -> 0 | E163: =IF(A163=" "," ",IF(-B163>D163,"Limit je překročen !!","OK")) -> OK | F163: snížení kapitoly rozpočtu | I163: OK | J163: Změnilo se vyhodnocení 15% limitu pro kapitolu 2!
A164: Kapitola 3 - 3 ZAŘÍZENÍ | B164: 0.15 | C164: =IF(A164=" "," ",VLOOKUP(C134,Rozpočet!$A$14:$I$888,9,FALSE)) -> 0 | D164: 0 | E164: OK | F164: snížení kapitoly rozpočtu | I164: OK | J164: Změnilo se vyhodnocení 15% limitu pro kapitolu 3!
A165: Kapitola 4 - 4 MÍSTNÍ KANCELÁŘ | B165: 0.15 | C165: =IF(A165=" "," ",VLOOKUP(C135,Rozpočet!$A$14:$I$888,9,FALSE)) -> 1 | D165: 1 | E165: OK | F165: snížení kapitoly rozpočtu | I165: OK | J165: Změnilo se vyhodnocení 15% limitu pro kapitolu 4!
A166: Kapitola 5 - 5 NÁKUP SLUŽEB | B166: 0.15 | C166: =IF(A166=" "," ",VLOOKUP(C136,Rozpočet!$A$14:$I$888,9,FALSE)) -> 0 | D166: 0 | E166: OK | F166: snížení kapitoly rozpočtu | I166: OK | J166: Změnilo se vyhodnocení 15% limitu pro kapitolu 5!
A167: Kapitola 6 - 6 STAVEBNÍ ÚPRAVY | B167: 0.15 | C167: =IF(A167=" "," ",VLOOKUP(C137,Rozpočet!$A$14:$I$888,9,FALSE)) -> 0 | D167: 0 | E167: OK | F167: snížení kapitoly rozpočtu | I167: OK | J167: Změnilo se vyhodnocení 15% limitu pro kapitolu 6!
A168: Kapitola 7 - 7 PŘÍMA PODPORA | B168: 0.15 | C168: =IF(A168=" "," ",VLOOKUP(C138,Rozpočet!$A$14:$I$888,9,FALSE)) -> 0 | D168: 0 | E168: OK | F168: snížení kapitoly rozpočtu | I168: OK | J168: Změnilo se vyhodnocení 15% limitu pro kapitolu 7!
A169: Kapitola 8 - 8 NÁKLADY VYPLÝVAJÍCÍ PŘÍMO ZE SMLOUVY/ROZHODNUTÍ | B169: 0.15 | C169: =IF(A169=" "," ",VLOOKUP(C139,Rozpočet!$A$14:$I$888,9,FALSE)) -> 0 | D169: 0 | E169: OK | F169: snížení kapitoly rozpočtu | I169: OK | J169: Změnilo se vyhodnocení 15% limitu pro kapitolu 8!
A170: Kapitola 9 - 9 PŘÍMÉ ZPŮSOBILÉ VÝDAJE CELKEM | B170: 0.15 | C170: =IF(A170=" "," ",VLOOKUP(C140,Rozpočet!$A$14:$I$888,9,FALSE)) -> 0 | D170: 0 | E170: OK | I170: OK
A171: Kapitola 10 - 10 NEPŘÍMÉ NÁKLADY | B171: 0.15 | C171: =IF(A171=" "," ",VLOOKUP(C141,Rozpočet!$A$14:$I$888,9,FALSE)) -> 0 | D171: 0 | E171: OK | I171: OK
A172: Kapitola 11 - 11 CELKOVÉ ZPŮSOBILÉ VÝDAJE | B172: 0.15 | C172: =IF(A172=" "," ",VLOOKUP(C142,Rozpočet!$A$14:$I$888,9,FALSE)) -> 0 | D172: 0 | E172: OK | I172: OK
A173: Kapitola 12 - 12 CELKOVÉ NEZPŮSOBILÉ VÝDAJE | B173: 0.15 | C173: =IF(A173=" "," ",VLOOKUP(C143,Rozpočet!$A$14:$I$888,9,FALSE)) -> 0 | D173: 0 | E173: OK | I173: OK
A174: Kapitola 13 - 13 CELKOVÉ VÝDAJE PROJEKTU | B174: =IF(A174=" "," ",IF(RIGHT(A174,11)= "FINANCOVÁNÍ",0%,15%)) -> 0.15 | C174: =IF(A174=" "," ",VLOOKUP(C144,Rozpočet!$A$14:$I$888,9,FALSE)) -> 0 | D174: 0 | E174: =IF(A174=" "," ",IF(RIGHT(A174,11)= "FINANCOVÁNÍ",IF(D174>0,"Limit je překročen !!","OK"),IF(D174>B174,"Limit je překročen !!","OK"))) -> OK | F174: =IF(A174=" "," ",IF(RIGHT(A174,11)= "FINANCOVÁNÍ","zvýšení kapitoly rozpočtu","snížení kapitoly rozpočtu")) -> snížení kapitoly rozpočtu | I174: OK
A175: Kapitola 14 - 14 PŘÍJMY PROJEKTU CELKEM | B175: =IF(A175=" "," ",IF(RIGHT(A175,11)= "FINANCOVÁNÍ",0%,15%)) -> 0.15 | C175: =IF(A175=" "," ",VLOOKUP(C145,Rozpočet!$A$14:$I$888,9,FALSE)) ->  | E175: =IF(A175=" "," ",IF(RIGHT(A175,11)= "FINANCOVÁNÍ",IF(D175>0,"Limit je překročen !!","OK"),IF(D175>B175,"Limit je překročen !!","OK"))) ->  | F175: =IF(A175=" "," ",IF(RIGHT(A175,11)= "FINANCOVÁNÍ","zvýšení kapitoly rozpočtu","snížení kapitoly rozpočtu")) -> snížení kapitoly rozpočtu | J175: =IF(RIGHT(A175,11)="FINANCOVÁNÍ","Došlo ke změně limitu křížového financování","Došlo ke změně vyhodnocení 15% limitu - "& A175) -> Došlo ke změně vyhodnocení 15% limitu - Kapitola 14 - 14 PŘÍJMY PROJEKTU CELKEM
A176: Kapitola 15 - 15 KŘÍŽOVÉ FINANCOVÁNÍ | B176: =IF(A176=" "," ",IF(RIGHT(A176,11)= "FINANCOVÁNÍ",0%,15%)) -> 0 | C176: =IF(A176=" "," ",VLOOKUP(C146,Rozpočet!$A$14:$I$888,9,FALSE)) -> 0 | D176: 0 | E176: =IF(A176=" "," ",IF(RIGHT(A176,11)= "FINANCOVÁNÍ",IF(D176>0,"Limit je překročen !!","OK"),IF(D176>B176,"Limit je překročen !!","OK"))) -> OK | F176: =IF(A176=" "," ",IF(RIGHT(A176,11)= "FINANCOVÁNÍ","zvýšení kapitoly rozpočtu","snížení kapitoly rozpočtu")) -> zvýšení kapitoly rozpočtu | I176: OK | J176: =IF(RIGHT(A176,11)="FINANCOVÁNÍ","Došlo ke změně limitu křížového financování","Došlo ke změně vyhodnocení 15% limitu - "& A176) -> Došlo ke změně limitu křížového financování
A177: =IF(C147=0," ",A147 & " - " & C147) ->  | B177: =IF(A177=" "," ",IF(RIGHT(A177,11)= "FINANCOVÁNÍ",0%,15%)) ->  | C177: =IF(A177=" "," ",VLOOKUP(C147,Rozpočet!$A$14:$I$888,9,FALSE)) ->  | D177: =IF(A177=" "," ",ABS(C177)) ->  | E177: =IF(A177=" "," ",IF(RIGHT(A177,11)= "FINANCOVÁNÍ",IF(D177>0,"Limit je překročen !!","OK"),IF(D177>B177,"Limit je překročen !!","OK"))) ->  | F177: =IF(A177=" "," ",IF(RIGHT(A177,11)= "FINANCOVÁNÍ","zvýšení kapitoly rozpočtu","snížení kapitoly rozpočtu")) ->  | J177: =IF(RIGHT(A177,11)="FINANCOVÁNÍ","Došlo ke změně limitu křížového financování","Došlo ke změně vyhodnocení 15% limitu - "& A177) -> Došlo ke změně vyhodnocení 15% limitu -
A179: Limity mzdové regulace | B179: Limit v % | C179: Částky rozpočtu | D179: Částky po změnách | E179: Vyhodnocení | I179: Vyhodnocení
A180: Položky 1.1.1.1 Platy + 1.1.2.1. Platy | B180: 0 | C180: =VLOOKUP("1.1.1.1 Platy",Rozpočet!$A$14:$H$886,4,FALSE)+VLOOKUP("1.1.2.1 Platy",Rozpočet!$A$14:$H$886,4,FALSE) -> 344960 | D180: =VLOOKUP("1.1.1.1 Platy",Rozpočet!$A$14:$H$886,7,FALSE)+VLOOKUP("1.1.2.1 Platy",Rozpočet!$A$14:$H$886,7,FALSE) -> 338000 | E180: =IF(E14,IF(C180=D180,"OK","Limit překročen !!"),"OK") -> Limit překročen !! | I180: OK | J180: Změnilo se vyhodnocení limitu mzdové regulace pro kapitoly 1.1.1.1 a 1.1.2.1.
A181: Položky 1.1.1.2. až 1.1.1.4 a 1.1.2.2. až 1.1.2.4. | B181: 0 | C181: =VLOOKUP("1.1.1.2 Odměny z dohod (DPČ)",Rozpočet!$A$14:$H$886,4,1)+VLOOKUP("1.1.1.3 Odměny z dohod (DPP)",Rozpočet!$A$14:$H$886,4,1)+VLOOKUP("1.1.1.4 Autorské honoráře",Rozpočet!$A$14:$H$886,4,1)+VLOOKUP("1.1.2.2 Odměny z dohod (DPČ)",Rozpočet!$A$14:$H$886,4,1)+VLOOKUP("1.1.2.3 Odměny z dohod (DPP)",Rozpočet!$A$14:$H$886,4,1)*VLOOKUP("1.1.2.4 Autorské honoráře",Rozpočet!$A$14:$H$886,4,1) -> 1390620 | D181: =VLOOKUP("1.1.1.2 Odměny z dohod (DPČ)",Rozpočet!$A$14:$H$886,7,1)+VLOOKUP("1.1.1.3 Odměny z dohod (DPP)",Rozpočet!$A$14:$H$886,7,1)+VLOOKUP("1.1.1.4 Autorské honoráře",Rozpočet!$A$14:$H$886,7,1)+VLOOKUP("1.1.2.2 Odměny z dohod (DPČ)",Rozpočet!$A$14:$H$886,7,1)+VLOOKUP("1.1.2.3 Odměny z dohod (DPP)",Rozpočet!$A$14:$H$886,7,1)*VLOOKUP("1.1.2.4 Autorské honoráře",Rozpočet!$A$14:$H$886,7,1) -> 1390620 | E181: =IF(E14,IF(C181=D181,"OK","Limit překročen !!"),"OK") -> OK | I181: OK | J181: Změnilo se vyhodnocení limitu mzdové regulace pro kapitoly 1.1.1.2. až 1.1.1.4 a 1.1.2.2. až 1.1.2.4.
A182: Položka 1.4. FKSP | B182: 0 | C182: =VLOOKUP("1.4 FKSP",Rozpočet!$A$14:$H$886,4,1) -> 0 | D182: =VLOOKUP("1.4 FKSP",Rozpočet!$A$14:$H$886,7,1) -> 0 | E182: =IF(E14,IF(C182=D182,"OK","Limit překročen !!"),"OK") -> OK | I182: OK | J182: Změnilo se vyhodnocení limitu mzdové regulace pro kapitoly 1.4 FKSP

Sheet Zaměstnanci
A2: SEZNAM ZAMĚSTNANCŮ
A3: Zaměstnanec | B3: Pozice | C3: Druh pracovního poměru | D3: Položka rozpočtu | E3: Číslo pracovní smlouvy | F3: Schválený úvazek | G3: Od | H3: Do | I3: Schválená hodinová/měsíční sazba
A5: Josef Mánes | B5: Pozice 1 | C5: PS | D5: 1.1.1.1.1 Lektor
A6: Franta Úprka | B6: Pozice 2 | C6: DPČ | D6: 1.1.1.2.1 Lektor
A7: Karel Novotný | B7: Pozice 3 | C7: DPP | D7: 1.1.1.3 Odměny z dohod (DPP)
A8: Monika Nová | B8: Pozice 4 | C8: AH | D8: 1.1.1.4 Autorské honoráře

Sheet SeznamDokladů
B1: =IF(ISBLANK(C1),"",IF(LEFT(E1,4)="Prov"," ",C1)) ->  | C1: =IF(ISBLANK(D1),"",IF(LEFT(F1,4)="Prov"," ",D1)) ->  | G1: =IF(ISBLANK(H1),"",IF(LEFT(J1,4)="Prov"," ",H1)) ->  | J1: =IF(D1="","",IF(D1>Hlavička!$B$9,"Ano","Ne")) -> 
B2: SEZNAM ÚČETNÍCH DOKLADŮ
B3: Registrační číslo projektu | F3: =Hlavička!B3 -> CZ.1.07/3.2.xx/yy.1111
B4: Název projektu | F4: =Hlavička!B4 -> Tvorba a ověření komplexního vzdělávacího programu
B5: Název příjemce podpory | F5: =Hlavička!B5 -> Test
B6: Pořadové číslo Monitorovací zprávy | F6: =Hlavička!B6 -> 02/2012
B7: Období | F7: =IF(OR(Hlavička!$B$8<>"",Hlavička!$C$8<>""),DAY(Hlavička!$B$8)&"."&MONTH(Hlavička!$B$8)&"."&YEAR(Hlavička!$B$8)&" - "&DAY(Hlavička!$D$8)&"."&MONTH(Hlavička!$D$8)&"."&YEAR(Hlavička!$D$8),"Zadejte hodnotu na listu Hlavička") -> 30.6.2012 - 31.12.2012
B8: Počet stran seznamu: | F8: =CEILING(COUNTA(B13:B1000)/66,1) -> 1
B10: Součty na soupisce: | C10: =SUM(C13:C10000) -> 1009590 | D10: =SUM(D13:D10000) -> 1009590
A11: 1 | B11: =IF(ISBLANK(C11),"",IF(LEFT(E11,4)="Prov"," ",C11)) ->  | C11: =IF(ISBLANK(D11),"",IF(LEFT(F11,4)="Prov"," ",D11)) ->  | J11: =IF(ISBLANK(K11),"",IF(LEFT(M11,4)="Prov"," ",K11)) -> 
A12: Filtr | B12: Číslo dokladu v účetním systému | C12: Částka uvedená na primárním účetním dokladu | D12: Částka alokovaná na projekt | E12: Subjekt | F12: Typ úhrady | G12: Číslo dokladu o provedené refundaci | H12: Datum úhrady z provozních prostředků | I12: Datum úhrady z projektových prostředků | J12: Datum vzniku dokladu | K12: Text dokladu | L12: Dodavatel | M12: Má subjekt projektový účet? | N12: Datum uskutečnění výdaje | O12: Kontrola datumu dokladu k monitorovací zprávě | P12: Číslo dokladu projektu | S12: Seznam dokladů
A13: =IF(OR(B13<>"",C13<>"",E13<>"",F13<>"",H13<>"",I13<>""),"Vyplněno",IF(B13="Prázdné","","")) -> Vyplněno | B13: MZ012012 | C13: =IF(ISBLANK(D13),"",IF(LEFT(F13,4)="Prov"," ",D13)) -> 152000 | D13: 152000 | E13: TP | F13: Projektový účet | I13: 2012-02-15 | J13: 2012-01-30 | K13: Mzdy za leden | M13: =IF(ISERROR(VLOOKUP(E13,Hlavička!$B$16:$D$100,3,FALSE)),"",IF(VLOOKUP(E13,Hlavička!$B$16:$D$100,3,FALSE)<>"","Ano","Ne")) -> Ne | N13: =IF(AND(H13="",I13=""),"",IF(I13<>"",I13,IF(AND(J13="Ne",H13<>""),H13,"Chybí datum úhrady!"))) -> 2012-02-15 | O13: =IF(I13="","",IF(I13>Hlavička!$D$8,"Doklad nepatří do této monitorovací zprávy","OK")) -> OK | P13: =IF(B13="","",IF(ISERROR(VLOOKUP(B13,'Doklady k doložení'!$M$7:$O$32,3,FALSE)),"",VLOOKUP(B13,'Doklady k doložení'!$M$7:$O$32,3,FALSE))) -> 04/02/2012 | S13: =B13&" - "&K13 -> MZ012012 - Mzdy za leden
A14: =IF(OR(B14<>"",C14<>"",E14<>"",F14<>"",H14<>"",I14<>""),"Vyplněno",IF(B14="Prázdné","","")) -> Vyplněno | B14: MZ022012 | C14: 126000 | D14: 126000 | E14: TP | F14: Projektový účet | I14: 2012-03-15 | J14: 2012-02-28 | K14: Mzdy únor | M14: =IF(ISERROR(VLOOKUP(E14,Hlavička!$B$16:$D$100,3,FALSE)),"",IF(VLOOKUP(E14,Hlavička!$B$16:$D$100,3,FALSE)<>"","Ano","Ne")) -> Ne | N14: =IF(AND(H14="",I14=""),"",IF(I14<>"",I14,IF(AND(J14="Ne",H14<>""),H14,"Chybí datum úhrady!"))) -> 2012-03-15 | O14: =IF(I14="","",IF(I14>Hlavička!$D$8,"Doklad nepatří do této monitorovací zprávy","OK")) -> OK | P14: =IF(B14="","",IF(ISERROR(VLOOKUP(B14,'Doklady k doložení'!$M$7:$O$32,3,FALSE)),"",VLOOKUP(B14,'Doklady k doložení'!$M$7:$O$32,3,FALSE))) ->  | S14: =B14&" - "&K14 -> MZ022012 - Mzdy únor
A15: Vyplněno | B15: CS122012 | C15: 2300 | D15: 2300 | E15: P1 | F15: Projektový účet | I15: 2012-03-04 | K15: Cesťák do Belgie | M15: =IF(ISERROR(VLOOKUP(E15,Hlavička!$B$16:$D$100,3,FALSE)),"",IF(VLOOKUP(E15,Hlavička!$B$16:$D$100,3,FALSE)<>"","Ano","Ne")) ->  | N15: 2012-03-04 | O15: =IF(I15="","",IF(I15>Hlavička!$D$8,"Doklad nepatří do této monitorovací zprávy","OK")) -> OK | P15: =IF(B15="","",IF(ISERROR(VLOOKUP(B15,'Doklady k doložení'!$M$7:$O$32,3,FALSE)),"",VLOOKUP(B15,'Doklady k doložení'!$M$7:$O$32,3,FALSE))) -> 01/02/2012 | S15: CS122012 - Cesťák do Belgie
A16: Vyplněno | B16: O152012 | C16: 56000 | D16: 56000 | E16: TP | F16: Provozní účet/ projektový účet | H16: 2012-03-15 | I16: 2012-03-16 | K16: Software | M16: =IF(ISERROR(VLOOKUP(E16,Hlavička!$B$16:$D$100,3,FALSE)),"",IF(VLOOKUP(E16,Hlavička!$B$16:$D$100,3,FALSE)<>"","Ano","Ne")) -> Ne | N16: 2012-03-16 | O16: =IF(I16="","",IF(I16>Hlavička!$D$8,"Doklad nepatří do této monitorovací zprávy","OK")) -> OK | P16: =IF(B16="","",IF(ISERROR(VLOOKUP(B16,'Doklady k doložení'!$M$7:$O$32,3,FALSE)),"",VLOOKUP(B16,'Doklady k doložení'!$M$7:$O$32,3,FALSE))) -> 06/02/2012 | S16: O152012 - Software
A17: Vyplněno | B17: P162012 | C17: 230 | D17: 230 | E17: TP | F17: Projektový účet | I17: 2012-04-16 | K17: Kladné úroky na účtu | M17: =IF(ISERROR(VLOOKUP(E17,Hlavička!$B$16:$D$100,3,FALSE)),"",IF(VLOOKUP(E17,Hlavička!$B$16:$D$100,3,FALSE)<>"","Ano","Ne")) -> Ne | N17: 2012-04-16 | O17: =IF(I17="","",IF(I17>Hlavička!$D$8,"Doklad nepatří do této monitorovací zprávy","OK")) -> OK | P17: =IF(B17="","",IF(ISERROR(VLOOKUP(B17,'Doklady k doložení'!$M$7:$O$32,3,FALSE)),"",VLOOKUP(B17,'Doklady k doložení'!$M$7:$O$32,3,FALSE))) ->  | S17: P162012 - Kladné úroky na účtu
A18: Vyplněno | B18: MZ0120121 | C18: 152000 | D18: 152000 | E18: TP | F18: Projektový účet | I18: 2012-02-15 | J18: 40938 | K18: Mzdy za březen | M18: =IF(ISERROR(VLOOKUP(E18,Hlavička!$B$16:$D$100,3,FALSE)),"",IF(VLOOKUP(E18,Hlavička!$B$16:$D$100,3,FALSE)<>"","Ano","Ne")) -> Ne | N18: 2012-02-15 | O18: =IF(I18="","",IF(I18>Hlavička!$D$8,"Doklad nepatří do této monitorovací zprávy","OK")) -> OK | P18: =IF(B18="","",IF(ISERROR(VLOOKUP(B18,'Doklady k doložení'!$M$7:$O$32,3,FALSE)),"",VLOOKUP(B18,'Doklady k doložení'!$M$7:$O$32,3,FALSE))) ->  | S18: MZ0120121 - Mzdy za březen
A19: Vyplněno | B19: MZ0220121 | C19: 126000 | D19: 126000 | E19: TP | F19: Projektový účet | I19: 2012-03-15 | J19: 40967 | K19: Mzdy duben | M19: =IF(ISERROR(VLOOKUP(E19,Hlavička!$B$16:$D$100,3,FALSE)),"",IF(VLOOKUP(E19,Hlavička!$B$16:$D$100,3,FALSE)<>"","Ano","Ne")) -> Ne | N19: 2012-03-15 | O19: =IF(I19="","",IF(I19>Hlavička!$D$8,"Doklad nepatří do této monitorovací zprávy","OK")) -> OK | P19: =IF(B19="","",IF(ISERROR(VLOOKUP(B19,'Doklady k doložení'!$M$7:$O$32,3,FALSE)),"",VLOOKUP(B19,'Doklady k doložení'!$M$7:$O$32,3,FALSE))) ->  | S19: MZ0220121 - Mzdy duben
A20: Vyplněno | B20: CS1220121 | C20: 2300 | D20: 2300 | E20: P1 | F20: Projektový účet | I20: 2012-03-04 | K20: Cesťák do Ameriky | M20: =IF(ISERROR(VLOOKUP(E20,Hlavička!$B$16:$D$100,3,FALSE)),"",IF(VLOOKUP(E20,Hlavička!$B$16:$D$100,3,FALSE)<>"","Ano","Ne")) ->  | N20: 2012-03-04 | O20: =IF(I20="","",IF(I20>Hlavička!$D$8,"Doklad nepatří do této monitorovací zprávy","OK")) -> OK | P20: =IF(B20="","",IF(ISERROR(VLOOKUP(B20,'Doklady k doložení'!$M$7:$O$32,3,FALSE)),"",VLOOKUP(B20,'Doklady k doložení'!$M$7:$O$32,3,FALSE))) -> 02/02/2012 | S20: CS1220121 - Cesťák do Ameriky
A21: Vyplněno | B21: O1520121 | C21: 56000 | D21: 56000 | E21: TP | F21: Provozní účet/ projektový účet | H21: 2012-03-15 | I21: 2012-03-16 | K21: Kamera | M21: =IF(ISERROR(VLOOKUP(E21,Hlavička!$B$16:$D$100,3,FALSE)),"",IF(VLOOKUP(E21,Hlavička!$B$16:$D$100,3,FALSE)<>"","Ano","Ne")) -> Ne | N21: 2012-03-16 | O21: =IF(I21="","",IF(I21>Hlavička!$D$8,"Doklad nepatří do této monitorovací zprávy","OK")) -> OK | P21: =IF(B21="","",IF(ISERROR(VLOOKUP(B21,'Doklady k doložení'!$M$7:$O$32,3,FALSE)),"",VLOOKUP(B21,'Doklady k doložení'!$M$7:$O$32,3,FALSE))) -> 07/02/2012 | S21: O1520121 - Kamera
A22: Vyplněno | B22: P1620121 | C22: 230 | D22: 230 | E22: TP | F22: Projektový účet | I22: 2012-04-16 | K22: Kladné úroky na účtu | M22: =IF(ISERROR(VLOOKUP(E22,Hlavička!$B$16:$D$100,3,FALSE)),"",IF(VLOOKUP(E22,Hlavička!$B$16:$D$100,3,FALSE)<>"","Ano","Ne")) -> Ne | N22: 2012-04-16 | O22: =IF(I22="","",IF(I22>Hlavička!$D$8,"Doklad nepatří do této monitorovací zprávy","OK")) -> OK | P22: =IF(B22="","",IF(ISERROR(VLOOKUP(B22,'Doklady k doložení'!$M$7:$O$32,3,FALSE)),"",VLOOKUP(B22,'Doklady k doložení'!$M$7:$O$32,3,FALSE))) ->  | S22: P1620121 - Kladné úroky na účtu
A23: Vyplněno | B23: MZ0120122 | C23: 152000 | D23: 152000 | E23: TP | F23: Projektový účet | I23: 2012-02-15 | J23: 40938 | K23: Mzdy za květen | M23: =IF(ISERROR(VLOOKUP(E23,Hlavička!$B$16:$D$100,3,FALSE)),"",IF(VLOOKUP(E23,Hlavička!$B$16:$D$100,3,FALSE)<>"","Ano","Ne")) -> Ne | N23: 2012-02-15 | O23: =IF(I23="","",IF(I23>Hlavička!$D$8,"Doklad nepatří do této monitorovací zprávy","OK")) -> OK | P23: =IF(B23="","",IF(ISERROR(VLOOKUP(B23,'Doklady k doložení'!$M$7:$O$32,3,FALSE)),"",VLOOKUP(B23,'Doklady k doložení'!$M$7:$O$32,3,FALSE))) ->  | S23: MZ0120122 - Mzdy za květen
A24: Vyplněno | B24: MZ0220122 | C24: 126000 | D24: 126000 | E24: TP | F24: Projektový účet | I24: 2012-03-15 | J24: 40967 | K24: Mzdy červen | M24: =IF(ISERROR(VLOOKUP(E24,Hlavička!$B$16:$D$100,3,FALSE)),"",IF(VLOOKUP(E24,Hlavička!$B$16:$D$100,3,FALSE)<>"","Ano","Ne")) -> Ne | N24: 2012-03-15 | O24: =IF(I24="","",IF(I24>Hlavička!$D$8,"Doklad nepatří do této monitorovací zprávy","OK")) -> OK | P24: =IF(B24="","",IF(ISERROR(VLOOKUP(B24,'Doklady k doložení'!$M$7:$O$32,3,FALSE)),"",VLOOKUP(B24,'Doklady k doložení'!$M$7:$O$32,3,FALSE))) -> 05/02/2012 | S24: MZ0220122 - Mzdy červen
A25: Vyplněno | B25: CS1220122 | C25: 2300 | D25: 2300 | E25: P1 | F25: Projektový účet | I25: 2012-03-04 | K25: Cesťák do Holandska | M25: =IF(ISERROR(VLOOKUP(E25,Hlavička!$B$16:$D$100,3,FALSE)),"",IF(VLOOKUP(E25,Hlavička!$B$16:$D$100,3,FALSE)<>"","Ano","Ne")) ->  | N25: 2012-03-04 | O25: =IF(I25="","",IF(I25>Hlavička!$D$8,"Doklad nepatří do této monitorovací zprávy","OK")) -> OK | P25: =IF(B25="","",IF(ISERROR(VLOOKUP(B25,'Doklady k doložení'!$M$7:$O$32,3,FALSE)),"",VLOOKUP(B25,'Doklady k doložení'!$M$7:$O$32,3,FALSE))) -> 03/02/2012 | S25: CS1220122 - Cesťák do Holandska
A26: Vyplněno | B26: O1520122 | C26: 56000 | D26: 56000 | E26: TP | F26: Provozní účet/ projektový účet | H26: 2012-03-15 | I26: 2012-03-16 | K26: Počítač | M26: =IF(ISERROR(VLOOKUP(E26,Hlavička!$B$16:$D$100,3,FALSE)),"",IF(VLOOKUP(E26,Hlavička!$B$16:$D$100,3,FALSE)<>"","Ano","Ne")) -> Ne | N26: 2012-03-16 | O26: =IF(I26="","",IF(I26>Hlavička!$D$8,"Doklad nepatří do této monitorovací zprávy","OK")) -> OK | P26: =IF(B26="","",IF(ISERROR(VLOOKUP(B26,'Doklady k doložení'!$M$7:$O$32,3,FALSE)),"",VLOOKUP(B26,'Doklady k doložení'!$M$7:$O$32,3,FALSE))) ->  | S26: O1520122 - Počítač
A27: Vyplněno | B27: P1620122 | C27: 230 | D27: 230 | E27: TP | F27: Projektový účet | I27: 2012-04-16 | K27: Kladné úroky na účtu | M27: =IF(ISERROR(VLOOKUP(E27,Hlavička!$B$16:$D$100,3,FALSE)),"",IF(VLOOKUP(E27,Hlavička!$B$16:$D$100,3,FALSE)<>"","Ano","Ne")) -> Ne | N27: 2012-04-16 | O27: =IF(I27="","",IF(I27>Hlavička!$D$8,"Doklad nepatří do této monitorovací zprávy","OK")) -> OK | P27: =IF(B27="","",IF(ISERROR(VLOOKUP(B27,'Doklady k doložení'!$M$7:$O$32,3,FALSE)),"",VLOOKUP(B27,'Doklady k doložení'!$M$7:$O$32,3,FALSE))) ->  | S27: P1620122 - Kladné úroky na účtu
M28: =IF(ISERROR(VLOOKUP(E28,Hlavička!$B$16:$D$100,3,FALSE)),"",IF(VLOOKUP(E28,Hlavička!$B$16:$D$100,3,FALSE)<>"","Ano","Ne")) ->  | O28: =IF(I28="","",IF(I28>Hlavička!$D$8,"Doklad nepatří do této monitorovací zprávy","OK")) ->  | P28: =IF(B28="","",IF(ISERROR(VLOOKUP(B28,'Doklady k doložení'!$M$7:$O$32,3,FALSE)),"",VLOOKUP(B28,'Doklady k doložení'!$M$7:$O$32,3,FALSE))) ->  | S28: -
M29: =IF(ISERROR(VLOOKUP(E29,Hlavička!$B$16:$D$100,3,FALSE)),"",IF(VLOOKUP(E29,Hlavička!$B$16:$D$100,3,FALSE)<>"","Ano","Ne")) ->  | O29: =IF(I29="","",IF(I29>Hlavička!$D$8,"Doklad nepatří do této monitorovací zprávy","OK")) ->  | P29: =IF(B29="","",IF(ISERROR(VLOOKUP(B29,'Doklady k doložení'!$M$7:$O$32,3,FALSE)),"",VLOOKUP(B29,'Doklady k doložení'!$M$7:$O$32,3,FALSE))) ->  | S29: -
M30: =IF(ISERROR(VLOOKUP(E30,Hlavička!$B$16:$D$100,3,FALSE)),"",IF(VLOOKUP(E30,Hlavička!$B$16:$D$100,3,FALSE)<>"","Ano","Ne")) ->  | O30: =IF(I30="","",IF(I30>Hlavička!$D$8,"Doklad nepatří do této monitorovací zprávy","OK")) ->  | P30: =IF(B30="","",IF(ISERROR(VLOOKUP(B30,'Doklady k doložení'!$M$7:$O$32,3,FALSE)),"",VLOOKUP(B30,'Doklady k doložení'!$M$7:$O$32,3,FALSE))) ->  | S30: -
M31: =IF(ISERROR(VLOOKUP(E31,Hlavička!$B$16:$D$100,3,FALSE)),"",IF(VLOOKUP(E31,Hlavička!$B$16:$D$100,3,FALSE)<>"","Ano","Ne")) ->  | O31: =IF(I31="","",IF(I31>Hlavička!$D$8,"Doklad nepatří do této monitorovací zprávy","OK")) ->  | P31: =IF(B31="","",IF(ISERROR(VLOOKUP(B31,'Doklady k doložení'!$M$7:$O$32,3,FALSE)),"",VLOOKUP(B31,'Doklady k doložení'!$M$7:$O$32,3,FALSE))) ->  | S31: -
M32: =IF(ISERROR(VLOOKUP(E32,Hlavička!$B$16:$D$100,3,FALSE)),"",IF(VLOOKUP(E32,Hlavička!$B$16:$D$100,3,FALSE)<>"","Ano","Ne")) ->  | O32: =IF(I32="","",IF(I32>Hlavička!$D$8,"Doklad nepatří do této monitorovací zprávy","OK")) ->  | P32: =IF(B32="","",IF(ISERROR(VLOOKUP(B32,'Doklady k doložení'!$M$7:$O$32,3,FALSE)),"",VLOOKUP(B32,'Doklady k doložení'!$M$7:$O$32,3,FALSE))) ->  | S32: -
M33: =IF(ISERROR(VLOOKUP(E33,Hlavička!$B$16:$D$100,3,FALSE)),"",IF(VLOOKUP(E33,Hlavička!$B$16:$D$100,3,FALSE)<>"","Ano","Ne")) ->  | O33: =IF(I33="","",IF(I33>Hlavička!$D$8,"Doklad nepatří do této monitorovací zprávy","OK")) ->  | P33: =IF(B33="","",IF(ISERROR(VLOOKUP(B33,'Doklady k doložení'!$M$7:$O$32,3,FALSE)),"",VLOOKUP(B33,'Doklady k doložení'!$M$7:$O$32,3,FALSE))) ->  | S33: -
M34: =IF(ISERROR(VLOOKUP(E34,Hlavička!$B$16:$D$100,3,FALSE)),"",IF(VLOOKUP(E34,Hlavička!$B$16:$D$100,3,FALSE)<>"","Ano","Ne")) ->  | O34: =IF(I34="","",IF(I34>Hlavička!$D$8,"Doklad nepatří do této monitorovací zprávy","OK")) ->  | P34: =IF(B34="","",IF(ISERROR(VLOOKUP(B34,'Doklady k doložení'!$M$7:$O$32,3,FALSE)),"",VLOOKUP(B34,'Doklady k doložení'!$M$7:$O$32,3,FALSE))) ->  | S34: -
M35: =IF(ISERROR(VLOOKUP(E35,Hlavička!$B$16:$D$100,3,FALSE)),"",IF(VLOOKUP(E35,Hlavička!$B$16:$D$100,3,FALSE)<>"","Ano","Ne")) ->  | O35: =IF(I35="","",IF(I35>Hlavička!$D$8,"Doklad nepatří do této monitorovací zprávy","OK")) ->  | P35: =IF(B35="","",IF(ISERROR(VLOOKUP(B35,'Doklady k doložení'!$M$7:$O$32,3,FALSE)),"",VLOOKUP(B35,'Doklady k doložení'!$M$7:$O$32,3,FALSE))) ->  | S35: -
M36: =IF(ISERROR(VLOOKUP(E36,Hlavička!$B$16:$D$100,3,FALSE)),"",IF(VLOOKUP(E36,Hlavička!$B$16:$D$100,3,FALSE)<>"","Ano","Ne")) ->  | O36: =IF(I36="","",IF(I36>Hlavička!$D$8,"Doklad nepatří do této monitorovací zprávy","OK")) ->  | P36: =IF(B36="","",IF(ISERROR(VLOOKUP(B36,'Doklady k doložení'!$M$7:$O$32,3,FALSE)),"",VLOOKUP(B36,'Doklady k doložení'!$M$7:$O$32,3,FALSE))) ->  | S36: -
M37: =IF(ISERROR(VLOOKUP(E37,Hlavička!$B$16:$D$100,3,FALSE)),"",IF(VLOOKUP(E37,Hlavička!$B$16:$D$100,3,FALSE)<>"","Ano","Ne")) ->  | O37: =IF(I37="","",IF(I37>Hlavička!$D$8,"Doklad nepatří do této monitorovací zprávy","OK")) ->  | P37: =IF(B37="","",IF(ISERROR(VLOOKUP(B37,'Doklady k doložení'!$M$7:$O$32,3,FALSE)),"",VLOOKUP(B37,'Doklady k doložení'!$M$7:$O$32,3,FALSE))) ->  | S37: -
M38: =IF(ISERROR(VLOOKUP(E38,Hlavička!$B$16:$D$100,3,FALSE)),"",IF(VLOOKUP(E38,Hlavička!$B$16:$D$100,3,FALSE)<>"","Ano","Ne")) ->  | O38: =IF(I38="","",IF(I38>Hlavička!$D$8,"Doklad nepatří do této monitorovací zprávy","OK")) ->  | P38: =IF(B38="","",IF(ISERROR(VLOOKUP(B38,'Doklady k doložení'!$M$7:$O$32,3,FALSE)),"",VLOOKUP(B38,'Doklady k doložení'!$M$7:$O$32,3,FALSE))) ->  | S38: -
M39: =IF(ISERROR(VLOOKUP(E39,Hlavička!$B$16:$D$100,3,FALSE)),"",IF(VLOOKUP(E39,Hlavička!$B$16:$D$100,3,FALSE)<>"","Ano","Ne")) ->  | O39: =IF(I39="","",IF(I39>Hlavička!$D$8,"Doklad nepatří do této monitorovací zprávy","OK")) ->  | P39: =IF(B39="","",IF(ISERROR(VLOOKUP(B39,'Doklady k doložení'!$M$7:$O$32,3,FALSE)),"",VLOOKUP(B39,'Doklady k doložení'!$M$7:$O$32,3,FALSE))) ->  | S39: -
M40: =IF(ISERROR(VLOOKUP(E40,Hlavička!$B$16:$D$100,3,FALSE)),"",IF(VLOOKUP(E40,Hlavička!$B$16:$D$100,3,FALSE)<>"","Ano","Ne")) ->  | O40: =IF(I40="","",IF(I40>Hlavička!$D$8,"Doklad nepatří do této monitorovací zprávy","OK")) ->  | P40: =IF(B40="","",IF(ISERROR(VLOOKUP(B40,'Doklady k doložení'!$M$7:$O$32,3,FALSE)),"",VLOOKUP(B40,'Doklady k doložení'!$M$7:$O$32,3,FALSE))) ->  | S40: -
M41: =IF(ISERROR(VLOOKUP(E41,Hlavička!$B$16:$D$100,3,FALSE)),"",IF(VLOOKUP(E41,Hlavička!$B$16:$D$100,3,FALSE)<>"","Ano","Ne")) ->  | O41: =IF(I41="","",IF(I41>Hlavička!$D$8,"Doklad nepatří do této monitorovací zprávy","OK")) ->  | P41: =IF(B41="","",IF(ISERROR(VLOOKUP(B41,'Doklady k doložení'!$M$7:$O$32,3,FALSE)),"",VLOOKUP(B41,'Doklady k doložení'!$M$7:$O$32,3,FALSE))) ->  | S41: -
M42: =IF(ISERROR(VLOOKUP(E42,Hlavička!$B$16:$D$100,3,FALSE)),"",IF(VLOOKUP(E42,Hlavička!$B$16:$D$100,3,FALSE)<>"","Ano","Ne")) ->  | O42: =IF(I42="","",IF(I42>Hlavička!$D$8,"Doklad nepatří do této monitorovací zprávy","OK")) ->  | P42: =IF(B42="","",IF(ISERROR(VLOOKUP(B42,'Doklady k doložení'!$M$7:$O$32,3,FALSE)),"",VLOOKUP(B42,'Doklady k doložení'!$M$7:$O$32,3,FALSE))) ->  | S42: -
M43: =IF(ISERROR(VLOOKUP(E43,Hlavička!$B$16:$D$100,3,FALSE)),"",IF(VLOOKUP(E43,Hlavička!$B$16:$D$100,3,FALSE)<>"","Ano","Ne")) ->  | O43: =IF(I43="","",IF(I43>Hlavička!$D$8,"Doklad nepatří do této monitorovací zprávy","OK")) ->  | P43: =IF(B43="","",IF(ISERROR(VLOOKUP(B43,'Doklady k doložení'!$M$7:$O$32,3,FALSE)),"",VLOOKUP(B43,'Doklady k doložení'!$M$7:$O$32,3,FALSE))) ->  | S43: -
M44: =IF(ISERROR(VLOOKUP(E44,Hlavička!$B$16:$D$100,3,FALSE)),"",IF(VLOOKUP(E44,Hlavička!$B$16:$D$100,3,FALSE)<>"","Ano","Ne")) ->  | O44: =IF(I44="","",IF(I44>Hlavička!$D$8,"Doklad nepatří do této monitorovací zprávy","OK")) ->  | P44: =IF(B44="","",IF(ISERROR(VLOOKUP(B44,'Doklady k doložení'!$M$7:$O$32,3,FALSE)),"",VLOOKUP(B44,'Doklady k doložení'!$M$7:$O$32,3,FALSE))) ->  | S44: -
M45: =IF(ISERROR(VLOOKUP(E45,Hlavička!$B$16:$D$100,3,FALSE)),"",IF(VLOOKUP(E45,Hlavička!$B$16:$D$100,3,FALSE)<>"","Ano","Ne")) ->  | O45: =IF(I45="","",IF(I45>Hlavička!$D$8,"Doklad nepatří do této monitorovací zprávy","OK")) ->  | P45: =IF(B45="","",IF(ISERROR(VLOOKUP(B45,'Doklady k doložení'!$M$7:$O$32,3,FALSE)),"",VLOOKUP(B45,'Doklady k doložení'!$M$7:$O$32,3,FALSE))) ->  | S45: -
M46: =IF(ISERROR(VLOOKUP(E46,Hlavička!$B$16:$D$100,3,FALSE)),"",IF(VLOOKUP(E46,Hlavička!$B$16:$D$100,3,FALSE)<>"","Ano","Ne")) ->  | O46: =IF(I46="","",IF(I46>Hlavička!$D$8,"Doklad nepatří do této monitorovací zprávy","OK")) ->  | P46: =IF(B46="","",IF(ISERROR(VLOOKUP(B46,'Doklady k doložení'!$M$7:$O$32,3,FALSE)),"",VLOOKUP(B46,'Doklady k doložení'!$M$7:$O$32,3,FALSE))) ->  | S46: -
M47: =IF(ISERROR(VLOOKUP(E47,Hlavička!$B$16:$D$100,3,FALSE)),"",IF(VLOOKUP(E47,Hlavička!$B$16:$D$100,3,FALSE)<>"","Ano","Ne")) ->  | O47: =IF(I47="","",IF(I47>Hlavička!$D$8,"Doklad nepatří do této monitorovací zprávy","OK")) ->  | P47: =IF(B47="","",IF(ISERROR(VLOOKUP(B47,'Doklady k doložení'!$M$7:$O$32,3,FALSE)),"",VLOOKUP(B47,'Doklady k doložení'!$M$7:$O$32,3,FALSE))) ->  | S47: -
M48: =IF(ISERROR(VLOOKUP(E48,Hlavička!$B$16:$D$100,3,FALSE)),"",IF(VLOOKUP(E48,Hlavička!$B$16:$D$100,3,FALSE)<>"","Ano","Ne")) ->  | O48: =IF(I48="","",IF(I48>Hlavička!$D$8,"Doklad nepatří do této monitorovací zprávy","OK")) ->  | P48: =IF(B48="","",IF(ISERROR(VLOOKUP(B48,'Doklady k doložení'!$M$7:$O$32,3,FALSE)),"",VLOOKUP(B48,'Doklady k doložení'!$M$7:$O$32,3,FALSE))) ->  | S48: -
M49: =IF(ISERROR(VLOOKUP(E49,Hlavička!$B$16:$D$100,3,FALSE)),"",IF(VLOOKUP(E49,Hlavička!$B$16:$D$100,3,FALSE)<>"","Ano","Ne")) ->  | O49: =IF(I49="","",IF(I49>Hlavička!$D$8,"Doklad nepatří do této monitorovací zprávy","OK")) ->  | P49: =IF(B49="","",IF(ISERROR(VLOOKUP(B49,'Doklady k doložení'!$M$7:$O$32,3,FALSE)),"",VLOOKUP(B49,'Doklady k doložení'!$M$7:$O$32,3,FALSE))) ->  | S49: -
M50: =IF(ISERROR(VLOOKUP(E50,Hlavička!$B$16:$D$100,3,FALSE)),"",IF(VLOOKUP(E50,Hlavička!$B$16:$D$100,3,FALSE)<>"","Ano","Ne")) ->  | O50: =IF(I50="","",IF(I50>Hlavička!$D$8,"Doklad nepatří do této monitorovací zprávy","OK")) ->  | P50: =IF(B50="","",IF(ISERROR(VLOOKUP(B50,'Doklady k doložení'!$M$7:$O$32,3,FALSE)),"",VLOOKUP(B50,'Doklady k doložení'!$M$7:$O$32,3,FALSE))) ->  | S50: -
M51: =IF(ISERROR(VLOOKUP(E51,Hlavička!$B$16:$D$100,3,FALSE)),"",IF(VLOOKUP(E51,Hlavička!$B$16:$D$100,3,FALSE)<>"","Ano","Ne")) ->  | O51: =IF(I51="","",IF(I51>Hlavička!$D$8,"Doklad nepatří do této monitorovací zprávy","OK")) ->  | P51: =IF(B51="","",IF(ISERROR(VLOOKUP(B51,'Doklady k doložení'!$M$7:$O$32,3,FALSE)),"",VLOOKUP(B51,'Doklady k doložení'!$M$7:$O$32,3,FALSE))) ->  | S51: -
M52: =IF(ISERROR(VLOOKUP(E52,Hlavička!$B$16:$D$100,3,FALSE)),"",IF(VLOOKUP(E52,Hlavička!$B$16:$D$100,3,FALSE)<>"","Ano","Ne")) ->  | O52: =IF(I52="","",IF(I52>Hlavička!$D$8,"Doklad nepatří do této monitorovací zprávy","OK")) ->  | P52: =IF(B52="","",IF(ISERROR(VLOOKUP(B52,'Doklady k doložení'!$M$7:$O$32,3,FALSE)),"",VLOOKUP(B52,'Doklady k doložení'!$M$7:$O$32,3,FALSE))) ->  | S52: -
M53: =IF(ISERROR(VLOOKUP(E53,Hlavička!$B$16:$D$100,3,FALSE)),"",IF(VLOOKUP(E53,Hlavička!$B$16:$D$100,3,FALSE)<>"","Ano","Ne")) ->  | O53: =IF(I53="","",IF(I53>Hlavička!$D$8,"Doklad nepatří do této monitorovací zprávy","OK")) ->  | P53: =IF(B53="","",IF(ISERROR(VLOOKUP(B53,'Doklady k doložení'!$M$7:$O$32,3,FALSE)),"",VLOOKUP(B53,'Doklady k doložení'!$M$7:$O$32,3,FALSE))) ->  | S53: -
M54: =IF(ISERROR(VLOOKUP(E54,Hlavička!$B$16:$D$100,3,FALSE)),"",IF(VLOOKUP(E54,Hlavička!$B$16:$D$100,3,FALSE)<>"","Ano","Ne")) ->  | O54: =IF(I54="","",IF(I54>Hlavička!$D$8,"Doklad nepatří do této monitorovací zprávy","OK")) ->  | P54: =IF(B54="","",IF(ISERROR(VLOOKUP(B54,'Doklady k doložení'!$M$7:$O$32,3,FALSE)),"",VLOOKUP(B54,'Doklady k doložení'!$M$7:$O$32,3,FALSE))) ->  | S54: -
M55: =IF(ISERROR(VLOOKUP(E55,Hlavička!$B$16:$D$100,3,FALSE)),"",IF(VLOOKUP(E55,Hlavička!$B$16:$D$100,3,FALSE)<>"","Ano","Ne")) ->  | O55: =IF(I55="","",IF(I55>Hlavička!$D$8,"Doklad nepatří do této monitorovací zprávy","OK")) ->  | P55: =IF(B55="","",IF(ISERROR(VLOOKUP(B55,'Doklady k doložení'!$M$7:$O$32,3,FALSE)),"",VLOOKUP(B55,'Doklady k doložení'!$M$7:$O$32,3,FALSE))) ->  | S55: -
M56: =IF(ISERROR(VLOOKUP(E56,Hlavička!$B$16:$D$100,3,FALSE)),"",IF(VLOOKUP(E56,Hlavička!$B$16:$D$100,3,FALSE)<>"","Ano","Ne")) ->  | O56: =IF(I56="","",IF(I56>Hlavička!$D$8,"Doklad nepatří do této monitorovací zprávy","OK")) ->  | P56: =IF(B56="","",IF(ISERROR(VLOOKUP(B56,'Doklady k doložení'!$M$7:$O$32,3,FALSE)),"",VLOOKUP(B56,'Doklady k doložení'!$M$7:$O$32,3,FALSE))) ->  | S56: -
M57: =IF(ISERROR(VLOOKUP(E57,Hlavička!$B$16:$D$100,3,FALSE)),"",IF(VLOOKUP(E57,Hlavička!$B$16:$D$100,3,FALSE)<>"","Ano","Ne")) ->  | O57: =IF(I57="","",IF(I57>Hlavička!$D$8,"Doklad nepatří do této monitorovací zprávy","OK")) ->  | P57: =IF(B57="","",IF(ISERROR(VLOOKUP(B57,'Doklady k doložení'!$M$7:$O$32,3,FALSE)),"",VLOOKUP(B57,'Doklady k doložení'!$M$7:$O$32,3,FALSE))) ->  | S57: -
M58: =IF(ISERROR(VLOOKUP(E58,Hlavička!$B$16:$D$100,3,FALSE)),"",IF(VLOOKUP(E58,Hlavička!$B$16:$D$100,3,FALSE)<>"","Ano","Ne")) ->  | O58: =IF(I58="","",IF(I58>Hlavička!$D$8,"Doklad nepatří do této monitorovací zprávy","OK")) ->  | P58: =IF(B58="","",IF(ISERROR(VLOOKUP(B58,'Doklady k doložení'!$M$7:$O$32,3,FALSE)),"",VLOOKUP(B58,'Doklady k doložení'!$M$7:$O$32,3,FALSE))) ->  | S58: -
M59: =IF(ISERROR(VLOOKUP(E59,Hlavička!$B$16:$D$100,3,FALSE)),"",IF(VLOOKUP(E59,Hlavička!$B$16:$D$100,3,FALSE)<>"","Ano","Ne")) ->  | O59: =IF(I59="","",IF(I59>Hlavička!$D$8,"Doklad nepatří do této monitorovací zprávy","OK")) ->  | P59: =IF(B59="","",IF(ISERROR(VLOOKUP(B59,'Doklady k doložení'!$M$7:$O$32,3,FALSE)),"",VLOOKUP(B59,'Doklady k doložení'!$M$7:$O$32,3,FALSE))) ->  | S59: -
M60: =IF(ISERROR(VLOOKUP(E60,Hlavička!$B$16:$D$100,3,FALSE)),"",IF(VLOOKUP(E60,Hlavička!$B$16:$D$100,3,FALSE)<>"","Ano","Ne")) ->  | O60: =IF(I60="","",IF(I60>Hlavička!$D$8,"Doklad nepatří do této monitorovací zprávy","OK")) ->  | P60: =IF(B60="","",IF(ISERROR(VLOOKUP(B60,'Doklady k doložení'!$M$7:$O$32,3,FALSE)),"",VLOOKUP(B60,'Doklady k doložení'!$M$7:$O$32,3,FALSE))) ->  | S60: -
M61: =IF(ISERROR(VLOOKUP(E61,Hlavička!$B$16:$D$100,3,FALSE)),"",IF(VLOOKUP(E61,Hlavička!$B$16:$D$100,3,FALSE)<>"","Ano","Ne")) ->  | O61: =IF(I61="","",IF(I61>Hlavička!$D$8,"Doklad nepatří do této monitorovací zprávy","OK")) ->  | P61: =IF(B61="","",IF(ISERROR(VLOOKUP(B61,'Doklady k doložení'!$M$7:$O$32,3,FALSE)),"",VLOOKUP(B61,'Doklady k doložení'!$M$7:$O$32,3,FALSE))) ->  | S61: -
M62: =IF(ISERROR(VLOOKUP(E62,Hlavička!$B$16:$D$100,3,FALSE)),"",IF(VLOOKUP(E62,Hlavička!$B$16:$D$100,3,FALSE)<>"","Ano","Ne")) ->  | O62: =IF(I62="","",IF(I62>Hlavička!$D$8,"Doklad nepatří do této monitorovací zprávy","OK")) ->  | P62: =IF(B62="","",IF(ISERROR(VLOOKUP(B62,'Doklady k doložení'!$M$7:$O$32,3,FALSE)),"",VLOOKUP(B62,'Doklady k doložení'!$M$7:$O$32,3,FALSE))) ->  | S62: -
M63: =IF(ISERROR(VLOOKUP(E63,Hlavička!$B$16:$D$100,3,FALSE)),"",IF(VLOOKUP(E63,Hlavička!$B$16:$D$100,3,FALSE)<>"","Ano","Ne")) ->  | O63: =IF(I63="","",IF(I63>Hlavička!$D$8,"Doklad nepatří do této monitorovací zprávy","OK")) ->  | P63: =IF(B63="","",IF(ISERROR(VLOOKUP(B63,'Doklady k doložení'!$M$7:$O$32,3,FALSE)),"",VLOOKUP(B63,'Doklady k doložení'!$M$7:$O$32,3,FALSE))) ->  | S63: -
M64: =IF(ISERROR(VLOOKUP(E64,Hlavička!$B$16:$D$100,3,FALSE)),"",IF(VLOOKUP(E64,Hlavička!$B$16:$D$100,3,FALSE)<>"","Ano","Ne")) ->  | O64: =IF(I64="","",IF(I64>Hlavička!$D$8,"Doklad nepatří do této monitorovací zprávy","OK")) ->  | P64: =IF(B64="","",IF(ISERROR(VLOOKUP(B64,'Doklady k doložení'!$M$7:$O$32,3,FALSE)),"",VLOOKUP(B64,'Doklady k doložení'!$M$7:$O$32,3,FALSE))) ->  | S64: -
M65: =IF(ISERROR(VLOOKUP(E65,Hlavička!$B$16:$D$100,3,FALSE)),"",IF(VLOOKUP(E65,Hlavička!$B$16:$D$100,3,FALSE)<>"","Ano","Ne")) ->  | O65: =IF(I65="","",IF(I65>Hlavička!$D$8,"Doklad nepatří do této monitorovací zprávy","OK")) ->  | P65: =IF(B65="","",IF(ISERROR(VLOOKUP(B65,'Doklady k doložení'!$M$7:$O$32,3,FALSE)),"",VLOOKUP(B65,'Doklady k doložení'!$M$7:$O$32,3,FALSE))) ->  | S65: -
M66: =IF(ISERROR(VLOOKUP(E66,Hlavička!$B$16:$D$100,3,FALSE)),"",IF(VLOOKUP(E66,Hlavička!$B$16:$D$100,3,FALSE)<>"","Ano","Ne")) ->  | O66: =IF(I66="","",IF(I66>Hlavička!$D$8,"Doklad nepatří do této monitorovací zprávy","OK")) ->  | P66: =IF(B66="","",IF(ISERROR(VLOOKUP(B66,'Doklady k doložení'!$M$7:$O$32,3,FALSE)),"",VLOOKUP(B66,'Doklady k doložení'!$M$7:$O$32,3,FALSE))) ->  | S66: -
M67: =IF(ISERROR(VLOOKUP(E67,Hlavička!$B$16:$D$100,3,FALSE)),"",IF(VLOOKUP(E67,Hlavička!$B$16:$D$100,3,FALSE)<>"","Ano","Ne")) ->  | O67: =IF(I67="","",IF(I67>Hlavička!$D$8,"Doklad nepatří do této monitorovací zprávy","OK")) ->  | P67: =IF(B67="","",IF(ISERROR(VLOOKUP(B67,'Doklady k doložení'!$M$7:$O$32,3,FALSE)),"",VLOOKUP(B67,'Doklady k doložení'!$M$7:$O$32,3,FALSE))) ->  | S67: -
M68: =IF(ISERROR(VLOOKUP(E68,Hlavička!$B$16:$D$100,3,FALSE)),"",IF(VLOOKUP(E68,Hlavička!$B$16:$D$100,3,FALSE)<>"","Ano","Ne")) ->  | O68: =IF(I68="","",IF(I68>Hlavička!$D$8,"Doklad nepatří do této monitorovací zprávy","OK")) ->  | P68: =IF(B68="","",IF(ISERROR(VLOOKUP(B68,'Doklady k doložení'!$M$7:$O$32,3,FALSE)),"",VLOOKUP(B68,'Doklady k doložení'!$M$7:$O$32,3,FALSE))) ->  | S68: -
M69: =IF(ISERROR(VLOOKUP(E69,Hlavička!$B$16:$D$100,3,FALSE)),"",IF(VLOOKUP(E69,Hlavička!$B$16:$D$100,3,FALSE)<>"","Ano","Ne")) ->  | O69: =IF(I69="","",IF(I69>Hlavička!$D$8,"Doklad nepatří do této monitorovací zprávy","OK")) ->  | P69: =IF(B69="","",IF(ISERROR(VLOOKUP(B69,'Doklady k doložení'!$M$7:$O$32,3,FALSE)),"",VLOOKUP(B69,'Doklady k doložení'!$M$7:$O$32,3,FALSE))) ->  | S69: -
M70: =IF(ISERROR(VLOOKUP(E70,Hlavička!$B$16:$D$100,3,FALSE)),"",IF(VLOOKUP(E70,Hlavička!$B$16:$D$100,3,FALSE)<>"","Ano","Ne")) ->  | O70: =IF(I70="","",IF(I70>Hlavička!$D$8,"Doklad nepatří do této monitorovací zprávy","OK")) ->  | P70: =IF(B70="","",IF(ISERROR(VLOOKUP(B70,'Doklady k doložení'!$M$7:$O$32,3,FALSE)),"",VLOOKUP(B70,'Doklady k doložení'!$M$7:$O$32,3,FALSE))) ->  | S70: -
M71: =IF(ISERROR(VLOOKUP(E71,Hlavička!$B$16:$D$100,3,FALSE)),"",IF(VLOOKUP(E71,Hlavička!$B$16:$D$100,3,FALSE)<>"","Ano","Ne")) ->  | O71: =IF(I71="","",IF(I71>Hlavička!$D$8,"Doklad nepatří do této monitorovací zprávy","OK")) ->  | P71: =IF(B71="","",IF(ISERROR(VLOOKUP(B71,'Doklady k doložení'!$M$7:$O$32,3,FALSE)),"",VLOOKUP(B71,'Doklady k doložení'!$M$7:$O$32,3,FALSE))) ->  | S71: -
M72: =IF(ISERROR(VLOOKUP(E72,Hlavička!$B$16:$D$100,3,FALSE)),"",IF(VLOOKUP(E72,Hlavička!$B$16:$D$100,3,FALSE)<>"","Ano","Ne")) ->  | O72: =IF(I72="","",IF(I72>Hlavička!$D$8,"Doklad nepatří do této monitorovací zprávy","OK")) ->  | P72: =IF(B72="","",IF(ISERROR(VLOOKUP(B72,'Doklady k doložení'!$M$7:$O$32,3,FALSE)),"",VLOOKUP(B72,'Doklady k doložení'!$M$7:$O$32,3,FALSE))) ->  | S72: -
M73: =IF(ISERROR(VLOOKUP(E73,Hlavička!$B$16:$D$100,3,FALSE)),"",IF(VLOOKUP(E73,Hlavička!$B$16:$D$100,3,FALSE)<>"","Ano","Ne")) ->  | O73: =IF(I73="","",IF(I73>Hlavička!$D$8,"Doklad nepatří do této monitorovací zprávy","OK")) ->  | P73: =IF(B73="","",IF(ISERROR(VLOOKUP(B73,'Doklady k doložení'!$M$7:$O$32,3,FALSE)),"",VLOOKUP(B73,'Doklady k doložení'!$M$7:$O$32,3,FALSE))) ->  | S73: -
M74: =IF(ISERROR(VLOOKUP(E74,Hlavička!$B$16:$D$100,3,FALSE)),"",IF(VLOOKUP(E74,Hlavička!$B$16:$D$100,3,FALSE)<>"","Ano","Ne")) ->  | O74: =IF(I74="","",IF(I74>Hlavička!$D$8,"Doklad nepatří do této monitorovací zprávy","OK")) ->  | P74: =IF(B74="","",IF(ISERROR(VLOOKUP(B74,'Doklady k doložení'!$M$7:$O$32,3,FALSE)),"",VLOOKUP(B74,'Doklady k doložení'!$M$7:$O$32,3,FALSE))) ->  | S74: -
M75: =IF(ISERROR(VLOOKUP(E75,Hlavička!$B$16:$D$100,3,FALSE)),"",IF(VLOOKUP(E75,Hlavička!$B$16:$D$100,3,FALSE)<>"","Ano","Ne")) ->  | O75: =IF(I75="","",IF(I75>Hlavička!$D$8,"Doklad nepatří do této monitorovací zprávy","OK")) ->  | P75: =IF(B75="","",IF(ISERROR(VLOOKUP(B75,'Doklady k doložení'!$M$7:$O$32,3,FALSE)),"",VLOOKUP(B75,'Doklady k doložení'!$M$7:$O$32,3,FALSE))) ->  | S75: -
M76: =IF(ISERROR(VLOOKUP(E76,Hlavička!$B$16:$D$100,3,FALSE)),"",IF(VLOOKUP(E76,Hlavička!$B$16:$D$100,3,FALSE)<>"","Ano","Ne")) ->  | O76: =IF(I76="","",IF(I76>Hlavička!$D$8,"Doklad nepatří do této monitorovací zprávy","OK")) ->  | P76: =IF(B76="","",IF(ISERROR(VLOOKUP(B76,'Doklady k doložení'!$M$7:$O$32,3,FALSE)),"",VLOOKUP(B76,'Doklady k doložení'!$M$7:$O$32,3,FALSE))) ->  | S76: -
M77: =IF(ISERROR(VLOOKUP(E77,Hlavička!$B$16:$D$100,3,FALSE)),"",IF(VLOOKUP(E77,Hlavička!$B$16:$D$100,3,FALSE)<>"","Ano","Ne")) ->  | O77: =IF(I77="","",IF(I77>Hlavička!$D$8,"Doklad nepatří do této monitorovací zprávy","OK")) ->  | P77: =IF(B77="","",IF(ISERROR(VLOOKUP(B77,'Doklady k doložení'!$M$7:$O$32,3,FALSE)),"",VLOOKUP(B77,'Doklady k doložení'!$M$7:$O$32,3,FALSE))) ->  | S77: -
A78: =IF(OR(B78<>"",C78<>"",E78<>"",F78<>"",H78<>"",I78<>""),"Vyplněno",IF(B78="Prázdné","","")) ->  | M78: =IF(ISERROR(VLOOKUP(E78,Hlavička!$B$16:$D$100,3,FALSE)),"",IF(VLOOKUP(E78,Hlavička!$B$16:$D$100,3,FALSE)<>"","Ano","Ne")) ->  | N78: =IF(AND(H78="",I78=""),"",IF(I78<>"",I78,IF(AND(J78="Ne",H78<>""),H78,"Chybí datum úhrady!"))) ->  | O78: =IF(I78="","",IF(I78>Hlavička!$D$8,"Doklad nepatří do této monitorovací zprávy","OK")) ->  | P78: =IF(B78="","",IF(ISERROR(VLOOKUP(B78,'Doklady k doložení'!$M$7:$O$32,3,FALSE)),"",VLOOKUP(B78,'Doklady k doložení'!$M$7:$O$32,3,FALSE))) ->  | S78: =B78&" - "&K78 -> -
M79: =IF(ISERROR(VLOOKUP(E79,Hlavička!$B$16:$D$100,3,FALSE)),"",IF(VLOOKUP(E79,Hlavička!$B$16:$D$100,3,FALSE)<>"","Ano","Ne")) ->  | O79: =IF(I79="","",IF(I79>Hlavička!$D$8,"Doklad nepatří do této monitorovací zprávy","OK")) ->  | P79: =IF(B79="","",IF(ISERROR(VLOOKUP(B79,'Doklady k doložení'!$M$7:$O$32,3,FALSE)),"",VLOOKUP(B79,'Doklady k doložení'!$M$7:$O$32,3,FALSE))) ->  | S79: -
M80: =IF(ISERROR(VLOOKUP(E80,Hlavička!$B$16:$D$100,3,FALSE)),"",IF(VLOOKUP(E80,Hlavička!$B$16:$D$100,3,FALSE)<>"","Ano","Ne")) ->  | O80: =IF(I80="","",IF(I80>Hlavička!$D$8,"Doklad nepatří do této monitorovací zprávy","OK")) ->  | P80: =IF(B80="","",IF(ISERROR(VLOOKUP(B80,'Doklady k doložení'!$M$7:$O$32,3,FALSE)),"",VLOOKUP(B80,'Doklady k doložení'!$M$7:$O$32,3,FALSE))) ->  | S80: -
M81: =IF(ISERROR(VLOOKUP(E81,Hlavička!$B$16:$D$100,3,FALSE)),"",IF(VLOOKUP(E81,Hlavička!$B$16:$D$100,3,FALSE)<>"","Ano","Ne")) ->  | O81: =IF(I81="","",IF(I81>Hlavička!$D$8,"Doklad nepatří do této monitorovací zprávy","OK")) ->  | P81: =IF(B81="","",IF(ISERROR(VLOOKUP(B81,'Doklady k doložení'!$M$7:$O$32,3,FALSE)),"",VLOOKUP(B81,'Doklady k doložení'!$M$7:$O$32,3,FALSE))) ->  | S81: -
M82: =IF(ISERROR(VLOOKUP(E82,Hlavička!$B$16:$D$100,3,FALSE)),"",IF(VLOOKUP(E82,Hlavička!$B$16:$D$100,3,FALSE)<>"","Ano","Ne")) ->  | O82: =IF(I82="","",IF(I82>Hlavička!$D$8,"Doklad nepatří do této monitorovací zprávy","OK")) ->  | P82: =IF(B82="","",IF(ISERROR(VLOOKUP(B82,'Doklady k doložení'!$M$7:$O$32,3,FALSE)),"",VLOOKUP(B82,'Doklady k doložení'!$M$7:$O$32,3,FALSE))) ->  | S82: -
M83: =IF(ISERROR(VLOOKUP(E83,Hlavička!$B$16:$D$100,3,FALSE)),"",IF(VLOOKUP(E83,Hlavička!$B$16:$D$100,3,FALSE)<>"","Ano","Ne")) ->  | O83: =IF(I83="","",IF(I83>Hlavička!$D$8,"Doklad nepatří do této monitorovací zprávy","OK")) ->  | P83: =IF(B83="","",IF(ISERROR(VLOOKUP(B83,'Doklady k doložení'!$M$7:$O$32,3,FALSE)),"",VLOOKUP(B83,'Doklady k doložení'!$M$7:$O$32,3,FALSE))) ->  | S83: -
M84: =IF(ISERROR(VLOOKUP(E84,Hlavička!$B$16:$D$100,3,FALSE)),"",IF(VLOOKUP(E84,Hlavička!$B$16:$D$100,3,FALSE)<>"","Ano","Ne")) ->  | O84: =IF(I84="","",IF(I84>Hlavička!$D$8,"Doklad nepatří do této monitorovací zprávy","OK")) ->  | P84: =IF(B84="","",IF(ISERROR(VLOOKUP(B84,'Doklady k doložení'!$M$7:$O$32,3,FALSE)),"",VLOOKUP(B84,'Doklady k doložení'!$M$7:$O$32,3,FALSE))) ->  | S84: -
M85: =IF(ISERROR(VLOOKUP(E85,Hlavička!$B$16:$D$100,3,FALSE)),"",IF(VLOOKUP(E85,Hlavička!$B$16:$D$100,3,FALSE)<>"","Ano","Ne")) ->  | O85: =IF(I85="","",IF(I85>Hlavička!$D$8,"Doklad nepatří do této monitorovací zprávy","OK")) ->  | P85: =IF(B85="","",IF(ISERROR(VLOOKUP(B85,'Doklady k doložení'!$M$7:$O$32,3,FALSE)),"",VLOOKUP(B85,'Doklady k doložení'!$M$7:$O$32,3,FALSE))) ->  | S85: -
M86: =IF(ISERROR(VLOOKUP(E86,Hlavička!$B$16:$D$100,3,FALSE)),"",IF(VLOOKUP(E86,Hlavička!$B$16:$D$100,3,FALSE)<>"","Ano","Ne")) ->  | O86: =IF(I86="","",IF(I86>Hlavička!$D$8,"Doklad nepatří do této monitorovací zprávy","OK")) ->  | P86: =IF(B86="","",IF(ISERROR(VLOOKUP(B86,'Doklady k doložení'!$M$7:$O$32,3,FALSE)),"",VLOOKUP(B86,'Doklady k doložení'!$M$7:$O$32,3,FALSE))) ->  | S86: -
M87: =IF(ISERROR(VLOOKUP(E87,Hlavička!$B$16:$D$100,3,FALSE)),"",IF(VLOOKUP(E87,Hlavička!$B$16:$D$100,3,FALSE)<>"","Ano","Ne")) ->  | O87: =IF(I87="","",IF(I87>Hlavička!$D$8,"Doklad nepatří do této monitorovací zprávy","OK")) ->  | P87: =IF(B87="","",IF(ISERROR(VLOOKUP(B87,'Doklady k doložení'!$M$7:$O$32,3,FALSE)),"",VLOOKUP(B87,'Doklady k doložení'!$M$7:$O$32,3,FALSE))) ->  | S87: -
M88: =IF(ISERROR(VLOOKUP(E88,Hlavička!$B$16:$D$100,3,FALSE)),"",IF(VLOOKUP(E88,Hlavička!$B$16:$D$100,3,FALSE)<>"","Ano","Ne")) ->  | O88: =IF(I88="","",IF(I88>Hlavička!$D$8,"Doklad nepatří do této monitorovací zprávy","OK")) ->  | P88: =IF(B88="","",IF(ISERROR(VLOOKUP(B88,'Doklady k doložení'!$M$7:$O$32,3,FALSE)),"",VLOOKUP(B88,'Doklady k doložení'!$M$7:$O$32,3,FALSE))) ->  | S88: -
M89: =IF(ISERROR(VLOOKUP(E89,Hlavička!$B$16:$D$100,3,FALSE)),"",IF(VLOOKUP(E89,Hlavička!$B$16:$D$100,3,FALSE)<>"","Ano","Ne")) ->  | O89: =IF(I89="","",IF(I89>Hlavička!$D$8,"Doklad nepatří do této monitorovací zprávy","OK")) ->  | P89: =IF(B89="","",IF(ISERROR(VLOOKUP(B89,'Doklady k doložení'!$M$7:$O$32,3,FALSE)),"",VLOOKUP(B89,'Doklady k doložení'!$M$7:$O$32,3,FALSE))) ->  | S89: -
M90: =IF(ISERROR(VLOOKUP(E90,Hlavička!$B$16:$D$100,3,FALSE)),"",IF(VLOOKUP(E90,Hlavička!$B$16:$D$100,3,FALSE)<>"","Ano","Ne")) ->  | O90: =IF(I90="","",IF(I90>Hlavička!$D$8,"Doklad nepatří do této monitorovací zprávy","OK")) ->  | P90: =IF(B90="","",IF(ISERROR(VLOOKUP(B90,'Doklady k doložení'!$M$7:$O$32,3,FALSE)),"",VLOOKUP(B90,'Doklady k doložení'!$M$7:$O$32,3,FALSE))) ->  | S90: -
M91: =IF(ISERROR(VLOOKUP(E91,Hlavička!$B$16:$D$100,3,FALSE)),"",IF(VLOOKUP(E91,Hlavička!$B$16:$D$100,3,FALSE)<>"","Ano","Ne")) ->  | O91: =IF(I91="","",IF(I91>Hlavička!$D$8,"Doklad nepatří do této monitorovací zprávy","OK")) ->  | P91: =IF(B91="","",IF(ISERROR(VLOOKUP(B91,'Doklady k doložení'!$M$7:$O$32,3,FALSE)),"",VLOOKUP(B91,'Doklady k doložení'!$M$7:$O$32,3,FALSE))) ->  | S91: -
M92: =IF(ISERROR(VLOOKUP(E92,Hlavička!$B$16:$D$100,3,FALSE)),"",IF(VLOOKUP(E92,Hlavička!$B$16:$D$100,3,FALSE)<>"","Ano","Ne")) ->  | O92: =IF(I92="","",IF(I92>Hlavička!$D$8,"Doklad nepatří do této monitorovací zprávy","OK")) ->  | P92: =IF(B92="","",IF(ISERROR(VLOOKUP(B92,'Doklady k doložení'!$M$7:$O$32,3,FALSE)),"",VLOOKUP(B92,'Doklady k doložení'!$M$7:$O$32,3,FALSE))) ->  | S92: -
M93: =IF(ISERROR(VLOOKUP(E93,Hlavička!$B$16:$D$100,3,FALSE)),"",IF(VLOOKUP(E93,Hlavička!$B$16:$D$100,3,FALSE)<>"","Ano","Ne")) ->  | O93: =IF(I93="","",IF(I93>Hlavička!$D$8,"Doklad nepatří do této monitorovací zprávy","OK")) ->  | P93: =IF(B93="","",IF(ISERROR(VLOOKUP(B93,'Doklady k doložení'!$M$7:$O$32,3,FALSE)),"",VLOOKUP(B93,'Doklady k doložení'!$M$7:$O$32,3,FALSE))) ->  | S93: -
M94: =IF(ISERROR(VLOOKUP(E94,Hlavička!$B$16:$D$100,3,FALSE)),"",IF(VLOOKUP(E94,Hlavička!$B$16:$D$100,3,FALSE)<>"","Ano","Ne")) ->  | O94: =IF(I94="","",IF(I94>Hlavička!$D$8,"Doklad nepatří do této monitorovací zprávy","OK")) ->  | P94: =IF(B94="","",IF(ISERROR(VLOOKUP(B94,'Doklady k doložení'!$M$7:$O$32,3,FALSE)),"",VLOOKUP(B94,'Doklady k doložení'!$M$7:$O$32,3,FALSE))) ->  | S94: -
M95: =IF(ISERROR(VLOOKUP(E95,Hlavička!$B$16:$D$100,3,FALSE)),"",IF(VLOOKUP(E95,Hlavička!$B$16:$D$100,3,FALSE)<>"","Ano","Ne")) ->  | O95: =IF(I95="","",IF(I95>Hlavička!$D$8,"Doklad nepatří do této monitorovací zprávy","OK")) ->  | P95: =IF(B95="","",IF(ISERROR(VLOOKUP(B95,'Doklady k doložení'!$M$7:$O$32,3,FALSE)),"Doklad se nedokládá není větší než 10 tis. Kč",VLOOKUP(B95,'Doklady k doložení'!$M$7:$O$32,3,FALSE))) ->  | S95: -
M96: =IF(ISERROR(VLOOKUP(E96,Hlavička!$B$16:$D$100,3,FALSE)),"",IF(VLOOKUP(E96,Hlavička!$B$16:$D$100,3,FALSE)<>"","Ano","Ne")) ->  | O96: =IF(I96="","",IF(I96>Hlavička!$D$8,"Doklad nepatří do této monitorovací zprávy","OK")) ->  | P96: =IF(B96="","",IF(ISERROR(VLOOKUP(B96,'Doklady k doložení'!$M$7:$O$32,3,FALSE)),"Doklad se nedokládá není větší než 10 tis. Kč",VLOOKUP(B96,'Doklady k doložení'!$M$7:$O$32,3,FALSE))) ->  | S96: -
M97: =IF(ISERROR(VLOOKUP(E97,Hlavička!$B$16:$D$100,3,FALSE)),"",IF(VLOOKUP(E97,Hlavička!$B$16:$D$100,3,FALSE)<>"","Ano","Ne")) ->  | O97: =IF(I97="","",IF(I97>Hlavička!$D$8,"Doklad nepatří do této monitorovací zprávy","OK")) ->  | P97: =IF(B97="","",IF(ISERROR(VLOOKUP(B97,'Doklady k doložení'!$M$7:$O$32,3,FALSE)),"Doklad se nedokládá není větší než 10 tis. Kč",VLOOKUP(B97,'Doklady k doložení'!$M$7:$O$32,3,FALSE))) ->  | S97: -
M98: =IF(ISERROR(VLOOKUP(E98,Hlavička!$B$16:$D$100,3,FALSE)),"",IF(VLOOKUP(E98,Hlavička!$B$16:$D$100,3,FALSE)<>"","Ano","Ne")) ->  | O98: =IF(I98="","",IF(I98>Hlavička!$D$8,"Doklad nepatří do této monitorovací zprávy","OK")) ->  | P98: =IF(B98="","",IF(ISERROR(VLOOKUP(B98,'Doklady k doložení'!$M$7:$O$32,3,FALSE)),"Doklad se nedokládá není větší než 10 tis. Kč",VLOOKUP(B98,'Doklady k doložení'!$M$7:$O$32,3,FALSE))) ->  | S98: -
M99: =IF(ISERROR(VLOOKUP(E99,Hlavička!$B$16:$D$100,3,FALSE)),"",IF(VLOOKUP(E99,Hlavička!$B$16:$D$100,3,FALSE)<>"","Ano","Ne")) ->  | O99: =IF(I99="","",IF(I99>Hlavička!$D$8,"Doklad nepatří do této monitorovací zprávy","OK")) ->  | P99: =IF(B99="","",IF(ISERROR(VLOOKUP(B99,'Doklady k doložení'!$M$7:$O$32,3,FALSE)),"Doklad se nedokládá není větší než 10 tis. Kč",VLOOKUP(B99,'Doklady k doložení'!$M$7:$O$32,3,FALSE))) ->  | S99: -
M100: =IF(ISERROR(VLOOKUP(E100,Hlavička!$B$16:$D$100,3,FALSE)),"",IF(VLOOKUP(E100,Hlavička!$B$16:$D$100,3,FALSE)<>"","Ano","Ne")) ->  | O100: =IF(I100="","",IF(I100>Hlavička!$D$8,"Doklad nepatří do této monitorovací zprávy","OK")) ->  | P100: =IF(B100="","",IF(ISERROR(VLOOKUP(B100,'Doklady k doložení'!$M$7:$O$32,3,FALSE)),"Doklad se nedokládá není větší než 10 tis. Kč",VLOOKUP(B100,'Doklady k doložení'!$M$7:$O$32,3,FALSE))) ->  | S100: -
M101: =IF(ISERROR(VLOOKUP(E101,Hlavička!$B$16:$D$100,3,FALSE)),"",IF(VLOOKUP(E101,Hlavička!$B$16:$D$100,3,FALSE)<>"","Ano","Ne")) ->  | O101: =IF(I101="","",IF(I101>Hlavička!$D$8,"Doklad nepatří do této monitorovací zprávy","OK")) ->  | P101: =IF(B101="","",IF(ISERROR(VLOOKUP(B101,'Doklady k doložení'!$M$7:$O$32,3,FALSE)),"Doklad se nedokládá není větší než 10 tis. Kč",VLOOKUP(B101,'Doklady k doložení'!$M$7:$O$32,3,FALSE))) ->  | S101: -
M102: =IF(ISERROR(VLOOKUP(E102,Hlavička!$B$16:$D$100,3,FALSE)),"",IF(VLOOKUP(E102,Hlavička!$B$16:$D$100,3,FALSE)<>"","Ano","Ne")) ->  | O102: =IF(I102="","",IF(I102>Hlavička!$D$8,"Doklad nepatří do této monitorovací zprávy","OK")) ->  | P102: =IF(B102="","",IF(ISERROR(VLOOKUP(B102,'Doklady k doložení'!$M$7:$O$32,3,FALSE)),"Doklad se nedokládá není větší než 10 tis. Kč",VLOOKUP(B102,'Doklady k doložení'!$M$7:$O$32,3,FALSE))) ->  | S102: -
M103: =IF(ISERROR(VLOOKUP(E103,Hlavička!$B$16:$D$100,3,FALSE)),"",IF(VLOOKUP(E103,Hlavička!$B$16:$D$100,3,FALSE)<>"","Ano","Ne")) ->  | O103: =IF(I103="","",IF(I103>Hlavička!$D$8,"Doklad nepatří do této monitorovací zprávy","OK")) ->  | P103: =IF(B103="","",IF(ISERROR(VLOOKUP(B103,'Doklady k doložení'!$M$7:$O$32,3,FALSE)),"Doklad se nedokládá není větší než 10 tis. Kč",VLOOKUP(B103,'Doklady k doložení'!$M$7:$O$32,3,FALSE))) ->  | S103: -
M104: =IF(ISERROR(VLOOKUP(E104,Hlavička!$B$16:$D$100,3,FALSE)),"",IF(VLOOKUP(E104,Hlavička!$B$16:$D$100,3,FALSE)<>"","Ano","Ne")) ->  | O104: =IF(I104="","",IF(I104>Hlavička!$D$8,"Doklad nepatří do této monitorovací zprávy","OK")) ->  | P104: =IF(B104="","",IF(ISERROR(VLOOKUP(B104,'Doklady k doložení'!$M$7:$O$32,3,FALSE)),"Doklad se nedokládá není větší než 10 tis. Kč",VLOOKUP(B104,'Doklady k doložení'!$M$7:$O$32,3,FALSE))) ->  | S104: -
M105: =IF(ISERROR(VLOOKUP(E105,Hlavička!$B$16:$D$100,3,FALSE)),"",IF(VLOOKUP(E105,Hlavička!$B$16:$D$100,3,FALSE)<>"","Ano","Ne")) ->  | O105: =IF(I105="","",IF(I105>Hlavička!$D$8,"Doklad nepatří do této monitorovací zprávy","OK")) ->  | P105: =IF(B105="","",IF(ISERROR(VLOOKUP(B105,'Doklady k doložení'!$M$7:$O$32,3,FALSE)),"Doklad se nedokládá není větší než 10 tis. Kč",VLOOKUP(B105,'Doklady k doložení'!$M$7:$O$32,3,FALSE))) ->  | S105: -
M106: =IF(ISERROR(VLOOKUP(E106,Hlavička!$B$16:$D$100,3,FALSE)),"",IF(VLOOKUP(E106,Hlavička!$B$16:$D$100,3,FALSE)<>"","Ano","Ne")) ->  | O106: =IF(I106="","",IF(I106>Hlavička!$D$8,"Doklad nepatří do této monitorovací zprávy","OK")) ->  | P106: =IF(B106="","",IF(ISERROR(VLOOKUP(B106,'Doklady k doložení'!$M$7:$O$32,3,FALSE)),"Doklad se nedokládá není větší než 10 tis. Kč",VLOOKUP(B106,'Doklady k doložení'!$M$7:$O$32,3,FALSE))) ->  | S106: -
M107: =IF(ISERROR(VLOOKUP(E107,Hlavička!$B$16:$D$100,3,FALSE)),"",IF(VLOOKUP(E107,Hlavička!$B$16:$D$100,3,FALSE)<>"","Ano","Ne")) ->  | O107: =IF(I107="","",IF(I107>Hlavička!$D$8,"Doklad nepatří do této monitorovací zprávy","OK")) ->  | P107: =IF(B107="","",IF(ISERROR(VLOOKUP(B107,'Doklady k doložení'!$M$7:$O$32,3,FALSE)),"Doklad se nedokládá není větší než 10 tis. Kč",VLOOKUP(B107,'Doklady k doložení'!$M$7:$O$32,3,FALSE))) ->  | S107: -
M108: =IF(ISERROR(VLOOKUP(E108,Hlavička!$B$16:$D$100,3,FALSE)),"",IF(VLOOKUP(E108,Hlavička!$B$16:$D$100,3,FALSE)<>"","Ano","Ne")) ->  | O108: =IF(I108="","",IF(I108>Hlavička!$D$8,"Doklad nepatří do této monitorovací zprávy","OK")) ->  | P108: =IF(B108="","",IF(ISERROR(VLOOKUP(B108,'Doklady k doložení'!$M$7:$O$32,3,FALSE)),"Doklad se nedokládá není větší než 10 tis. Kč",VLOOKUP(B108,'Doklady k doložení'!$M$7:$O$32,3,FALSE))) ->  | S108: -
M109: =IF(ISERROR(VLOOKUP(E109,Hlavička!$B$16:$D$100,3,FALSE)),"",IF(VLOOKUP(E109,Hlavička!$B$16:$D$100,3,FALSE)<>"","Ano","Ne")) ->  | O109: =IF(I109="","",IF(I109>Hlavička!$D$8,"Doklad nepatří do této monitorovací zprávy","OK")) ->  | P109: =IF(B109="","",IF(ISERROR(VLOOKUP(B109,'Doklady k doložení'!$M$7:$O$32,3,FALSE)),"Doklad se nedokládá není větší než 10 tis. Kč",VLOOKUP(B109,'Doklady k doložení'!$M$7:$O$32,3,FALSE))) ->  | S109: -
M110: =IF(ISERROR(VLOOKUP(E110,Hlavička!$B$16:$D$100,3,FALSE)),"",IF(VLOOKUP(E110,Hlavička!$B$16:$D$100,3,FALSE)<>"","Ano","Ne")) ->  | O110: =IF(I110="","",IF(I110>Hlavička!$D$8,"Doklad nepatří do této monitorovací zprávy","OK")) ->  | P110: =IF(B110="","",IF(ISERROR(VLOOKUP(B110,'Doklady k doložení'!$M$7:$O$32,3,FALSE)),"Doklad se nedokládá není větší než 10 tis. Kč",VLOOKUP(B110,'Doklady k doložení'!$M$7:$O$32,3,FALSE))) ->  | S110: -
M111: =IF(ISERROR(VLOOKUP(E111,Hlavička!$B$16:$D$100,3,FALSE)),"",IF(VLOOKUP(E111,Hlavička!$B$16:$D$100,3,FALSE)<>"","Ano","Ne")) ->  | O111: =IF(I111="","",IF(I111>Hlavička!$D$8,"Doklad nepatří do této monitorovací zprávy","OK")) ->  | P111: =IF(B111="","",IF(ISERROR(VLOOKUP(B111,'Doklady k doložení'!$M$7:$O$32,3,FALSE)),"Doklad se nedokládá není větší než 10 tis. Kč",VLOOKUP(B111,'Doklady k doložení'!$M$7:$O$32,3,FALSE))) ->  | S111: -
M112: =IF(ISERROR(VLOOKUP(E112,Hlavička!$B$16:$D$100,3,FALSE)),"",IF(VLOOKUP(E112,Hlavička!$B$16:$D$100,3,FALSE)<>"","Ano","Ne")) ->  | O112: =IF(I112="","",IF(I112>Hlavička!$D$8,"Doklad nepatří do této monitorovací zprávy","OK")) ->  | P112: =IF(B112="","",IF(ISERROR(VLOOKUP(B112,'Doklady k doložení'!$M$7:$O$32,3,FALSE)),"Doklad se nedokládá není větší než 10 tis. Kč",VLOOKUP(B112,'Doklady k doložení'!$M$7:$O$32,3,FALSE))) ->  | S112: -
M113: =IF(ISERROR(VLOOKUP(E113,Hlavička!$B$16:$D$100,3,FALSE)),"",IF(VLOOKUP(E113,Hlavička!$B$16:$D$100,3,FALSE)<>"","Ano","Ne")) ->  | O113: =IF(I113="","",IF(I113>Hlavička!$D$8,"Doklad nepatří do této monitorovací zprávy","OK")) ->  | P113: =IF(B113="","",IF(ISERROR(VLOOKUP(B113,'Doklady k doložení'!$M$7:$O$32,3,FALSE)),"Doklad se nedokládá není větší než 10 tis. Kč",VLOOKUP(B113,'Doklady k doložení'!$M$7:$O$32,3,FALSE))) ->  | S113: -
M114: =IF(ISERROR(VLOOKUP(E114,Hlavička!$B$16:$D$100,3,FALSE)),"",IF(VLOOKUP(E114,Hlavička!$B$16:$D$100,3,FALSE)<>"","Ano","Ne")) ->  | O114: =IF(I114="","",IF(I114>Hlavička!$D$8,"Doklad nepatří do této monitorovací zprávy","OK")) ->  | P114: =IF(B114="","",IF(ISERROR(VLOOKUP(B114,'Doklady k doložení'!$M$7:$O$32,3,FALSE)),"Doklad se nedokládá není větší než 10 tis. Kč",VLOOKUP(B114,'Doklady k doložení'!$M$7:$O$32,3,FALSE))) ->  | S114: -
M115: =IF(ISERROR(VLOOKUP(E115,Hlavička!$B$16:$D$100,3,FALSE)),"",IF(VLOOKUP(E115,Hlavička!$B$16:$D$100,3,FALSE)<>"","Ano","Ne")) ->  | O115: =IF(I115="","",IF(I115>Hlavička!$D$8,"Doklad nepatří do této monitorovací zprávy","OK")) ->  | P115: =IF(B115="","",IF(ISERROR(VLOOKUP(B115,'Doklady k doložení'!$M$7:$O$32,3,FALSE)),"Doklad se nedokládá není větší než 10 tis. Kč",VLOOKUP(B115,'Doklady k doložení'!$M$7:$O$32,3,FALSE))) ->  | S115: -
M116: =IF(ISERROR(VLOOKUP(E116,Hlavička!$B$16:$D$100,3,FALSE)),"",IF(VLOOKUP(E116,Hlavička!$B$16:$D$100,3,FALSE)<>"","Ano","Ne")) ->  | O116: =IF(I116="","",IF(I116>Hlavička!$D$8,"Doklad nepatří do této monitorovací zprávy","OK")) ->  | P116: =IF(B116="","",IF(ISERROR(VLOOKUP(B116,'Doklady k doložení'!$M$7:$O$32,3,FALSE)),"Doklad se nedokládá není větší než 10 tis. Kč",VLOOKUP(B116,'Doklady k doložení'!$M$7:$O$32,3,FALSE))) ->  | S116: -
M117: =IF(ISERROR(VLOOKUP(E117,Hlavička!$B$16:$D$100,3,FALSE)),"",IF(VLOOKUP(E117,Hlavička!$B$16:$D$100,3,FALSE)<>"","Ano","Ne")) ->  | O117: =IF(I117="","",IF(I117>Hlavička!$D$8,"Doklad nepatří do této monitorovací zprávy","OK")) ->  | P117: =IF(B117="","",IF(ISERROR(VLOOKUP(B117,'Doklady k doložení'!$M$7:$O$32,3,FALSE)),"Doklad se nedokládá není větší než 10 tis. Kč",VLOOKUP(B117,'Doklady k doložení'!$M$7:$O$32,3,FALSE))) ->  | S117: -
M118: =IF(ISERROR(VLOOKUP(E118,Hlavička!$B$16:$D$100,3,FALSE)),"",IF(VLOOKUP(E118,Hlavička!$B$16:$D$100,3,FALSE)<>"","Ano","Ne")) ->  | O118: =IF(I118="","",IF(I118>Hlavička!$D$8,"Doklad nepatří do této monitorovací zprávy","OK")) ->  | P118: =IF(B118="","",IF(ISERROR(VLOOKUP(B118,'Doklady k doložení'!$M$7:$O$32,3,FALSE)),"Doklad se nedokládá není větší než 10 tis. Kč",VLOOKUP(B118,'Doklady k doložení'!$M$7:$O$32,3,FALSE))) ->  | S118: -
M119: =IF(ISERROR(VLOOKUP(E119,Hlavička!$B$16:$D$100,3,FALSE)),"",IF(VLOOKUP(E119,Hlavička!$B$16:$D$100,3,FALSE)<>"","Ano","Ne")) ->  | O119: =IF(I119="","",IF(I119>Hlavička!$D$8,"Doklad nepatří do této monitorovací zprávy","OK")) ->  | P119: =IF(B119="","",IF(ISERROR(VLOOKUP(B119,'Doklady k doložení'!$M$7:$O$32,3,FALSE)),"Doklad se nedokládá není větší než 10 tis. Kč",VLOOKUP(B119,'Doklady k doložení'!$M$7:$O$32,3,FALSE))) ->  | S119: -
M120: =IF(ISERROR(VLOOKUP(E120,Hlavička!$B$16:$D$100,3,FALSE)),"",IF(VLOOKUP(E120,Hlavička!$B$16:$D$100,3,FALSE)<>"","Ano","Ne")) ->  | O120: =IF(I120="","",IF(I120>Hlavička!$D$8,"Doklad nepatří do této monitorovací zprávy","OK")) ->  | P120: =IF(B120="","",IF(ISERROR(VLOOKUP(B120,'Doklady k doložení'!$M$7:$O$32,3,FALSE)),"Doklad se nedokládá není větší než 10 tis. Kč",VLOOKUP(B120,'Doklady k doložení'!$M$7:$O$32,3,FALSE))) ->  | S120: -
M121: =IF(ISERROR(VLOOKUP(E121,Hlavička!$B$16:$D$100,3,FALSE)),"",IF(VLOOKUP(E121,Hlavička!$B$16:$D$100,3,FALSE)<>"","Ano","Ne")) ->  | O121: =IF(I121="","",IF(I121>Hlavička!$D$8,"Doklad nepatří do této monitorovací zprávy","OK")) ->  | P121: =IF(B121="","",IF(ISERROR(VLOOKUP(B121,'Doklady k doložení'!$M$7:$O$32,3,FALSE)),"Doklad se nedokládá není větší než 10 tis. Kč",VLOOKUP(B121,'Doklady k doložení'!$M$7:$O$32,3,FALSE))) ->  | S121: -
M122: =IF(ISERROR(VLOOKUP(E122,Hlavička!$B$16:$D$100,3,FALSE)),"",IF(VLOOKUP(E122,Hlavička!$B$16:$D$100,3,FALSE)<>"","Ano","Ne")) ->  | O122: =IF(I122="","",IF(I122>Hlavička!$D$8,"Doklad nepatří do této monitorovací zprávy","OK")) ->  | P122: =IF(B122="","",IF(ISERROR(VLOOKUP(B122,'Doklady k doložení'!$M$7:$O$32,3,FALSE)),"Doklad se nedokládá není větší než 10 tis. Kč",VLOOKUP(B122,'Doklady k doložení'!$M$7:$O$32,3,FALSE))) ->  | S122: -
M123: =IF(ISERROR(VLOOKUP(E123,Hlavička!$B$16:$D$100,3,FALSE)),"",IF(VLOOKUP(E123,Hlavička!$B$16:$D$100,3,FALSE)<>"","Ano","Ne")) ->  | O123: =IF(I123="","",IF(I123>Hlavička!$D$8,"Doklad nepatří do této monitorovací zprávy","OK")) ->  | P123: =IF(B123="","",IF(ISERROR(VLOOKUP(B123,'Doklady k doložení'!$M$7:$O$32,3,FALSE)),"Doklad se nedokládá není větší než 10 tis. Kč",VLOOKUP(B123,'Doklady k doložení'!$M$7:$O$32,3,FALSE))) ->  | S123: -
M124: =IF(ISERROR(VLOOKUP(E124,Hlavička!$B$16:$D$100,3,FALSE)),"",IF(VLOOKUP(E124,Hlavička!$B$16:$D$100,3,FALSE)<>"","Ano","Ne")) ->  | O124: =IF(I124="","",IF(I124>Hlavička!$D$8,"Doklad nepatří do této monitorovací zprávy","OK")) ->  | P124: =IF(B124="","",IF(ISERROR(VLOOKUP(B124,'Doklady k doložení'!$M$7:$O$32,3,FALSE)),"Doklad se nedokládá není větší než 10 tis. Kč",VLOOKUP(B124,'Doklady k doložení'!$M$7:$O$32,3,FALSE))) ->  | S124: -
M125: =IF(ISERROR(VLOOKUP(E125,Hlavička!$B$16:$D$100,3,FALSE)),"",IF(VLOOKUP(E125,Hlavička!$B$16:$D$100,3,FALSE)<>"","Ano","Ne")) ->  | O125: =IF(I125="","",IF(I125>Hlavička!$D$8,"Doklad nepatří do této monitorovací zprávy","OK")) ->  | P125: =IF(B125="","",IF(ISERROR(VLOOKUP(B125,'Doklady k doložení'!$M$7:$O$32,3,FALSE)),"Doklad se nedokládá není větší než 10 tis. Kč",VLOOKUP(B125,'Doklady k doložení'!$M$7:$O$32,3,FALSE))) ->  | S125: -
M126: =IF(ISERROR(VLOOKUP(E126,Hlavička!$B$16:$D$100,3,FALSE)),"",IF(VLOOKUP(E126,Hlavička!$B$16:$D$100,3,FALSE)<>"","Ano","Ne")) ->  | O126: =IF(I126="","",IF(I126>Hlavička!$D$8,"Doklad nepatří do této monitorovací zprávy","OK")) ->  | P126: =IF(B126="","",IF(ISERROR(VLOOKUP(B126,'Doklady k doložení'!$M$7:$O$32,3,FALSE)),"Doklad se nedokládá není větší než 10 tis. Kč",VLOOKUP(B126,'Doklady k doložení'!$M$7:$O$32,3,FALSE))) ->  | S126: -
M127: =IF(ISERROR(VLOOKUP(E127,Hlavička!$B$16:$D$100,3,FALSE)),"",IF(VLOOKUP(E127,Hlavička!$B$16:$D$100,3,FALSE)<>"","Ano","Ne")) ->  | O127: =IF(I127="","",IF(I127>Hlavička!$D$8,"Doklad nepatří do této monitorovací zprávy","OK")) ->  | P127: =IF(B127="","",IF(ISERROR(VLOOKUP(B127,'Doklady k doložení'!$M$7:$O$32,3,FALSE)),"Doklad se nedokládá není větší než 10 tis. Kč",VLOOKUP(B127,'Doklady k doložení'!$M$7:$O$32,3,FALSE))) ->  | S127: -
M128: =IF(ISERROR(VLOOKUP(E128,Hlavička!$B$16:$D$100,3,FALSE)),"",IF(VLOOKUP(E128,Hlavička!$B$16:$D$100,3,FALSE)<>"","Ano","Ne")) ->  | O128: =IF(I128="","",IF(I128>Hlavička!$D$8,"Doklad nepatří do této monitorovací zprávy","OK")) ->  | P128: =IF(B128="","",IF(ISERROR(VLOOKUP(B128,'Doklady k doložení'!$M$7:$O$32,3,FALSE)),"Doklad se nedokládá není větší než 10 tis. Kč",VLOOKUP(B128,'Doklady k doložení'!$M$7:$O$32,3,FALSE))) ->  | S128: -
M129: =IF(ISERROR(VLOOKUP(E129,Hlavička!$B$16:$D$100,3,FALSE)),"",IF(VLOOKUP(E129,Hlavička!$B$16:$D$100,3,FALSE)<>"","Ano","Ne")) ->  | O129: =IF(I129="","",IF(I129>Hlavička!$D$8,"Doklad nepatří do této monitorovací zprávy","OK")) ->  | P129: =IF(B129="","",IF(ISERROR(VLOOKUP(B129,'Doklady k doložení'!$M$7:$O$32,3,FALSE)),"Doklad se nedokládá není větší než 10 tis. Kč",VLOOKUP(B129,'Doklady k doložení'!$M$7:$O$32,3,FALSE))) ->  | S129: -
M130: =IF(ISERROR(VLOOKUP(E130,Hlavička!$B$16:$D$100,3,FALSE)),"",IF(VLOOKUP(E130,Hlavička!$B$16:$D$100,3,FALSE)<>"","Ano","Ne")) ->  | O130: =IF(I130="","",IF(I130>Hlavička!$D$8,"Doklad nepatří do této monitorovací zprávy","OK")) ->  | P130: =IF(B130="","",IF(ISERROR(VLOOKUP(B130,'Doklady k doložení'!$M$7:$O$32,3,FALSE)),"Doklad se nedokládá není větší než 10 tis. Kč",VLOOKUP(B130,'Doklady k doložení'!$M$7:$O$32,3,FALSE))) ->  | S130: -
M131: =IF(ISERROR(VLOOKUP(E131,Hlavička!$B$16:$D$100,3,FALSE)),"",IF(VLOOKUP(E131,Hlavička!$B$16:$D$100,3,FALSE)<>"","Ano","Ne")) ->  | O131: =IF(I131="","",IF(I131>Hlavička!$D$8,"Doklad nepatří do této monitorovací zprávy","OK")) ->  | P131: =IF(B131="","",IF(ISERROR(VLOOKUP(B131,'Doklady k doložení'!$M$7:$O$32,3,FALSE)),"Doklad se nedokládá není větší než 10 tis. Kč",VLOOKUP(B131,'Doklady k doložení'!$M$7:$O$32,3,FALSE))) ->  | S131: -
M132: =IF(ISERROR(VLOOKUP(E132,Hlavička!$B$16:$D$100,3,FALSE)),"",IF(VLOOKUP(E132,Hlavička!$B$16:$D$100,3,FALSE)<>"","Ano","Ne")) ->  | O132: =IF(I132="","",IF(I132>Hlavička!$D$8,"Doklad nepatří do této monitorovací zprávy","OK")) ->  | P132: =IF(B132="","",IF(ISERROR(VLOOKUP(B132,'Doklady k doložení'!$M$7:$O$32,3,FALSE)),"Doklad se nedokládá není větší než 10 tis. Kč",VLOOKUP(B132,'Doklady k doložení'!$M$7:$O$32,3,FALSE))) ->  | S132: -
M133: =IF(ISERROR(VLOOKUP(E133,Hlavička!$B$16:$D$100,3,FALSE)),"",IF(VLOOKUP(E133,Hlavička!$B$16:$D$100,3,FALSE)<>"","Ano","Ne")) ->  | O133: =IF(I133="","",IF(I133>Hlavička!$D$8,"Doklad nepatří do této monitorovací zprávy","OK")) ->  | P133: =IF(B133="","",IF(ISERROR(VLOOKUP(B133,'Doklady k doložení'!$M$7:$O$32,3,FALSE)),"Doklad se nedokládá není větší než 10 tis. Kč",VLOOKUP(B133,'Doklady k doložení'!$M$7:$O$32,3,FALSE))) ->  | S133: -
M134: =IF(ISERROR(VLOOKUP(E134,Hlavička!$B$16:$D$100,3,FALSE)),"",IF(VLOOKUP(E134,Hlavička!$B$16:$D$100,3,FALSE)<>"","Ano","Ne")) ->  | O134: =IF(I134="","",IF(I134>Hlavička!$D$8,"Doklad nepatří do této monitorovací zprávy","OK")) ->  | P134: =IF(B134="","",IF(ISERROR(VLOOKUP(B134,'Doklady k doložení'!$M$7:$O$32,3,FALSE)),"Doklad se nedokládá není větší než 10 tis. Kč",VLOOKUP(B134,'Doklady k doložení'!$M$7:$O$32,3,FALSE))) ->  | S134: -
M135: =IF(ISERROR(VLOOKUP(E135,Hlavička!$B$16:$D$100,3,FALSE)),"",IF(VLOOKUP(E135,Hlavička!$B$16:$D$100,3,FALSE)<>"","Ano","Ne")) ->  | O135: =IF(I135="","",IF(I135>Hlavička!$D$8,"Doklad nepatří do této monitorovací zprávy","OK")) ->  | P135: =IF(B135="","",IF(ISERROR(VLOOKUP(B135,'Doklady k doložení'!$M$7:$O$32,3,FALSE)),"Doklad se nedokládá není větší než 10 tis. Kč",VLOOKUP(B135,'Doklady k doložení'!$M$7:$O$32,3,FALSE))) ->  | S135: -
M136: =IF(ISERROR(VLOOKUP(E136,Hlavička!$B$16:$D$100,3,FALSE)),"",IF(VLOOKUP(E136,Hlavička!$B$16:$D$100,3,FALSE)<>"","Ano","Ne")) ->  | O136: =IF(I136="","",IF(I136>Hlavička!$D$8,"Doklad nepatří do této monitorovací zprávy","OK")) ->  | P136: =IF(B136="","",IF(ISERROR(VLOOKUP(B136,'Doklady k doložení'!$M$7:$O$32,3,FALSE)),"Doklad se nedokládá není větší než 10 tis. Kč",VLOOKUP(B136,'Doklady k doložení'!$M$7:$O$32,3,FALSE))) ->  | S136: -
M137: =IF(ISERROR(VLOOKUP(E137,Hlavička!$B$16:$D$100,3,FALSE)),"",IF(VLOOKUP(E137,Hlavička!$B$16:$D$100,3,FALSE)<>"","Ano","Ne")) ->  | O137: =IF(I137="","",IF(I137>Hlavička!$D$8,"Doklad nepatří do této monitorovací zprávy","OK")) ->  | P137: =IF(B137="","",IF(ISERROR(VLOOKUP(B137,'Doklady k doložení'!$M$7:$O$32,3,FALSE)),"Doklad se nedokládá není větší než 10 tis. Kč",VLOOKUP(B137,'Doklady k doložení'!$M$7:$O$32,3,FALSE))) ->  | S137: -
M138: =IF(ISERROR(VLOOKUP(E138,Hlavička!$B$16:$D$100,3,FALSE)),"",IF(VLOOKUP(E138,Hlavička!$B$16:$D$100,3,FALSE)<>"","Ano","Ne")) ->  | O138: =IF(I138="","",IF(I138>Hlavička!$D$8,"Doklad nepatří do této monitorovací zprávy","OK")) ->  | P138: =IF(B138="","",IF(ISERROR(VLOOKUP(B138,'Doklady k doložení'!$M$7:$O$32,3,FALSE)),"Doklad se nedokládá není větší než 10 tis. Kč",VLOOKUP(B138,'Doklady k doložení'!$M$7:$O$32,3,FALSE))) ->  | S138: -
M139: =IF(ISERROR(VLOOKUP(E139,Hlavička!$B$16:$D$100,3,FALSE)),"",IF(VLOOKUP(E139,Hlavička!$B$16:$D$100,3,FALSE)<>"","Ano","Ne")) ->  | O139: =IF(I139="","",IF(I139>Hlavička!$D$8,"Doklad nepatří do této monitorovací zprávy","OK")) ->  | P139: =IF(B139="","",IF(ISERROR(VLOOKUP(B139,'Doklady k doložení'!$M$7:$O$32,3,FALSE)),"Doklad se nedokládá není větší než 10 tis. Kč",VLOOKUP(B139,'Doklady k doložení'!$M$7:$O$32,3,FALSE))) ->  | S139: -
M140: =IF(ISERROR(VLOOKUP(E140,Hlavička!$B$16:$D$100,3,FALSE)),"",IF(VLOOKUP(E140,Hlavička!$B$16:$D$100,3,FALSE)<>"","Ano","Ne")) ->  | O140: =IF(I140="","",IF(I140>Hlavička!$D$8,"Doklad nepatří do této monitorovací zprávy","OK")) ->  | P140: =IF(B140="","",IF(ISERROR(VLOOKUP(B140,'Doklady k doložení'!$M$7:$O$32,3,FALSE)),"Doklad se nedokládá není větší než 10 tis. Kč",VLOOKUP(B140,'Doklady k doložení'!$M$7:$O$32,3,FALSE))) ->  | S140: -
M141: =IF(ISERROR(VLOOKUP(E141,Hlavička!$B$16:$D$100,3,FALSE)),"",IF(VLOOKUP(E141,Hlavička!$B$16:$D$100,3,FALSE)<>"","Ano","Ne")) ->  | O141: =IF(I141="","",IF(I141>Hlavička!$D$8,"Doklad nepatří do této monitorovací zprávy","OK")) ->  | P141: =IF(B141="","",IF(ISERROR(VLOOKUP(B141,'Doklady k doložení'!$M$7:$O$32,3,FALSE)),"Doklad se nedokládá není větší než 10 tis. Kč",VLOOKUP(B141,'Doklady k doložení'!$M$7:$O$32,3,FALSE))) ->  | S141: -
A142: =IF(OR(B142<>"",C142<>"",E142<>"",F142<>"",H142<>"",I142<>""),"Vyplněno",IF(B142="Prázdné","","")) ->  | M142: =IF(ISERROR(VLOOKUP(E142,Hlavička!$B$16:$D$100,3,FALSE)),"",IF(VLOOKUP(E142,Hlavička!$B$16:$D$100,3,FALSE)<>"","Ano","Ne")) ->  | N142: =IF(AND(H142="",I142=""),"",IF(I142<>"",I142,IF(AND(J142="Ne",H142<>""),H142,"Chybí datum úhrady!"))) ->  | O142: =IF(I142="","",IF(I142>Hlavička!$D$8,"Doklad nepatří do této monitorovací zprávy","OK")) ->  | P142: =IF(B142="","",IF(ISERROR(VLOOKUP(B142,'Doklady k doložení'!$M$7:$O$32,3,FALSE)),"Doklad se nedokládá není větší než 10 tis. Kč",VLOOKUP(B142,'Doklady k doložení'!$M$7:$O$32,3,FALSE))) ->  | S142: =B142&" - "&K142 -> -
M143: =IF(ISERROR(VLOOKUP(E143,Hlavička!$B$16:$D$100,3,FALSE)),"",IF(VLOOKUP(E143,Hlavička!$B$16:$D$100,3,FALSE)<>"","Ano","Ne")) ->  | O143: =IF(I143="","",IF(I143>Hlavička!$D$8,"Doklad nepatří do této monitorovací zprávy","OK")) ->  | P143: =IF(B143="","",IF(ISERROR(VLOOKUP(B143,'Doklady k doložení'!$M$7:$O$32,3,FALSE)),"Doklad se nedokládá není větší než 10 tis. Kč",VLOOKUP(B143,'Doklady k doložení'!$M$7:$O$32,3,FALSE))) ->  | S143: -
M144: =IF(ISERROR(VLOOKUP(E144,Hlavička!$B$16:$D$100,3,FALSE)),"",IF(VLOOKUP(E144,Hlavička!$B$16:$D$100,3,FALSE)<>"","Ano","Ne")) ->  | O144: =IF(I144="","",IF(I144>Hlavička!$D$8,"Doklad nepatří do této monitorovací zprávy","OK")) ->  | P144: =IF(B144="","",IF(ISERROR(VLOOKUP(B144,'Doklady k doložení'!$M$7:$O$32,3,FALSE)),"Doklad se nedokládá není větší než 10 tis. Kč",VLOOKUP(B144,'Doklady k doložení'!$M$7:$O$32,3,FALSE))) ->  | S144: -
M145: =IF(ISERROR(VLOOKUP(E145,Hlavička!$B$16:$D$100,3,FALSE)),"",IF(VLOOKUP(E145,Hlavička!$B$16:$D$100,3,FALSE)<>"","Ano","Ne")) ->  | O145: =IF(I145="","",IF(I145>Hlavička!$D$8,"Doklad nepatří do této monitorovací zprávy","OK")) ->  | P145: =IF(B145="","",IF(ISERROR(VLOOKUP(B145,'Doklady k doložení'!$M$7:$O$32,3,FALSE)),"Doklad se nedokládá není větší než 10 tis. Kč",VLOOKUP(B145,'Doklady k doložení'!$M$7:$O$32,3,FALSE))) ->  | S145: -
M146: =IF(ISERROR(VLOOKUP(E146,Hlavička!$B$16:$D$100,3,FALSE)),"",IF(VLOOKUP(E146,Hlavička!$B$16:$D$100,3,FALSE)<>"","Ano","Ne")) ->  | O146: =IF(I146="","",IF(I146>Hlavička!$D$8,"Doklad nepatří do této monitorovací zprávy","OK")) ->  | P146: =IF(B146="","",IF(ISERROR(VLOOKUP(B146,'Doklady k doložení'!$M$7:$O$32,3,FALSE)),"Doklad se nedokládá není větší než 10 tis. Kč",VLOOKUP(B146,'Doklady k doložení'!$M$7:$O$32,3,FALSE))) ->  | S146: -
M147: =IF(ISERROR(VLOOKUP(E147,Hlavička!$B$16:$D$100,3,FALSE)),"",IF(VLOOKUP(E147,Hlavička!$B$16:$D$100,3,FALSE)<>"","Ano","Ne")) ->  | O147: =IF(I147="","",IF(I147>Hlavička!$D$8,"Doklad nepatří do této monitorovací zprávy","OK")) ->  | P147: =IF(B147="","",IF(ISERROR(VLOOKUP(B147,'Doklady k doložení'!$M$7:$O$32,3,FALSE)),"Doklad se nedokládá není větší než 10 tis. Kč",VLOOKUP(B147,'Doklady k doložení'!$M$7:$O$32,3,FALSE))) ->  | S147: -
M148: =IF(ISERROR(VLOOKUP(E148,Hlavička!$B$16:$D$100,3,FALSE)),"",IF(VLOOKUP(E148,Hlavička!$B$16:$D$100,3,FALSE)<>"","Ano","Ne")) ->  | O148: =IF(I148="","",IF(I148>Hlavička!$D$8,"Doklad nepatří do této monitorovací zprávy","OK")) ->  | P148: =IF(B148="","",IF(ISERROR(VLOOKUP(B148,'Doklady k doložení'!$M$7:$O$32,3,FALSE)),"Doklad se nedokládá není větší než 10 tis. Kč",VLOOKUP(B148,'Doklady k doložení'!$M$7:$O$32,3,FALSE))) ->  | S148: -
M149: =IF(ISERROR(VLOOKUP(E149,Hlavička!$B$16:$D$100,3,FALSE)),"",IF(VLOOKUP(E149,Hlavička!$B$16:$D$100,3,FALSE)<>"","Ano","Ne")) ->  | O149: =IF(I149="","",IF(I149>Hlavička!$D$8,"Doklad nepatří do této monitorovací zprávy","OK")) ->  | P149: =IF(B149="","",IF(ISERROR(VLOOKUP(B149,'Doklady k doložení'!$M$7:$O$32,3,FALSE)),"Doklad se nedokládá není větší než 10 tis. Kč",VLOOKUP(B149,'Doklady k doložení'!$M$7:$O$32,3,FALSE))) ->  | S149: -
M150: =IF(ISERROR(VLOOKUP(E150,Hlavička!$B$16:$D$100,3,FALSE)),"",IF(VLOOKUP(E150,Hlavička!$B$16:$D$100,3,FALSE)<>"","Ano","Ne")) ->  | O150: =IF(I150="","",IF(I150>Hlavička!$D$8,"Doklad nepatří do této monitorovací zprávy","OK")) ->  | P150: =IF(B150="","",IF(ISERROR(VLOOKUP(B150,'Doklady k doložení'!$M$7:$O$32,3,FALSE)),"Doklad se nedokládá není větší než 10 tis. Kč",VLOOKUP(B150,'Doklady k doložení'!$M$7:$O$32,3,FALSE))) ->  | S150: -
M151: =IF(ISERROR(VLOOKUP(E151,Hlavička!$B$16:$D$100,3,FALSE)),"",IF(VLOOKUP(E151,Hlavička!$B$16:$D$100,3,FALSE)<>"","Ano","Ne")) ->  | O151: =IF(I151="","",IF(I151>Hlavička!$D$8,"Doklad nepatří do této monitorovací zprávy","OK")) ->  | P151: =IF(B151="","",IF(ISERROR(VLOOKUP(B151,'Doklady k doložení'!$M$7:$O$32,3,FALSE)),"Doklad se nedokládá není větší než 10 tis. Kč",VLOOKUP(B151,'Doklady k doložení'!$M$7:$O$32,3,FALSE))) ->  | S151: -
M152: =IF(ISERROR(VLOOKUP(E152,Hlavička!$B$16:$D$100,3,FALSE)),"",IF(VLOOKUP(E152,Hlavička!$B$16:$D$100,3,FALSE)<>"","Ano","Ne")) ->  | O152: =IF(I152="","",IF(I152>Hlavička!$D$8,"Doklad nepatří do této monitorovací zprávy","OK")) ->  | P152: =IF(B152="","",IF(ISERROR(VLOOKUP(B152,'Doklady k doložení'!$M$7:$O$32,3,FALSE)),"Doklad se nedokládá není větší než 10 tis. Kč",VLOOKUP(B152,'Doklady k doložení'!$M$7:$O$32,3,FALSE))) ->  | S152: -
M153: =IF(ISERROR(VLOOKUP(E153,Hlavička!$B$16:$D$100,3,FALSE)),"",IF(VLOOKUP(E153,Hlavička!$B$16:$D$100,3,FALSE)<>"","Ano","Ne")) ->  | O153: =IF(I153="","",IF(I153>Hlavička!$D$8,"Doklad nepatří do této monitorovací zprávy","OK")) ->  | P153: =IF(B153="","",IF(ISERROR(VLOOKUP(B153,'Doklady k doložení'!$M$7:$O$32,3,FALSE)),"Doklad se nedokládá není větší než 10 tis. Kč",VLOOKUP(B153,'Doklady k doložení'!$M$7:$O$32,3,FALSE))) ->  | S153: -
M154: =IF(ISERROR(VLOOKUP(E154,Hlavička!$B$16:$D$100,3,FALSE)),"",IF(VLOOKUP(E154,Hlavička!$B$16:$D$100,3,FALSE)<>"","Ano","Ne")) ->  | O154: =IF(I154="","",IF(I154>Hlavička!$D$8,"Doklad nepatří do této monitorovací zprávy","OK")) ->  | P154: =IF(B154="","",IF(ISERROR(VLOOKUP(B154,'Doklady k doložení'!$M$7:$O$32,3,FALSE)),"Doklad se nedokládá není větší než 10 tis. Kč",VLOOKUP(B154,'Doklady k doložení'!$M$7:$O$32,3,FALSE))) ->  | S154: -
M155: =IF(ISERROR(VLOOKUP(E155,Hlavička!$B$16:$D$100,3,FALSE)),"",IF(VLOOKUP(E155,Hlavička!$B$16:$D$100,3,FALSE)<>"","Ano","Ne")) ->  | O155: =IF(I155="","",IF(I155>Hlavička!$D$8,"Doklad nepatří do této monitorovací zprávy","OK")) ->  | P155: =IF(B155="","",IF(ISERROR(VLOOKUP(B155,'Doklady k doložení'!$M$7:$O$32,3,FALSE)),"Doklad se nedokládá není větší než 10 tis. Kč",VLOOKUP(B155,'Doklady k doložení'!$M$7:$O$32,3,FALSE))) ->  | S155: -
M156: =IF(ISERROR(VLOOKUP(E156,Hlavička!$B$16:$D$100,3,FALSE)),"",IF(VLOOKUP(E156,Hlavička!$B$16:$D$100,3,FALSE)<>"","Ano","Ne")) ->  | O156: =IF(I156="","",IF(I156>Hlavička!$D$8,"Doklad nepatří do této monitorovací zprávy","OK")) ->  | P156: =IF(B156="","",IF(ISERROR(VLOOKUP(B156,'Doklady k doložení'!$M$7:$O$32,3,FALSE)),"Doklad se nedokládá není větší než 10 tis. Kč",VLOOKUP(B156,'Doklady k doložení'!$M$7:$O$32,3,FALSE))) ->  | S156: -
M157: =IF(ISERROR(VLOOKUP(E157,Hlavička!$B$16:$D$100,3,FALSE)),"",IF(VLOOKUP(E157,Hlavička!$B$16:$D$100,3,FALSE)<>"","Ano","Ne")) ->  | O157: =IF(I157="","",IF(I157>Hlavička!$D$8,"Doklad nepatří do této monitorovací zprávy","OK")) ->  | P157: =IF(B157="","",IF(ISERROR(VLOOKUP(B157,'Doklady k doložení'!$M$7:$O$32,3,FALSE)),"Doklad se nedokládá není větší než 10 tis. Kč",VLOOKUP(B157,'Doklady k doložení'!$M$7:$O$32,3,FALSE))) ->  | S157: -
M158: =IF(ISERROR(VLOOKUP(E158,Hlavička!$B$16:$D$100,3,FALSE)),"",IF(VLOOKUP(E158,Hlavička!$B$16:$D$100,3,FALSE)<>"","Ano","Ne")) ->  | O158: =IF(I158="","",IF(I158>Hlavička!$D$8,"Doklad nepatří do této monitorovací zprávy","OK")) ->  | P158: =IF(B158="","",IF(ISERROR(VLOOKUP(B158,'Doklady k doložení'!$M$7:$O$32,3,FALSE)),"Doklad se nedokládá není větší než 10 tis. Kč",VLOOKUP(B158,'Doklady k doložení'!$M$7:$O$32,3,FALSE))) ->  | S158: -
M159: =IF(ISERROR(VLOOKUP(E159,Hlavička!$B$16:$D$100,3,FALSE)),"",IF(VLOOKUP(E159,Hlavička!$B$16:$D$100,3,FALSE)<>"","Ano","Ne")) ->  | O159: =IF(I159="","",IF(I159>Hlavička!$D$8,"Doklad nepatří do této monitorovací zprávy","OK")) ->  | P159: =IF(B159="","",IF(ISERROR(VLOOKUP(B159,'Doklady k doložení'!$M$7:$O$32,3,FALSE)),"Doklad se nedokládá není větší než 10 tis. Kč",VLOOKUP(B159,'Doklady k doložení'!$M$7:$O$32,3,FALSE))) ->  | S159: -
M160: =IF(ISERROR(VLOOKUP(E160,Hlavička!$B$16:$D$100,3,FALSE)),"",IF(VLOOKUP(E160,Hlavička!$B$16:$D$100,3,FALSE)<>"","Ano","Ne")) ->  | O160: =IF(I160="","",IF(I160>Hlavička!$D$8,"Doklad nepatří do této monitorovací zprávy","OK")) ->  | P160: =IF(B160="","",IF(ISERROR(VLOOKUP(B160,'Doklady k doložení'!$M$7:$O$32,3,FALSE)),"Doklad se nedokládá není větší než 10 tis. Kč",VLOOKUP(B160,'Doklady k doložení'!$M$7:$O$32,3,FALSE))) ->  | S160: -
M161: =IF(ISERROR(VLOOKUP(E161,Hlavička!$B$16:$D$100,3,FALSE)),"",IF(VLOOKUP(E161,Hlavička!$B$16:$D$100,3,FALSE)<>"","Ano","Ne")) ->  | O161: =IF(I161="","",IF(I161>Hlavička!$D$8,"Doklad nepatří do této monitorovací zprávy","OK")) ->  | P161: =IF(B161="","",IF(ISERROR(VLOOKUP(B161,'Doklady k doložení'!$M$7:$O$32,3,FALSE)),"Doklad se nedokládá není větší než 10 tis. Kč",VLOOKUP(B161,'Doklady k doložení'!$M$7:$O$32,3,FALSE))) ->  | S161: -
M162: =IF(ISERROR(VLOOKUP(E162,Hlavička!$B$16:$D$100,3,FALSE)),"",IF(VLOOKUP(E162,Hlavička!$B$16:$D$100,3,FALSE)<>"","Ano","Ne")) ->  | O162: =IF(I162="","",IF(I162>Hlavička!$D$8,"Doklad nepatří do této monitorovací zprávy","OK")) ->  | P162: =IF(B162="","",IF(ISERROR(VLOOKUP(B162,'Doklady k doložení'!$M$7:$O$32,3,FALSE)),"Doklad se nedokládá není větší než 10 tis. Kč",VLOOKUP(B162,'Doklady k doložení'!$M$7:$O$32,3,FALSE))) ->  | S162: -
M163: =IF(ISERROR(VLOOKUP(E163,Hlavička!$B$16:$D$100,3,FALSE)),"",IF(VLOOKUP(E163,Hlavička!$B$16:$D$100,3,FALSE)<>"","Ano","Ne")) ->  | O163: =IF(I163="","",IF(I163>Hlavička!$D$8,"Doklad nepatří do této monitorovací zprávy","OK")) ->  | P163: =IF(B163="","",IF(ISERROR(VLOOKUP(B163,'Doklady k doložení'!$M$7:$O$32,3,FALSE)),"Doklad se nedokládá není větší než 10 tis. Kč",VLOOKUP(B163,'Doklady k doložení'!$M$7:$O$32,3,FALSE))) ->  | S163: -
M164: =IF(ISERROR(VLOOKUP(E164,Hlavička!$B$16:$D$100,3,FALSE)),"",IF(VLOOKUP(E164,Hlavička!$B$16:$D$100,3,FALSE)<>"","Ano","Ne")) ->  | O164: =IF(I164="","",IF(I164>Hlavička!$D$8,"Doklad nepatří do této monitorovací zprávy","OK")) ->  | P164: =IF(B164="","",IF(ISERROR(VLOOKUP(B164,'Doklady k doložení'!$M$7:$O$32,3,FALSE)),"Doklad se nedokládá není větší než 10 tis. Kč",VLOOKUP(B164,'Doklady k doložení'!$M$7:$O$32,3,FALSE))) ->  | S164: -
M165: =IF(ISERROR(VLOOKUP(E165,Hlavička!$B$16:$D$100,3,FALSE)),"",IF(VLOOKUP(E165,Hlavička!$B$16:$D$100,3,FALSE)<>"","Ano","Ne")) ->  | O165: =IF(I165="","",IF(I165>Hlavička!$D$8,"Doklad nepatří do této monitorovací zprávy","OK")) ->  | P165: =IF(B165="","",IF(ISERROR(VLOOKUP(B165,'Doklady k doložení'!$M$7:$O$32,3,FALSE)),"Doklad se nedokládá není větší než 10 tis. Kč",VLOOKUP(B165,'Doklady k doložení'!$M$7:$O$32,3,FALSE))) ->  | S165: -
M166: =IF(ISERROR(VLOOKUP(E166,Hlavička!$B$16:$D$100,3,FALSE)),"",IF(VLOOKUP(E166,Hlavička!$B$16:$D$100,3,FALSE)<>"","Ano","Ne")) ->  | O166: =IF(I166="","",IF(I166>Hlavička!$D$8,"Doklad nepatří do této monitorovací zprávy","OK")) ->  | P166: =IF(B166="","",IF(ISERROR(VLOOKUP(B166,'Doklady k doložení'!$M$7:$O$32,3,FALSE)),"Doklad se nedokládá není větší než 10 tis. Kč",VLOOKUP(B166,'Doklady k doložení'!$M$7:$O$32,3,FALSE))) ->  | S166: -
M167: =IF(ISERROR(VLOOKUP(E167,Hlavička!$B$16:$D$100,3,FALSE)),"",IF(VLOOKUP(E167,Hlavička!$B$16:$D$100,3,FALSE)<>"","Ano","Ne")) ->  | O167: =IF(I167="","",IF(I167>Hlavička!$D$8,"Doklad nepatří do této monitorovací zprávy","OK")) ->  | P167: =IF(B167="","",IF(ISERROR(VLOOKUP(B167,'Doklady k doložení'!$M$7:$O$32,3,FALSE)),"Doklad se nedokládá není větší než 10 tis. Kč",VLOOKUP(B167,'Doklady k doložení'!$M$7:$O$32,3,FALSE))) ->  | S167: -
M168: =IF(ISERROR(VLOOKUP(E168,Hlavička!$B$16:$D$100,3,FALSE)),"",IF(VLOOKUP(E168,Hlavička!$B$16:$D$100,3,FALSE)<>"","Ano","Ne")) ->  | O168: =IF(I168="","",IF(I168>Hlavička!$D$8,"Doklad nepatří do této monitorovací zprávy","OK")) ->  | P168: =IF(B168="","",IF(ISERROR(VLOOKUP(B168,'Doklady k doložení'!$M$7:$O$32,3,FALSE)),"Doklad se nedokládá není větší než 10 tis. Kč",VLOOKUP(B168,'Doklady k doložení'!$M$7:$O$32,3,FALSE))) ->  | S168: -
M169: =IF(ISERROR(VLOOKUP(E169,Hlavička!$B$16:$D$100,3,FALSE)),"",IF(VLOOKUP(E169,Hlavička!$B$16:$D$100,3,FALSE)<>"","Ano","Ne")) ->  | O169: =IF(I169="","",IF(I169>Hlavička!$D$8,"Doklad nepatří do této monitorovací zprávy","OK")) ->  | P169: =IF(B169="","",IF(ISERROR(VLOOKUP(B169,'Doklady k doložení'!$M$7:$O$32,3,FALSE)),"Doklad se nedokládá není větší než 10 tis. Kč",VLOOKUP(B169,'Doklady k doložení'!$M$7:$O$32,3,FALSE))) ->  | S169: -
M170: =IF(ISERROR(VLOOKUP(E170,Hlavička!$B$16:$D$100,3,FALSE)),"",IF(VLOOKUP(E170,Hlavička!$B$16:$D$100,3,FALSE)<>"","Ano","Ne")) ->  | O170: =IF(I170="","",IF(I170>Hlavička!$D$8,"Doklad nepatří do této monitorovací zprávy","OK")) ->  | P170: =IF(B170="","",IF(ISERROR(VLOOKUP(B170,'Doklady k doložení'!$M$7:$O$32,3,FALSE)),"Doklad se nedokládá není větší než 10 tis. Kč",VLOOKUP(B170,'Doklady k doložení'!$M$7:$O$32,3,FALSE))) ->  | S170: -
M171: =IF(ISERROR(VLOOKUP(E171,Hlavička!$B$16:$D$100,3,FALSE)),"",IF(VLOOKUP(E171,Hlavička!$B$16:$D$100,3,FALSE)<>"","Ano","Ne")) ->  | O171: =IF(I171="","",IF(I171>Hlavička!$D$8,"Doklad nepatří do této monitorovací zprávy","OK")) ->  | P171: =IF(B171="","",IF(ISERROR(VLOOKUP(B171,'Doklady k doložení'!$M$7:$O$32,3,FALSE)),"Doklad se nedokládá není větší než 10 tis. Kč",VLOOKUP(B171,'Doklady k doložení'!$M$7:$O$32,3,FALSE))) ->  | S171: -
M172: =IF(ISERROR(VLOOKUP(E172,Hlavička!$B$16:$D$100,3,FALSE)),"",IF(VLOOKUP(E172,Hlavička!$B$16:$D$100,3,FALSE)<>"","Ano","Ne")) ->  | O172: =IF(I172="","",IF(I172>Hlavička!$D$8,"Doklad nepatří do této monitorovací zprávy","OK")) ->  | P172: =IF(B172="","",IF(ISERROR(VLOOKUP(B172,'Doklady k doložení'!$M$7:$O$32,3,FALSE)),"Doklad se nedokládá není větší než 10 tis. Kč",VLOOKUP(B172,'Doklady k doložení'!$M$7:$O$32,3,FALSE))) ->  | S172: -
M173: =IF(ISERROR(VLOOKUP(E173,Hlavička!$B$16:$D$100,3,FALSE)),"",IF(VLOOKUP(E173,Hlavička!$B$16:$D$100,3,FALSE)<>"","Ano","Ne")) ->  | O173: =IF(I173="","",IF(I173>Hlavička!$D$8,"Doklad nepatří do této monitorovací zprávy","OK")) ->  | P173: =IF(B173="","",IF(ISERROR(VLOOKUP(B173,'Doklady k doložení'!$M$7:$O$32,3,FALSE)),"Doklad se nedokládá není větší než 10 tis. Kč",VLOOKUP(B173,'Doklady k doložení'!$M$7:$O$32,3,FALSE))) ->  | S173: -
M174: =IF(ISERROR(VLOOKUP(E174,Hlavička!$B$16:$D$100,3,FALSE)),"",IF(VLOOKUP(E174,Hlavička!$B$16:$D$100,3,FALSE)<>"","Ano","Ne")) ->  | O174: =IF(I174="","",IF(I174>Hlavička!$D$8,"Doklad nepatří do této monitorovací zprávy","OK")) ->  | P174: =IF(B174="","",IF(ISERROR(VLOOKUP(B174,'Doklady k doložení'!$M$7:$O$32,3,FALSE)),"Doklad se nedokládá není větší než 10 tis. Kč",VLOOKUP(B174,'Doklady k doložení'!$M$7:$O$32,3,FALSE))) ->  | S174: -
M175: =IF(ISERROR(VLOOKUP(E175,Hlavička!$B$16:$D$100,3,FALSE)),"",IF(VLOOKUP(E175,Hlavička!$B$16:$D$100,3,FALSE)<>"","Ano","Ne")) ->  | O175: =IF(I175="","",IF(I175>Hlavička!$D$8,"Doklad nepatří do této monitorovací zprávy","OK")) ->  | P175: =IF(B175="","",IF(ISERROR(VLOOKUP(B175,'Doklady k doložení'!$M$7:$O$32,3,FALSE)),"Doklad se nedokládá není větší než 10 tis. Kč",VLOOKUP(B175,'Doklady k doložení'!$M$7:$O$32,3,FALSE))) ->  | S175: -
M176: =IF(ISERROR(VLOOKUP(E176,Hlavička!$B$16:$D$100,3,FALSE)),"",IF(VLOOKUP(E176,Hlavička!$B$16:$D$100,3,FALSE)<>"","Ano","Ne")) ->  | O176: =IF(I176="","",IF(I176>Hlavička!$D$8,"Doklad nepatří do této monitorovací zprávy","OK")) ->  | P176: =IF(B176="","",IF(ISERROR(VLOOKUP(B176,'Doklady k doložení'!$M$7:$O$32,3,FALSE)),"Doklad se nedokládá není větší než 10 tis. Kč",VLOOKUP(B176,'Doklady k doložení'!$M$7:$O$32,3,FALSE))) ->  | S176: -
M177: =IF(ISERROR(VLOOKUP(E177,Hlavička!$B$16:$D$100,3,FALSE)),"",IF(VLOOKUP(E177,Hlavička!$B$16:$D$100,3,FALSE)<>"","Ano","Ne")) ->  | O177: =IF(I177="","",IF(I177>Hlavička!$D$8,"Doklad nepatří do této monitorovací zprávy","OK")) ->  | P177: =IF(B177="","",IF(ISERROR(VLOOKUP(B177,'Doklady k doložení'!$M$7:$O$32,3,FALSE)),"Doklad se nedokládá není větší než 10 tis. Kč",VLOOKUP(B177,'Doklady k doložení'!$M$7:$O$32,3,FALSE))) ->  | S177: -
M178: =IF(ISERROR(VLOOKUP(E178,Hlavička!$B$16:$D$100,3,FALSE)),"",IF(VLOOKUP(E178,Hlavička!$B$16:$D$100,3,FALSE)<>"","Ano","Ne")) ->  | O178: =IF(I178="","",IF(I178>Hlavička!$D$8,"Doklad nepatří do této monitorovací zprávy","OK")) ->  | P178: =IF(B178="","",IF(ISERROR(VLOOKUP(B178,'Doklady k doložení'!$M$7:$O$32,3,FALSE)),"Doklad se nedokládá není větší než 10 tis. Kč",VLOOKUP(B178,'Doklady k doložení'!$M$7:$O$32,3,FALSE))) ->  | S178: -
M179: =IF(ISERROR(VLOOKUP(E179,Hlavička!$B$16:$D$100,3,FALSE)),"",IF(VLOOKUP(E179,Hlavička!$B$16:$D$100,3,FALSE)<>"","Ano","Ne")) ->  | O179: =IF(I179="","",IF(I179>Hlavička!$D$8,"Doklad nepatří do této monitorovací zprávy","OK")) ->  | P179: =IF(B179="","",IF(ISERROR(VLOOKUP(B179,'Doklady k doložení'!$M$7:$O$32,3,FALSE)),"Doklad se nedokládá není větší než 10 tis. Kč",VLOOKUP(B179,'Doklady k doložení'!$M$7:$O$32,3,FALSE))) ->  | S179: -
M180: =IF(ISERROR(VLOOKUP(E180,Hlavička!$B$16:$D$100,3,FALSE)),"",IF(VLOOKUP(E180,Hlavička!$B$16:$D$100,3,FALSE)<>"","Ano","Ne")) ->  | O180: =IF(I180="","",IF(I180>Hlavička!$D$8,"Doklad nepatří do této monitorovací zprávy","OK")) ->  | P180: =IF(B180="","",IF(ISERROR(VLOOKUP(B180,'Doklady k doložení'!$M$7:$O$32,3,FALSE)),"Doklad se nedokládá není větší než 10 tis. Kč",VLOOKUP(B180,'Doklady k doložení'!$M$7:$O$32,3,FALSE))) ->  | S180: -
M181: =IF(ISERROR(VLOOKUP(E181,Hlavička!$B$16:$D$100,3,FALSE)),"",IF(VLOOKUP(E181,Hlavička!$B$16:$D$100,3,FALSE)<>"","Ano","Ne")) ->  | O181: =IF(I181="","",IF(I181>Hlavička!$D$8,"Doklad nepatří do této monitorovací zprávy","OK")) ->  | P181: =IF(B181="","",IF(ISERROR(VLOOKUP(B181,'Doklady k doložení'!$M$7:$O$32,3,FALSE)),"Doklad se nedokládá není větší než 10 tis. Kč",VLOOKUP(B181,'Doklady k doložení'!$M$7:$O$32,3,FALSE))) ->  | S181: -
M182: =IF(ISERROR(VLOOKUP(E182,Hlavička!$B$16:$D$100,3,FALSE)),"",IF(VLOOKUP(E182,Hlavička!$B$16:$D$100,3,FALSE)<>"","Ano","Ne")) ->  | O182: =IF(I182="","",IF(I182>Hlavička!$D$8,"Doklad nepatří do této monitorovací zprávy","OK")) ->  | P182: =IF(B182="","",IF(ISERROR(VLOOKUP(B182,'Doklady k doložení'!$M$7:$O$32,3,FALSE)),"Doklad se nedokládá není větší než 10 tis. Kč",VLOOKUP(B182,'Doklady k doložení'!$M$7:$O$32,3,FALSE))) ->  | S182: -
M183: =IF(ISERROR(VLOOKUP(E183,Hlavička!$B$16:$D$100,3,FALSE)),"",IF(VLOOKUP(E183,Hlavička!$B$16:$D$100,3,FALSE)<>"","Ano","Ne")) ->  | O183: =IF(I183="","",IF(I183>Hlavička!$D$8,"Doklad nepatří do této monitorovací zprávy","OK")) ->  | P183: =IF(B183="","",IF(ISERROR(VLOOKUP(B183,'Doklady k doložení'!$M$7:$O$32,3,FALSE)),"Doklad se nedokládá není větší než 10 tis. Kč",VLOOKUP(B183,'Doklady k doložení'!$M$7:$O$32,3,FALSE))) ->  | S183: -
M184: =IF(ISERROR(VLOOKUP(E184,Hlavička!$B$16:$D$100,3,FALSE)),"",IF(VLOOKUP(E184,Hlavička!$B$16:$D$100,3,FALSE)<>"","Ano","Ne")) ->  | O184: =IF(I184="","",IF(I184>Hlavička!$D$8,"Doklad nepatří do této monitorovací zprávy","OK")) ->  | P184: =IF(B184="","",IF(ISERROR(VLOOKUP(B184,'Doklady k doložení'!$M$7:$O$32,3,FALSE)),"Doklad se nedokládá není větší než 10 tis. Kč",VLOOKUP(B184,'Doklady k doložení'!$M$7:$O$32,3,FALSE))) ->  | S184: -
M185: =IF(ISERROR(VLOOKUP(E185,Hlavička!$B$16:$D$100,3,FALSE)),"",IF(VLOOKUP(E185,Hlavička!$B$16:$D$100,3,FALSE)<>"","Ano","Ne")) ->  | O185: =IF(I185="","",IF(I185>Hlavička!$D$8,"Doklad nepatří do této monitorovací zprávy","OK")) ->  | P185: =IF(B185="","",IF(ISERROR(VLOOKUP(B185,'Doklady k doložení'!$M$7:$O$32,3,FALSE)),"Doklad se nedokládá není větší než 10 tis. Kč",VLOOKUP(B185,'Doklady k doložení'!$M$7:$O$32,3,FALSE))) ->  | S185: -
M186: =IF(ISERROR(VLOOKUP(E186,Hlavička!$B$16:$D$100,3,FALSE)),"",IF(VLOOKUP(E186,Hlavička!$B$16:$D$100,3,FALSE)<>"","Ano","Ne")) ->  | O186: =IF(I186="","",IF(I186>Hlavička!$D$8,"Doklad nepatří do této monitorovací zprávy","OK")) ->  | P186: =IF(B186="","",IF(ISERROR(VLOOKUP(B186,'Doklady k doložení'!$M$7:$O$32,3,FALSE)),"Doklad se nedokládá není větší než 10 tis. Kč",VLOOKUP(B186,'Doklady k doložení'!$M$7:$O$32,3,FALSE))) ->  | S186: -
M187: =IF(ISERROR(VLOOKUP(E187,Hlavička!$B$16:$D$100,3,FALSE)),"",IF(VLOOKUP(E187,Hlavička!$B$16:$D$100,3,FALSE)<>"","Ano","Ne")) ->  | O187: =IF(I187="","",IF(I187>Hlavička!$D$8,"Doklad nepatří do této monitorovací zprávy","OK")) ->  | P187: =IF(B187="","",IF(ISERROR(VLOOKUP(B187,'Doklady k doložení'!$M$7:$O$32,3,FALSE)),"Doklad se nedokládá není větší než 10 tis. Kč",VLOOKUP(B187,'Doklady k doložení'!$M$7:$O$32,3,FALSE))) ->  | S187: -
M188: =IF(ISERROR(VLOOKUP(E188,Hlavička!$B$16:$D$100,3,FALSE)),"",IF(VLOOKUP(E188,Hlavička!$B$16:$D$100,3,FALSE)<>"","Ano","Ne")) ->  | O188: =IF(I188="","",IF(I188>Hlavička!$D$8,"Doklad nepatří do této monitorovací zprávy","OK")) ->  | P188: =IF(B188="","",IF(ISERROR(VLOOKUP(B188,'Doklady k doložení'!$M$7:$O$32,3,FALSE)),"Doklad se nedokládá není větší než 10 tis. Kč",VLOOKUP(B188,'Doklady k doložení'!$M$7:$O$32,3,FALSE))) ->  | S188: -
M189: =IF(ISERROR(VLOOKUP(E189,Hlavička!$B$16:$D$100,3,FALSE)),"",IF(VLOOKUP(E189,Hlavička!$B$16:$D$100,3,FALSE)<>"","Ano","Ne")) ->  | O189: =IF(I189="","",IF(I189>Hlavička!$D$8,"Doklad nepatří do této monitorovací zprávy","OK")) ->  | P189: =IF(B189="","",IF(ISERROR(VLOOKUP(B189,'Doklady k doložení'!$M$7:$O$32,3,FALSE)),"Doklad se nedokládá není větší než 10 tis. Kč",VLOOKUP(B189,'Doklady k doložení'!$M$7:$O$32,3,FALSE))) ->  | S189: -
M190: =IF(ISERROR(VLOOKUP(E190,Hlavička!$B$16:$D$100,3,FALSE)),"",IF(VLOOKUP(E190,Hlavička!$B$16:$D$100,3,FALSE)<>"","Ano","Ne")) ->  | O190: =IF(I190="","",IF(I190>Hlavička!$D$8,"Doklad nepatří do této monitorovací zprávy","OK")) ->  | P190: =IF(B190="","",IF(ISERROR(VLOOKUP(B190,'Doklady k doložení'!$M$7:$O$32,3,FALSE)),"Doklad se nedokládá není větší než 10 tis. Kč",VLOOKUP(B190,'Doklady k doložení'!$M$7:$O$32,3,FALSE))) ->  | S190: -
M191: =IF(ISERROR(VLOOKUP(E191,Hlavička!$B$16:$D$100,3,FALSE)),"",IF(VLOOKUP(E191,Hlavička!$B$16:$D$100,3,FALSE)<>"","Ano","Ne")) ->  | O191: =IF(I191="","",IF(I191>Hlavička!$D$8,"Doklad nepatří do této monitorovací zprávy","OK")) ->  | P191: =IF(B191="","",IF(ISERROR(VLOOKUP(B191,'Doklady k doložení'!$M$7:$O$32,3,FALSE)),"Doklad se nedokládá není větší než 10 tis. Kč",VLOOKUP(B191,'Doklady k doložení'!$M$7:$O$32,3,FALSE))) ->  | S191: -
M192: =IF(ISERROR(VLOOKUP(E192,Hlavička!$B$16:$D$100,3,FALSE)),"",IF(VLOOKUP(E192,Hlavička!$B$16:$D$100,3,FALSE)<>"","Ano","Ne")) ->  | O192: =IF(I192="","",IF(I192>Hlavička!$D$8,"Doklad nepatří do této monitorovací zprávy","OK")) ->  | P192: =IF(B192="","",IF(ISERROR(VLOOKUP(B192,'Doklady k doložení'!$M$7:$O$32,3,FALSE)),"Doklad se nedokládá není větší než 10 tis. Kč",VLOOKUP(B192,'Doklady k doložení'!$M$7:$O$32,3,FALSE))) ->  | S192: -
M193: =IF(ISERROR(VLOOKUP(E193,Hlavička!$B$16:$D$100,3,FALSE)),"",IF(VLOOKUP(E193,Hlavička!$B$16:$D$100,3,FALSE)<>"","Ano","Ne")) ->  | O193: =IF(I193="","",IF(I193>Hlavička!$D$8,"Doklad nepatří do této monitorovací zprávy","OK")) ->  | P193: =IF(B193="","",IF(ISERROR(VLOOKUP(B193,'Doklady k doložení'!$M$7:$O$32,3,FALSE)),"Doklad se nedokládá není větší než 10 tis. Kč",VLOOKUP(B193,'Doklady k doložení'!$M$7:$O$32,3,FALSE))) ->  | S193: -
M194: =IF(ISERROR(VLOOKUP(E194,Hlavička!$B$16:$D$100,3,FALSE)),"",IF(VLOOKUP(E194,Hlavička!$B$16:$D$100,3,FALSE)<>"","Ano","Ne")) ->  | O194: =IF(I194="","",IF(I194>Hlavička!$D$8,"Doklad nepatří do této monitorovací zprávy","OK")) ->  | P194: =IF(B194="","",IF(ISERROR(VLOOKUP(B194,'Doklady k doložení'!$M$7:$O$32,3,FALSE)),"Doklad se nedokládá není větší než 10 tis. Kč",VLOOKUP(B194,'Doklady k doložení'!$M$7:$O$32,3,FALSE))) ->  | S194: -
M195: =IF(ISERROR(VLOOKUP(E195,Hlavička!$B$16:$D$100,3,FALSE)),"",IF(VLOOKUP(E195,Hlavička!$B$16:$D$100,3,FALSE)<>"","Ano","Ne")) ->  | O195: =IF(I195="","",IF(I195>Hlavička!$D$8,"Doklad nepatří do této monitorovací zprávy","OK")) ->  | P195: =IF(B195="","",IF(ISERROR(VLOOKUP(B195,'Doklady k doložení'!$M$7:$O$32,3,FALSE)),"Doklad se nedokládá není větší než 10 tis. Kč",VLOOKUP(B195,'Doklady k doložení'!$M$7:$O$32,3,FALSE))) ->  | S195: -
M196: =IF(ISERROR(VLOOKUP(E196,Hlavička!$B$16:$D$100,3,FALSE)),"",IF(VLOOKUP(E196,Hlavička!$B$16:$D$100,3,FALSE)<>"","Ano","Ne")) ->  | O196: =IF(I196="","",IF(I196>Hlavička!$D$8,"Doklad nepatří do této monitorovací zprávy","OK")) ->  | P196: =IF(B196="","",IF(ISERROR(VLOOKUP(B196,'Doklady k doložení'!$M$7:$O$32,3,FALSE)),"Doklad se nedokládá není větší než 10 tis. Kč",VLOOKUP(B196,'Doklady k doložení'!$M$7:$O$32,3,FALSE))) ->  | S196: -
M197: =IF(ISERROR(VLOOKUP(E197,Hlavička!$B$16:$D$100,3,FALSE)),"",IF(VLOOKUP(E197,Hlavička!$B$16:$D$100,3,FALSE)<>"","Ano","Ne")) ->  | O197: =IF(I197="","",IF(I197>Hlavička!$D$8,"Doklad nepatří do této monitorovací zprávy","OK")) ->  | P197: =IF(B197="","",IF(ISERROR(VLOOKUP(B197,'Doklady k doložení'!$M$7:$O$32,3,FALSE)),"Doklad se nedokládá není větší než 10 tis. Kč",VLOOKUP(B197,'Doklady k doložení'!$M$7:$O$32,3,FALSE))) ->  | S197: -
M198: =IF(ISERROR(VLOOKUP(E198,Hlavička!$B$16:$D$100,3,FALSE)),"",IF(VLOOKUP(E198,Hlavička!$B$16:$D$100,3,FALSE)<>"","Ano","Ne")) ->  | O198: =IF(I198="","",IF(I198>Hlavička!$D$8,"Doklad nepatří do této monitorovací zprávy","OK")) ->  | P198: =IF(B198="","",IF(ISERROR(VLOOKUP(B198,'Doklady k doložení'!$M$7:$O$32,3,FALSE)),"Doklad se nedokládá není větší než 10 tis. Kč",VLOOKUP(B198,'Doklady k doložení'!$M$7:$O$32,3,FALSE))) ->  | S198: -
M199: =IF(ISERROR(VLOOKUP(E199,Hlavička!$B$16:$D$100,3,FALSE)),"",IF(VLOOKUP(E199,Hlavička!$B$16:$D$100,3,FALSE)<>"","Ano","Ne")) ->  | O199: =IF(I199="","",IF(I199>Hlavička!$D$8,"Doklad nepatří do této monitorovací zprávy","OK")) ->  | P199: =IF(B199="","",IF(ISERROR(VLOOKUP(B199,'Doklady k doložení'!$M$7:$O$32,3,FALSE)),"Doklad se nedokládá není větší než 10 tis. Kč",VLOOKUP(B199,'Doklady k doložení'!$M$7:$O$32,3,FALSE))) ->  | S199: -
M200: =IF(ISERROR(VLOOKUP(E200,Hlavička!$B$16:$D$100,3,FALSE)),"",IF(VLOOKUP(E200,Hlavička!$B$16:$D$100,3,FALSE)<>"","Ano","Ne")) ->  | O200: =IF(I200="","",IF(I200>Hlavička!$D$8,"Doklad nepatří do této monitorovací zprávy","OK")) ->  | P200: =IF(B200="","",IF(ISERROR(VLOOKUP(B200,'Doklady k doložení'!$M$7:$O$32,3,FALSE)),"Doklad se nedokládá není větší než 10 tis. Kč",VLOOKUP(B200,'Doklady k doložení'!$M$7:$O$32,3,FALSE))) ->  | S200: -
M201: =IF(ISERROR(VLOOKUP(E201,Hlavička!$B$16:$D$100,3,FALSE)),"",IF(VLOOKUP(E201,Hlavička!$B$16:$D$100,3,FALSE)<>"","Ano","Ne")) ->  | O201: =IF(I201="","",IF(I201>Hlavička!$D$8,"Doklad nepatří do této monitorovací zprávy","OK")) ->  | P201: =IF(B201="","",IF(ISERROR(VLOOKUP(B201,'Doklady k doložení'!$M$7:$O$32,3,FALSE)),"Doklad se nedokládá není větší než 10 tis. Kč",VLOOKUP(B201,'Doklady k doložení'!$M$7:$O$32,3,FALSE))) ->  | S201: -
... 4299 more rows

Sheet Rozpočet
S1: 12 | T1: Yes | U1: 4 | V1: C:\Users\Petr\Documents\MŠMT\Inteligentní rozpočet EU\Apr_exp_Testovací příjemce_0001.xlsx | W1: 0
D4: ROZPOČET PROJEKTU
A5: Registrační číslo projektu | B5: CZ.1.07/3.2.04/03.0001
A6: Název projektu | B6: 2012-08-13T13:21:13
A7: Název příjemce podpory | B7: Test plzeň
A8: Pořadové číslo Monitorovací zprávy | B8: 02/2012
A9: Období | B9: 30.6.2012 - 31.12.2012
A11: Výdaje na celý projekt
A12: Druh výdajů rozpočtu | B12: Schválený rozpočet v Kč | E12: Rozpočet přepracovaný příjemcem v Kč - kumulativně od začátku realizace | J12: Dosud prokázané výdaje v Kč* | K12: Dosud prokázáno v % (vůči platnému rozpočtu) | L12: Aktuálně prokazované výdaje v Kč* | M12: Aktuálně prokazováno v % (vůči platnému rozpočtu) | N12: Součet prokázaného a prokazovaného v Kč | O12: Součet prokázaného a prokazovaného v % | P12: Zbývá čerpat | Q12: Nezpůsobilé výdaje za tuto ŽoP Vyplňuje ŘO/ZS | R12: Nezpůsobilé výdaje - kumulovaně Vyplňuje ŘO/ZS | V12: Mzdy | X12: Cestovné | Z12: Ostatní | AB12: Odpisy | AD12: Mzdové příspěvky | AF12: Cesty | AH12: Ubytování | AJ12: Stravné | AL12: Ostatní | AN12: Mzdy celkem | AO12: Položky pro přerozdělování
B13: počet jednotek | C13: jednotková cena | D13: Celkové náklady na položku | E13: počet jednotek | F13: jednotková cena | G13: Celkové náklady na položku | H13: Přesun (navýšení, zmenšení) na úkor/ve prospěch položky | I13: Přesun z kapitoly v % | S13: Uroven | T13: Seznam položek rozpočtu | U13: Seznam položek rozpočtu | V13: Seznam položek rozpočtu | W13: Seznam položek rozpočtu | X13: Seznam položek rozpočtu | Y13: Seznam položek rozpočtu | Z13: Seznam položek rozpočtu | AA13: Seznam položek rozpočtu | AB13: Seznam položek rozpočtu | AC13: Seznam položek rozpočtu | AD13: Seznam položek rozpočtu | AE13: Seznam položek rozpočtu | AF13: Seznam položek rozpočtu | AG13: Seznam položek rozpočtu | AH13: Seznam položek rozpočtu | AI13: Seznam položek rozpočtu | AJ13: Seznam položek rozpočtu | AK13: Seznam položek rozpočtu | AL13: Seznam položek rozpočtu | AM13: Seznam položek rozpočtu | AN13: Seznam položek rozpočtu | AO13: Seznam položek rozpočtu | AP13: Seznam položek rozpočtu
A14: 1 OSOBNÍ NÁKLADY | D14: 1979637.2 | G14: 1972677.2 | H14: -6960 | I14: -0.003515795723 | J14: 0 | K14: 0 | L14: 160460 | M14: 0.08134123515 | N14: 160460 | O14: 0.08134123515 | P14: 1812217.2 | Q14: 0 | R14: 0 | S14: 1 | T14: 1 OSOBNÍ NÁKLADY | U14: 1.4* | V14: 1.4 FKSP | W14: 2.* | X14: 2.1 Cestovné (vč. provozu služebního auta) | Y14: 3. * | Z14: 3.1 Nehmotný majetek do 60 tis. Kč | AA14: 3.6* | AB14: 3.6 Odpisy | AC14: 7.1* | AD14: 7.1 Mzdové příspěvky | AE14: 2.1.1* | AG14: 2.1.2* | AI14: 2.1.3* | AK14: 2.1.4* | AM14: 1.1* | AN14: 1.1 Platy, odměny z dohod a pojistné | AO14: 1 * | AP14: 1 OSOBNÍ NÁKLADY
A15: 1.1 Platy, odměny z dohod a pojistné | D15: 1735580 | G15: 1728620 | H15: -6960 | I15: -0.004010186796 | J15: 0 | K15: 0 | L15: 134680 | M15: 0.07791186033 | N15: 134680 | O15: 0.07791186033 | P15: 1593940 | Q15: 0 | R15: 0 | S15: 2 | T15: 1.1 Platy, odměny z dohod a pojistné | U15: 1.5* | V15: 1.5 Jiné povinné výdaje (Zákonné pojištění zaměstnanců) | X15: 2.2 Ubytování | Y15: 3.1* | Z15: 3.1.1 Software | AE15: 2.2.1* | AG15: 2.2.2* | AI15: 2.2.3* | AK15: 2.2.4* | AN15: 1.1.1 Výdaje na odborné zaměstnance, v tom | AO15: 2* | AP15: 1.1 Platy, odměny z dohod a pojistné
A16: 1.1.1 Výdaje na odborné zaměstnance, v tom | D16: 1237180 | G16: 1230220 | H16: -6960 | I16: -0.00562569715 | J16: 0 | K16: 0 | L16: 134680 | M16: 0.1094763538 | N16: 134680 | O16: 0.1094763538 | P16: 1095540 | Q16: 0 | R16: 0 | S16: 3 | T16: 1.1.1 Výdaje na odborné zaměstnance, v tom | U16: 1.2* | X16: 2.3 Stravné | Y16: 3.1* | Z16: 3.1.1.1 Software pro Belbin | AN16: 1.1.1.1 Platy | AO16: 3* | AP16: 1.1.1 Výdaje na odborné zaměstnance, v tom
A17: 1.1.1.1 Platy | D17: 64960 | G17: 58000 | H17: -6960 | I17: -0.1071428571 | J17: 0 | K17: 0 | L17: 20100 | M17: 0.3465517241 | N17: 20100 | O17: 0.3465517241 | P17: 37900 | Q17: 0 | R17: 0 | S17: 4 | T17: 1.1.1.1 Platy | U17: 1.3* | X17: 2.4 Ostatní | Y17: 3.2* | Z17: 3.1.1.2 Microsoft Office | AN17: 1.1.1.1.1 Lektor | AO17: 4* | AP17: 1.1.1.1 Platy
A18: 1.1.1.1.1 Lektor | B18: 224 | C18: 290 | D18: 64960 | E18: 200 | F18: 290 | G18: 58000 | H18: -6960 | I18: -0.1071428571 | K18: 0 | L18: 20100 | M18: 0.3465517241 | N18: 20100 | O18: 0.3465517241 | P18: 37900 | S18: 5 | T18: 1.1.1.1.1 Lektor | Y18: 3.3* | Z18: 3.1.2 Ostatní | AN18: 1.1.1.2 Odměny z dohod (DPČ) | AO18: 5* | AP18: 1.1.1.1.1 Lektor
A19: 1.1.1.2 Odměny z dohod (DPČ) | D19: 150220 | G19: 150220 | H19: 0 | I19: 0 | J19: 0 | K19: 0 | L19: 16080 | M19: 0.1070430036 | N19: 16080 | O19: 0.1070430036 | P19: 134140 | Q19: 0 | R19: 0 | S19: 4 | T19: 1.1.1.2 Odměny z dohod (DPČ) | Y19: 3.4* | Z19: 3.2 Dlouhodobý nehmotný majetek | AN19: 1.1.1.2.1 Lektor | AO19: 6* | AP19: 1.1.1.2 Odměny z dohod (DPČ)
A20: 1.1.1.2.1 Lektor | B20: 168 | C20: 290 | D20: 48720 | E20: 168 | F20: 290 | G20: 48720 | H20: 0 | I20: 0 | K20: 0 | L20: 16080 | M20: 0.3300492611 | N20: 16080 | O20: 0.3300492611 | P20: 32640 | S20: 5 | T20: 1.1.1.2.1 Lektor | Y20: 3.5* | Z20: 3.2.1 Software | AN20: 1.1.1.2.2 Vědecký pracovník | AO20: 7* | AP20: 1.1.1.2.1 Lektor
A21: 1.1.1.2.2 Vědecký pracovník | B21: 350 | C21: 290 | D21: 101500 | E21: 350 | F21: 290 | G21: 101500 | H21: 0 | I21: 0 | K21: 0 | L21: 0 | M21: 0 | N21: 0 | O21: 0 | P21: 101500 | S21: 5 | T21: 1.1.1.2.2 Vědecký pracovník | Y21: 3.7* | Z21: 3.2.2 Ostatní | AN21: 1.1.1.3 Odměny z dohod (DPP) | AO21: 8* | AP21: 1.1.1.2.2 Vědecký pracovník
A22: 1.1.1.3 Odměny z dohod (DPP) | B22: 0 | C22: 0 | D22: 0 | E22: 0 | F22: 0 | G22: 0 | H22: 0 | I22: 0 | K22: 0 | L22: 33500 | M22: 0 | N22: 33500 | O22: 0 | P22: -33500 | S22: 4 | T22: 1.1.1.3 Odměny z dohod (DPP) | Y22: 3.8* | Z22: 3.3 Drobný hmotný majetek | AN22: 1.1.1.4 Autorské honoráře | AO22: 1.* | AP22: 1.1.1.3 Odměny z dohod (DPP)
A23: 1.1.1.4 Autorské honoráře | B23: 14 | C23: 73000 | D23: 1022000 | E23: 14 | F23: 73000 | G23: 1022000 | H23: 0 | I23: 0 | K23: 0 | L23: 65000 | M23: 0.06360078278 | N23: 65000 | O23: 0.06360078278 | P23: 957000 | S23: 4 | T23: 1.1.1.4 Autorské honoráře | Y23: 4.* | Z23: 3.3.1 Dataprojektor | AN23: 1.1.2 Výdaje na administrativní zaměstnance, v tom | AP23: 1.1.1.4 Autorské honoráře
A24: 1.1.2 Výdaje na administrativní zaměstnance, v tom | D24: 498400 | G24: 498400 | H24: 0 | I24: 0 | J24: 0 | K24: 0 | L24: 0 | M24: 0 | N24: 0 | O24: 0 | P24: 498400 | Q24: 0 | R24: 0 | S24: 3 | T24: 1.1.2 Výdaje na administrativní zaměstnance, v tom | Y24: 5.* | Z24: 3.3.2 Projekční plátno | AN24: 1.1.2.1 Platy | AP24: 1.1.2 Výdaje na administrativní zaměstnance, v tom
A25: 1.1.2.1 Platy | D25: 280000 | G25: 280000 | H25: 0 | I25: 0 | J25: 0 | K25: 0 | L25: 0 | M25: 0 | N25: 0 | O25: 0 | P25: 280000 | Q25: 0 | R25: 0 | S25: 4 | T25: 1.1.2.1 Platy | Y25: 6. * | Z25: 3.3.3 Kamera | AN25: 1.1.2.1.1 Manažer projektu | AP25: 1.1.2.1 Platy
A26: 1.1.2.1.1 Manažer projektu | B26: 1120 | C26: 250 | D26: 280000 | E26: 1120 | F26: 250 | G26: 280000 | H26: 0 | I26: 0 | K26: 0 | L26: 0 | M26: 0 | N26: 0 | O26: 0 | P26: 280000 | S26: 5 | T26: 1.1.2.1.1 Manažer projektu | Y26: 6.1* | Z26: 3.3.4 Notebook | AN26: 1.1.2.2 Odměny z dohod (DPČ) | AP26: 1.1.2.1.1 Manažer projektu
A27: 1.1.2.2 Odměny z dohod (DPČ) | D27: 218400 | G27: 218400 | H27: 0 | I27: 0 | J27: 0 | K27: 0 | L27: 0 | M27: 0 | N27: 0 | O27: 0 | P27: 218400 | Q27: 0 | R27: 0 | S27: 4 | T27: 1.1.2.2 Odměny z dohod (DPČ) | Y27: 6.2* | Z27: 3.3.5 Externí Hardisk | AN27: 1.1.2.2.1 Finanční manažer | AP27: 1.1.2.2 Odměny z dohod (DPČ)
A28: 1.1.2.2.1 Finanční manažer | B28: 560 | C28: 200 | D28: 112000 | E28: 560 | F28: 200 | G28: 112000 | H28: 0 | I28: 0 | K28: 0 | L28: 0 | M28: 0 | N28: 0 | O28: 0 | P28: 112000 | S28: 5 | T28: 1.1.2.2.1 Finanční manažer | Y28: 6.3* | Z28: 3.3.6 USB flash disk | AN28: 1.1.2.2.2 Věcný manažer | AP28: 1.1.2.2.1 Finanční manažer
A29: 1.1.2.2.2 Věcný manažer | B29: 560 | C29: 190 | D29: 106400 | E29: 560 | F29: 190 | G29: 106400 | H29: 0 | I29: 0 | K29: 0 | L29: 0 | M29: 0 | N29: 0 | O29: 0 | P29: 106400 | S29: 5 | T29: 1.1.2.2.2 Věcný manažer | Y29: 7.2* | Z29: 3.3.7 Fotoaparát | AN29: 1.1.2.3 Odměny z dohod (DPP) | AP29: 1.1.2.2.2 Věcný manažer
A30: 1.1.2.3 Odměny z dohod (DPP) | B30: 0 | C30: 0 | D30: 0 | E30: 0 | F30: 0 | G30: 0 | H30: 0 | I30: 0 | K30: 0 | L30: 0 | M30: 0 | N30: 0 | O30: 0 | P30: 0 | S30: 4 | T30: 1.1.2.3 Odměny z dohod (DPP) | Y30: 7.3* | Z30: 3.3.8 Laserové ukazovátko | AN30: 1.1.2.4 Autorské honoráře | AP30: 1.1.2.3 Odměny z dohod (DPP)
A31: 1.1.2.4 Autorské honoráře | B31: 0 | C31: 0 | D31: 0 | E31: 0 | F31: 0 | G31: 0 | H31: 0 | I31: 0 | K31: 0 | L31: 0 | M31: 0 | N31: 0 | O31: 0 | P31: 0 | S31: 4 | T31: 1.1.2.4 Autorské honoráře | Y31: 8.* | Z31: 3.4 Použitý drobný hmotný majetek | AP31: 1.1.2.4 Autorské honoráře
A32: 1.2 Sociální pojištění | B32: 1 | C32: 178395 | D32: 178395 | E32: 1 | F32: 178395 | G32: 178395 | H32: 0 | I32: 0 | K32: 0 | L32: 13000 | M32: 0.07287199753 | N32: 13000 | O32: 0.07287199753 | P32: 165395 | S32: 2 | T32: 1.2 Sociální pojištění | Z32: 3.5 Nájem zařízení, leasing | AP32: 1.2 Sociální pojištění
A33: 1.3 Zdravotní pojištění | B33: 1 | C33: 64222.2 | D33: 64222.2 | E33: 1 | F33: 64222.2 | G33: 64222.2 | H33: 0 | I33: 0 | K33: 0 | L33: 4680 | M33: 0.07287199753 | N33: 4680 | O33: 0.07287199753 | P33: 59542.2 | S33: 2 | T33: 1.3 Zdravotní pojištění | Z33: 3.7 Výdaje na opravy a údržbu | AP33: 1.3 Zdravotní pojištění
A34: 1.4 FKSP | B34: 0 | C34: 0 | D34: 0 | E34: 0 | F34: 0 | G34: 0 | H34: 0 | I34: 0 | K34: 0 | L34: 5600 | M34: 0 | N34: 5600 | O34: 0 | P34: -5600 | S34: 2 | T34: 1.4 FKSP | Z34: 3.8 Křížové financování | AP34: 1.4 FKSP
A35: 1.5 Jiné povinné výdaje (Zákonné pojištění zaměstnanců) | B35: 1 | C35: 1440 | D35: 1440 | E35: 1 | F35: 1440 | G35: 1440 | H35: 0 | I35: 0 | K35: 0 | L35: 2500 | M35: 1.736111111 | N35: 2500 | O35: 1.736111111 | P35: -1060 | S35: 2 | T35: 1.5 Jiné povinné výdaje (Zákonné pojištění zaměstnanců) | Z35: 3.8.1 Investiční část | AP35: 1.5 Jiné povinné výdaje (Zákonné pojištění zaměstnanců)
A36: 2 SLUŽEBNÍ CESTY ZAHRANIČNÍ | D36: 0 | G36: 0 | H36: 0 | I36: 0 | J36: 0 | K36: 0 | L36: 5390 | M36: 0 | N36: 5390 | O36: 0 | P36: -5390 | Q36: 0 | R36: 0 | S36: 1 | T36: 2 SLUŽEBNÍ CESTY ZAHRANIČNÍ | Z36: 3.8.2 Neinvestiční část | AP36: 2 SLUŽEBNÍ CESTY ZAHRANIČNÍ
A37: 2.1 Cestovné (vč. provozu služebního auta) | B37: 0 | C37: 0 | D37: 0 | E37: 0 | F37: 0 | G37: 0 | H37: 0 | I37: 0 | K37: 0 | L37: 3200 | M37: 0 | N37: 3200 | O37: 0 | P37: -3200 | S37: 2 | T37: 2.1 Cestovné (vč. provozu služebního auta) | Z37: 5.1 Publikace/školící materiály/manuály | AP37: 2.1 Cestovné (vč. provozu služebního auta)
A38: 2.2 Ubytování | B38: 0 | C38: 0 | D38: 0 | E38: 0 | F38: 0 | G38: 0 | H38: 0 | I38: 0 | K38: 0 | L38: 1700 | M38: 0 | N38: 1700 | O38: 0 | P38: -1700 | S38: 2 | T38: 2.2 Ubytování | Z38: 5.1.1 Skripta - pracovní verze 14 modulů x 15 | AP38: 2.2 Ubytování
A39: 2.3 Stravné | B39: 0 | C39: 0 | D39: 0 | E39: 0 | F39: 0 | G39: 0 | H39: 0 | I39: 0 | K39: 0 | L39: 300 | M39: 0 | N39: 300 | O39: 0 | P39: -300 | S39: 2 | T39: 2.3 Stravné | Z39: 5.1.2 Skripta finální verze 14 modulů x 25 | AP39: 2.3 Stravné
A40: 2.4 Ostatní | B40: 0 | C40: 0 | D40: 0 | E40: 0 | F40: 0 | G40: 0 | H40: 0 | I40: 0 | K40: 0 | L40: 190 | M40: 0 | N40: 190 | O40: 0 | P40: -190 | S40: 2 | T40: 2.4 Ostatní | Z40: 5.2 Odborné služby/Studie a výzkum | AP40: 2.4 Ostatní
A41: 3 ZAŘÍZENÍ | D41: 113200 | G41: 113200 | H41: 0 | I41: 0 | J41: 0 | K41: 0 | L41: 280000 | M41: 2.473498233 | N41: 280000 | O41: 2.473498233 | P41: -166800 | Q41: 0 | R41: 0 | S41: 1 | T41: 3 ZAŘÍZENÍ | Z41: 5.3 Výdaje na konference/kurzy | AP41: 3 ZAŘÍZENÍ
A42: 3.1 Nehmotný majetek do 60 tis. Kč | D42: 38800 | G42: 38800 | H42: 0 | I42: 0 | J42: 0 | K42: 0 | L42: 56000 | M42: 1.443298969 | N42: 56000 | O42: 1.443298969 | P42: -17200 | Q42: 0 | R42: 0 | S42: 2 | T42: 3.1 Nehmotný majetek do 60 tis. Kč | Z42: 5.3.1 Pronájem učebny | AP42: 3.1 Nehmotný majetek do 60 tis. Kč
A43: 3.1.1 Software | D43: 38800 | G43: 38800 | H43: 0 | I43: 0 | J43: 0 | K43: 0 | L43: 56000 | M43: 1.443298969 | N43: 56000 | O43: 1.443298969 | P43: -17200 | Q43: 0 | R43: 0 | S43: 3 | T43: 3.1.1 Software | Z43: 5.4 Podpora účastníků (stravné, ubytování?) | AP43: 3.1.1 Software
A44: 3.1.1.1 Software pro Belbin | B44: 2 | C44: 15000 | D44: 30000 | E44: 2 | F44: 15000 | G44: 30000 | H44: 0 | I44: 0 | K44: 0 | L44: 0 | M44: 0 | N44: 0 | O44: 0 | P44: 30000 | S44: 4 | T44: 3.1.1.1 Software pro Belbin | Z44: 5.4.1 Občerstvení účastníků | AP44: 3.1.1.1 Software pro Belbin
A45: 3.1.1.2 Microsoft Office | B45: 1 | C45: 8800 | D45: 8800 | E45: 1 | F45: 8800 | G45: 8800 | H45: 0 | I45: 0 | K45: 0 | L45: 56000 | M45: 6.363636364 | N45: 56000 | O45: 6.363636364 | P45: -47200 | S45: 4 | T45: 3.1.1.2 Microsoft Office | Z45: 5.5 Jiné výdaje | AP45: 3.1.1.2 Microsoft Office
A46: 3.1.2 Ostatní | B46: 0 | C46: 0 | D46: 0 | E46: 0 | F46: 0 | G46: 0 | H46: 0 | I46: 0 | K46: 0 | L46: 0 | M46: 0 | N46: 0 | O46: 0 | P46: 0 | S46: 3 | T46: 3.1.2 Ostatní | Z46: 5.5.1 Akreditace | AP46: 3.1.2 Ostatní
A47: 3.2 Dlouhodobý nehmotný majetek | D47: 0 | G47: 0 | H47: 0 | I47: 0 | J47: 0 | K47: 0 | L47: 0 | M47: 0 | N47: 0 | O47: 0 | P47: 0 | Q47: 0 | R47: 0 | S47: 2 | T47: 3.2 Dlouhodobý nehmotný majetek | Z47: 5.5.2 cestovné lektoři | AP47: 3.2 Dlouhodobý nehmotný majetek
A48: 3.2.1 Software | B48: 0 | C48: 0 | D48: 0 | E48: 0 | F48: 0 | G48: 0 | H48: 0 | I48: 0 | K48: 0 | L48: 0 | M48: 0 | N48: 0 | O48: 0 | P48: 0 | S48: 3 | T48: 3.2.1 Software | Z48: 6.1 Drobné stavební úpravy | AP48: 3.2.1 Software
A49: 3.2.2 Ostatní | B49: 0 | C49: 0 | D49: 0 | E49: 0 | F49: 0 | G49: 0 | H49: 0 | I49: 0 | K49: 0 | L49: 0 | M49: 0 | N49: 0 | O49: 0 | P49: 0 | S49: 3 | T49: 3.2.2 Ostatní | Z49: 6.2 Stavební úpravy v rámci křížového financování | AP49: 3.2.2 Ostatní
A50: 3.3 Drobný hmotný majetek | D50: 74400 | G50: 74400 | H50: 0 | I50: 0 | J50: 0 | K50: 0 | L50: 56000 | M50: 0.752688172 | N50: 56000 | O50: 0.752688172 | P50: 18400 | Q50: 0 | R50: 0 | S50: 2 | T50: 3.3 Drobný hmotný majetek | Z50: 7.2 Cestovné, ubytování a stravné | AP50: 3.3 Drobný hmotný majetek
A51: 3.3.1 Dataprojektor | B51: 1 | C51: 19000 | D51: 19000 | E51: 1 | F51: 19000 | G51: 19000 | H51: 0 | I51: 0 | K51: 0 | L51: 0 | M51: 0 | N51: 0 | O51: 0 | P51: 19000 | S51: 3 | T51: 3.3.1 Dataprojektor | Z51: 7.3 Doprovodné aktivity | AP51: 3.3.1 Dataprojektor
A52: 3.3.2 Projekční plátno | B52: 1 | C52: 15500 | D52: 15500 | E52: 1 | F52: 15500 | G52: 15500 | H52: 0 | I52: 0 | K52: 0 | L52: 0 | M52: 0 | N52: 0 | O52: 0 | P52: 15500 | S52: 3 | T52: 3.3.2 Projekční plátno | Z52: 8.1 Audit | AP52: 3.3.2 Projekční plátno
A53: 3.3.3 Kamera | B53: 1 | C53: 13000 | D53: 13000 | E53: 1 | F53: 13000 | G53: 13000 | H53: 0 | I53: 0 | K53: 0 | L53: 56000 | M53: 4.307692308 | N53: 56000 | O53: 4.307692308 | P53: -43000 | S53: 3 | T53: 3.3.3 Kamera | Z53: 8.2 Ostatní | AP53: 3.3.3 Kamera
A54: 3.3.4 Notebook | B54: 1 | C54: 13500 | D54: 13500 | E54: 1 | F54: 13500 | G54: 13500 | H54: 0 | I54: 0 | K54: 0 | L54: 0 | M54: 0 | N54: 0 | O54: 0 | P54: 13500 | S54: 3 | T54: 3.3.4 Notebook | AP54: 3.3.4 Notebook
A55: 3.3.5 Externí Hardisk | B55: 1 | C55: 1500 | D55: 1500 | E55: 1 | F55: 1500 | G55: 1500 | H55: 0 | I55: 0 | K55: 0 | L55: 0 | M55: 0 | N55: 0 | O55: 0 | P55: 1500 | S55: 3 | T55: 3.3.5 Externí Hardisk | AP55: 3.3.5 Externí Hardisk
A56: 3.3.6 USB flash disk | B56: 8 | C56: 250 | D56: 2000 | E56: 8 | F56: 250 | G56: 2000 | H56: 0 | I56: 0 | K56: 0 | L56: 0 | M56: 0 | N56: 0 | O56: 0 | P56: 2000 | S56: 3 | T56: 3.3.6 USB flash disk | AP56: 3.3.6 USB flash disk
A57: 3.3.7 Fotoaparát | B57: 1 | C57: 9000 | D57: 9000 | E57: 1 | F57: 9000 | G57: 9000 | H57: 0 | I57: 0 | K57: 0 | L57: 0 | M57: 0 | N57: 0 | O57: 0 | P57: 9000 | S57: 3 | T57: 3.3.7 Fotoaparát | AP57: 3.3.7 Fotoaparát
A58: 3.3.8 Laserové ukazovátko | B58: 3 | C58: 300 | D58: 900 | E58: 3 | F58: 300 | G58: 900 | H58: 0 | I58: 0 | K58: 0 | L58: 0 | M58: 0 | N58: 0 | O58: 0 | P58: 900 | S58: 3 | T58: 3.3.8 Laserové ukazovátko | AP58: 3.3.8 Laserové ukazovátko
A59: 3.4 Použitý drobný hmotný majetek | B59: 0 | C59: 0 | D59: 0 | E59: 0 | F59: 0 | G59: 0 | H59: 0 | I59: 0 | K59: 0 | L59: 0 | M59: 0 | N59: 0 | O59: 0 | P59: 0 | S59: 2 | T59: 3.4 Použitý drobný hmotný majetek | AP59: 3.4 Použitý drobný hmotný majetek
A60: 3.5 Nájem zařízení, leasing | B60: 0 | C60: 0 | D60: 0 | E60: 0 | F60: 0 | G60: 0 | H60: 0 | I60: 0 | K60: 0 | L60: 0 | M60: 0 | N60: 0 | O60: 0 | P60: 0 | S60: 2 | T60: 3.5 Nájem zařízení, leasing | AP60: 3.5 Nájem zařízení, leasing
A61: 3.6 Odpisy | B61: 0 | C61: 0 | D61: 0 | E61: 0 | F61: 0 | G61: 0 | H61: 0 | I61: 0 | K61: 0 | L61: 56000 | M61: 0 | N61: 56000 | O61: 0 | P61: -56000 | S61: 2 | T61: 3.6 Odpisy | AP61: 3.6 Odpisy
A62: 3.7 Výdaje na opravy a údržbu | B62: 0 | C62: 0 | D62: 0 | E62: 0 | F62: 0 | G62: 0 | H62: 0 | I62: 0 | K62: 0 | L62: 0 | M62: 0 | N62: 0 | O62: 0 | P62: 0 | S62: 2 | T62: 3.7 Výdaje na opravy a údržbu | AP62: 3.7 Výdaje na opravy a údržbu
A63: 3.8 Křížové financování | D63: 0 | G63: 0 | H63: 0 | I63: 0 | J63: 0 | K63: 0 | L63: 112000 | M63: 0 | N63: 112000 | O63: 0 | P63: -112000 | Q63: 0 | R63: 0 | S63: 2 | T63: 3.8 Křížové financování | AP63: 3.8 Křížové financování
A64: 3.8.1 Investiční část | B64: 0 | C64: 0 | D64: 0 | E64: 0 | F64: 0 | G64: 0 | H64: 0 | I64: 0 | K64: 0 | L64: 56000 | M64: 0 | N64: 56000 | O64: 0 | P64: -56000 | S64: 3 | T64: 3.8.1 Investiční část | AP64: 3.8.1 Investiční část
A65: 3.8.2 Neinvestiční část | B65: 0 | C65: 0 | D65: 0 | E65: 0 | F65: 0 | G65: 0 | H65: 0 | I65: 0 | K65: 0 | L65: 56000 | M65: 0 | N65: 56000 | O65: 0 | P65: -56000 | S65: 3 | T65: 3.8.2 Neinvestiční část | AP65: 3.8.2 Neinvestiční část
A66: 4 MÍSTNÍ KANCELÁŘ | D66: 0 | E66: 24 | F66: 290 | G66: 6960 | H66: 6960 | I66: 1 | K66: 0 | L66: 0 | M66: 0 | N66: 0 | O66: 0 | P66: 6960 | S66: 1 | T66: 4 MÍSTNÍ KANCELÁŘ | AP66: 4 MÍSTNÍ KANCELÁŘ
A67: 5 NÁKUP SLUŽEB | D67: 540100 | G67: 540100 | H67: 0 | I67: 0 | J67: 0 | K67: 0 | L67: 56000 | M67: 0.1036845029 | N67: 56000 | O67: 0.1036845029 | P67: 484100 | Q67: 0 | R67: 0 | S67: 1 | T67: 5 NÁKUP SLUŽEB | AP67: 5 NÁKUP SLUŽEB
A68: 5.1 Publikace/školící materiály/manuály | D68: 157500 | G68: 157500 | H68: 0 | I68: 0 | J68: 0 | K68: 0 | L68: 0 | M68: 0 | N68: 0 | O68: 0 | P68: 157500 | Q68: 0 | R68: 0 | S68: 2 | T68: 5.1 Publikace/školící materiály/manuály | AP68: 5.1 Publikace/školící materiály/manuály
A69: 5.1.1 Skripta - pracovní verze 14 modulů x 15 | B69: 210 | C69: 250 | D69: 52500 | E69: 210 | F69: 250 | G69: 52500 | H69: 0 | I69: 0 | K69: 0 | L69: 0 | M69: 0 | N69: 0 | O69: 0 | P69: 52500 | S69: 3 | T69: 5.1.1 Skripta - pracovní verze 14 modulů x 15 | AP69: 5.1.1 Skripta - pracovní verze 14 modulů x 15
A70: 5.1.2 Skripta finální verze 14 modulů x 25 | B70: 350 | C70: 300 | D70: 105000 | E70: 350 | F70: 300 | G70: 105000 | H70: 0 | I70: 0 | K70: 0 | L70: 0 | M70: 0 | N70: 0 | O70: 0 | P70: 105000 | S70: 3 | T70: 5.1.2 Skripta finální verze 14 modulů x 25 | AP70: 5.1.2 Skripta finální verze 14 modulů x 25
A71: 5.2 Odborné služby/Studie a výzkum | B71: 0 | C71: 0 | D71: 0 | E71: 0 | F71: 0 | G71: 0 | H71: 0 | I71: 0 | K71: 0 | L71: 0 | M71: 0 | N71: 0 | O71: 0 | P71: 0 | S71: 2 | T71: 5.2 Odborné služby/Studie a výzkum | AP71: 5.2 Odborné služby/Studie a výzkum
A72: 5.3 Výdaje na konference/kurzy | D72: 280000 | G72: 280000 | H72: 0 | I72: 0 | J72: 0 | K72: 0 | L72: 0 | M72: 0 | N72: 0 | O72: 0 | P72: 280000 | Q72: 0 | R72: 0 | S72: 2 | T72: 5.3 Výdaje na konference/kurzy | AP72: 5.3 Výdaje na konference/kurzy
A73: 5.3.1 Pronájem učebny | B73: 56 | C73: 5000 | D73: 280000 | E73: 56 | F73: 5000 | G73: 280000 | H73: 0 | I73: 0 | K73: 0 | L73: 0 | M73: 0 | N73: 0 | O73: 0 | P73: 280000 | S73: 3 | T73: 5.3.1 Pronájem učebny | AP73: 5.3.1 Pronájem učebny
A74: 5.4 Podpora účastníků (stravné, ubytování?) | D74: 84000 | G74: 84000 | H74: 0 | I74: 0 | J74: 0 | K74: 0 | L74: 0 | M74: 0 | N74: 0 | O74: 0 | P74: 84000 | Q74: 0 | R74: 0 | S74: 2 | T74: 5.4 Podpora účastníků (stravné, ubytování?) | AP74: 5.4 Podpora účastníků (stravné, ubytování?)
A75: 5.4.1 Občerstvení účastníků | B75: 840 | C75: 100 | D75: 84000 | E75: 840 | F75: 100 | G75: 84000 | H75: 0 | I75: 0 | K75: 0 | L75: 0 | M75: 0 | N75: 0 | O75: 0 | P75: 84000 | S75: 3 | T75: 5.4.1 Občerstvení účastníků | AP75: 5.4.1 Občerstvení účastníků
A76: 5.5 Jiné výdaje | D76: 18600 | G76: 18600 | H76: 0 | I76: 0 | J76: 0 | K76: 0 | L76: 56000 | M76: 3.010752688 | N76: 56000 | O76: 3.010752688 | P76: -37400 | Q76: 0 | R76: 0 | S76: 2 | T76: 5.5 Jiné výdaje | AP76: 5.5 Jiné výdaje
A77: 5.5.1 Akreditace | B77: 1 | C77: 1000 | D77: 1000 | E77: 1 | F77: 1000 | G77: 1000 | H77: 0 | I77: 0 | K77: 0 | L77: 56000 | M77: 56 | N77: 56000 | O77: 56 | P77: -55000 | S77: 3 | T77: 5.5.1 Akreditace | AP77: 5.5.1 Akreditace
A78: 5.5.2 cestovné lektoři | B78: 4 | C78: 4400 | D78: 17600 | E78: 4 | F78: 4400 | G78: 17600 | H78: 0 | I78: 0 | K78: 0 | L78: 0 | M78: 0 | N78: 0 | O78: 0 | P78: 17600 | S78: 3 | T78: 5.5.2 cestovné lektoři | AP78: 5.5.2 cestovné lektoři
A79: 6 STAVEBNÍ ÚPRAVY | D79: 0 | G79: 0 | H79: 0 | I79: 0 | J79: 0 | K79: 0 | L79: 0 | M79: 0 | N79: 0 | O79: 0 | P79: 0 | Q79: 0 | R79: 0 | S79: 1 | T79: 6 STAVEBNÍ ÚPRAVY | AP79: 6 STAVEBNÍ ÚPRAVY
A80: 6.1 Drobné stavební úpravy | B80: 0 | C80: 0 | D80: 0 | E80: 0 | F80: 0 | G80: 0 | H80: 0 | I80: 0 | K80: 0 | L80: 0 | M80: 0 | N80: 0 | O80: 0 | P80: 0 | S80: 2 | T80: 6.1 Drobné stavební úpravy | AP80: 6.1 Drobné stavební úpravy
A81: 6.2 Stavební úpravy v rámci křížového financování | B81: 0 | C81: 0 | D81: 0 | E81: 0 | F81: 0 | G81: 0 | H81: 0 | I81: 0 | K81: 0 | L81: 0 | M81: 0 | N81: 0 | O81: 0 | P81: 0 | S81: 2 | T81: 6.2 Stavební úpravy v rámci křížového financování | AP81: 6.2 Stavební úpravy v rámci křížového financování
A82: 7 PŘÍMA PODPORA | D82: 0 | G82: 0 | H82: 0 | I82: 0 | J82: 0 | K82: 0 | L82: 2164 | M82: 0 | N82: 2164 | O82: 0 | P82: -2164 | Q82: 0 | R82: 0 | S82: 1 | T82: 7 PŘÍMA PODPORA | AP82: 7 PŘÍMA PODPORA
A83: 7.1 Mzdové příspěvky | B83: 0 | C83: 0 | D83: 0 | E83: 0 | F83: 0 | G83: 0 | H83: 0 | I83: 0 | K83: 0 | L83: 2164 | M83: 0 | N83: 2164 | O83: 0 | P83: -2164 | S83: 2 | T83: 7.1 Mzdové příspěvky | AP83: 7.1 Mzdové příspěvky
A84: 7.2 Cestovné, ubytování a stravné | B84: 0 | C84: 0 | D84: 0 | E84: 0 | F84: 0 | G84: 0 | H84: 0 | I84: 0 | K84: 0 | L84: 0 | M84: 0 | N84: 0 | O84: 0 | P84: 0 | S84: 2 | T84: 7.2 Cestovné, ubytování a stravné | AP84: 7.2 Cestovné, ubytování a stravné
A85: 7.3 Doprovodné aktivity | B85: 0 | C85: 0 | D85: 0 | E85: 0 | F85: 0 | G85: 0 | H85: 0 | I85: 0 | K85: 0 | L85: 0 | M85: 0 | N85: 0 | O85: 0 | P85: 0 | S85: 2 | T85: 7.3 Doprovodné aktivity | AP85: 7.3 Doprovodné aktivity
A86: 8 NÁKLADY VYPLÝVAJÍCÍ PŘÍMO ZE SMLOUVY/ROZHODNUTÍ | D86: 35000 | G86: 35000 | H86: 0 | I86: 0 | J86: 0 | K86: 0 | L86: 56000 | M86: 1.6 | N86: 56000 | O86: 1.6 | P86: -21000 | Q86: 0 | R86: 0 | S86: 1 | T86: 8 NÁKLADY VYPLÝVAJÍCÍ PŘÍMO ZE SMLOUVY/ROZHODNUTÍ | AP86: 8 NÁKLADY VYPLÝVAJÍCÍ PŘÍMO ZE SMLOUVY/ROZHODNUTÍ
A87: 8.1 Audit | B87: 1 | C87: 35000 | D87: 35000 | E87: 1 | F87: 35000 | G87: 35000 | H87: 0 | I87: 0 | K87: 0 | L87: 56000 | M87: 1.6 | N87: 56000 | O87: 1.6 | P87: -21000 | S87: 2 | T87: 8.1 Audit | AP87: 8.1 Audit
A88: 8.2 Ostatní | B88: 1 | C88: 0 | D88: 0 | E88: 1 | F88: 0 | G88: 0 | H88: 0 | I88: 0 | K88: 0 | L88: 0 | M88: 0 | N88: 0 | O88: 0 | P88: 0 | S88: 2 | T88: 8.2 Ostatní | AP88: 8.2 Ostatní
A89: 9 PŘÍMÉ ZPŮSOBILÉ VÝDAJE CELKEM | D89: 2667937.2 | G89: 2667937.2 | H89: 0 | I89: 0 | J89: 0 | K89: 0 | L89: 560014 | M89: 0.2099052406 | N89: 560014 | O89: 0.2099052406 | P89: 2107923.2 | Q89: 0 | R89: 0 | S89: 1 | T89: 9 PŘÍMÉ ZPŮSOBILÉ VÝDAJE CELKEM
A90: 9.1 z toho přímé výdaje bez křížového financování | B90: 0 | C90: 0 | D90: 2667937.2 | E90: 0 | F90: 0 | G90: 2667937.2 | H90: 0 | I90: 0 | J90: 0 | K90: 0 | L90: 448014 | M90: 0.167925242 | N90: 448014 | O90: 0.167925242 | P90: 2219923.2 | Q90: 0 | R90: 0 | S90: 2 | T90: 9.1 z toho přímé výdaje bez křížového financování
A91: 10 NEPŘÍMÉ NÁKLADY | D91: 480228.696 | G91: 480228.696 | H91: 0 | I91: 0 | J91: 0 | K91: 0 | L91: 80642.52 | M91: 0.167925242 | N91: 80642.52 | O91: 0.167925242 | P91: 399586.176 | Q91: 0 | R91: 0 | S91: 1 | T91: 10 NEPŘÍMÉ NÁKLADY
A92: 11 CELKOVÉ ZPŮSOBILÉ VÝDAJE | D92: 3148165.896 | G92: 3148165.896 | H92: 0 | I92: 0 | J92: 0 | K92: 0 | L92: 640656.52 | M92: 0.203501512 | N92: 640656.52 | O92: 0.203501512 | P92: 2507509.376 | Q92: 0 | R92: 0 | S92: 1 | T92: 11 CELKOVÉ ZPŮSOBILÉ VÝDAJE
A93: 11.1 Celkové způsobilé výdaje investiční | B93: 0 | C93: 0 | D93: 0 | E93: 0 | F93: 0 | G93: 0 | H93: 0 | I93: 0 | J93: 0 | K93: 0 | L93: 56000 | M93: 0 | N93: 56000 | O93: 0 | P93: -56000 | Q93: 0 | R93: 0 | S93: 2 | T93: 11.1 Celkové způsobilé výdaje investiční
A94: 11.2 Celkové způsobilé výdaje neinvestiční | B94: 0 | C94: 0 | D94: 3148165.896 | E94: 0 | F94: 0 | G94: 3148165.896 | H94: 0 | I94: 0 | J94: 0 | K94: 0 | L94: 584656.52 | M94: 0.185713377 | N94: 584656.52 | O94: 0.185713377 | P94: 2563509.376 | Q94: 0 | R94: 0 | S94: 2 | T94: 11.2 Celkové způsobilé výdaje neinvestiční
A95: 12 CELKOVÉ NEZPŮSOBILÉ VÝDAJE | D95: 0 | G95: 0 | H95: 0 | I95: 0 | J95: 0 | K95: 0 | L95: 0 | M95: 0 | N95: 0 | O95: 0 | P95: 0 | Q95: 0 | R95: 0 | S95: 1 | T95: 12 CELKOVÉ NEZPŮSOBILÉ VÝDAJE
A96: 12.1 Celkové nezpůsobilé výdaje investiční | B96: 0 | C96: 0 | D96: 0 | E96: 0 | F96: 0 | G96: 0 | H96: 0 | I96: 0 | J96: 0 | K96: 0 | L96: 0 | M96: 0 | N96: 0 | O96: 0 | P96: 0 | Q96: 0 | R96: 0 | S96: 2 | T96: 12.1 Celkové nezpůsobilé výdaje investiční
A97: 12.2 Celkové nezpůsobilé výdaje neinvestiční | B97: 0 | C97: 0 | D97: 0 | E97: 0 | F97: 0 | G97: 0 | H97: 0 | I97: 0 | J97: 0 | K97: 0 | L97: 0 | M97: 0 | N97: 0 | O97: 0 | P97: 0 | Q97: 0 | R97: 0 | S97: 2 | T97: 12.2 Celkové nezpůsobilé výdaje neinvestiční
A98: 13 CELKOVÉ VÝDAJE PROJEKTU | D98: 3148165.896 | G98: 3148165.896 | H98: 0 | I98: 0 | J98: 0 | K98: 0 | L98: 640656.52 | M98: 0.203501512 | N98: 640656.52 | O98: 0.203501512 | P98: 2507509.376 | Q98: 0 | R98: 0 | S98: 1 | T98: 13 CELKOVÉ VÝDAJE PROJEKTU
A99: 13.1 Celkem investiční výdaje | B99: 0 | C99: 0 | D99: 0 | E99: 0 | F99: 0 | G99: 0 | H99: 0 | I99: 0 | J99: 0 | K99: 0 | L99: 56000 | M99: 0 | N99: 56000 | O99: 0 | P99: -56000 | Q99: 0 | R99: 0 | S99: 2 | T99: 13.1 Celkem investiční výdaje
A100: 13.2 Celkem neinvestiční výdaje | B100: 0 | C100: 0 | D100: 3148165.896 | E100: 0 | F100: 0 | G100: 3148165.896 | H100: 0 | I100: 0 | J100: 0 | K100: 0 | L100: 584656.52 | M100: 0.185713377 | N100: 584656.52 | O100: 0.185713377 | P100: 2563509.376 | Q100: 0 | R100: 0 | S100: 2 | T100: 13.2 Celkem neinvestiční výdaje
A101: 14 ZDROJE PŘIPADAJÍCÍ NA NEZPŮSOBILÉ VÝDAJE | D101: 0 | G101: 0 | H101: 0 | I101: 0 | J101: 0 | K101: 0 | L101: 0 | M101: 0 | N101: 0 | O101: 0 | P101: 0 | Q101: 0 | R101: 0 | S101: 1 | T101: 14 ZDROJE PŘIPADAJÍCÍ NA NEZPŮSOBILÉ VÝDAJE
A102: 15 KŘÍŽOVÉ FINANCOVÁNÍ | D102: 0 | G102: 0 | H102: 0 | I102: 0 | J102: 0 | K102: 0 | L102: 112000 | M102: 0 | N102: 112000 | O102: 0 | P102: -112000 | Q102: 0 | R102: 0 | S102: 1 | T102: 15 KŘÍŽOVÉ FINANCOVÁNÍ

Sheet Mzdové výdaje
B3: ROZPIS MZDOVÝCH/PLATOVÝCH VÝDAJŮ REALIZAČNÍHO TÝMU PROJEKTU1)
B5: Registrační číslo projektu | F5: CZ.1.07/3.2.04/03.0001
B6: Název projektu | F6: Tvorba a ověření komplexního vzdělávacího programu pro rozvoj klíčových pracovníků ve vzdělávání
B7: Název příjemce podpory | F7: Test plzeň
B8: Pořadové číslo Monitorovací zprávy | F8: 02/2012
B9: Období | F9: 30.6.2012 - 31.12.2012
B10: Počet stran seznamu: | F10: 2
B11: 1 | M11: 0.25 | N11: 0.09
B12: 2 | H12: Celkové součty jednotlivých položek: | J12: 117000 | M12: 13000 | N12: 4680 | O12: 8100 | Q12: 142780
M13: 1.2 Sociální pojištění | N13: 1.3 Zdravotní pojištění | R13: Vyplňuje ŘO/ZS1) Korekce v rámci ZS/ŘO
B14: Pořadové číslo | C14: Číslo dokladu projektu | D14: rok/měsíc | E14: Číslo dokladu v účetním systému | F14: Vazba na položku v rozpočtu (hrubá mzda) | G14: Zaměstnanec (výběr ze seznamu na listu zaměstnanci) | H14: Pozice | I14: Druh pracovního poměru | J14: Hrubá mzda/plat v daném měsíci v Kč | K14: Počet odpracov. hodin | L14: Hodinová mzda/plat v Kč | M14: Pojistné na sociální pojištění v Kč | N14: Pojistné na zdravotní pojištění v Kč | O14: Jiné povinné výdaje / FKSP | P14: Subjekt | Q14: Způsobilé osobní náklady v Kč (částka zahrnutá k proplacení pro projekt) | R14: Korekce - hrubá mzda | S14: Korekce -sociální pojištění | T14: Korkece -zdravotní pojištění | U14: Korekce -FKSP | V14: Korekce - nemocenská | W14: Korekce - další zákonné odvody | X14: Způsobilé výdaje po korekci | Z14: Částka uvedená na dokladu | AA14: Subjekt | AB14: Typ úhrady | AC14: Datum úhrady z provozních prostředků | AD14: Datum úhrady z projektových prostředků | AE14: Datum uskutečnění výdaje | AF14: Číslo kapitoly rozpočtu
B15: MV.1 | C15: 04/02/2012 | D15: MZDY - 1/2012 | E15: MZ012012 | F15: 1.1.1.1.1 Lektor | G15: Josef Mánes | H15: Pozice 1 | I15: PS | J15: 15000 | K15: 45 | L15: 333.3333333 | M15: 3750 | N15: 1350 | P15: TP | Q15: 20100 | Z15: 152000 | AA15: TP | AB15: Projektový účet | AD15: 2012-02-15 | AE15: 2012-02-15 | AF15: 1
B16: MV.2 | C16: 04/02/2012 | D16: MZDY - 1/2012 | E16: MZ012012 | F16: 1.1.1.2.1 Lektor | G16: Franta Úprka | H16: Pozice 2 | I16: DPČ | J16: 12000 | K16: 40 | L16: 300 | M16: 3000 | N16: 1080 | P16: TP | Q16: 16080 | Z16: 152000 | AA16: TP | AB16: Projektový účet | AD16: 2012-02-15 | AE16: 2012-02-15
B17: MV.3 | C17: 04/02/2012 | D17: MZDY - 1/2012 | E17: MZ012012 | F17: 1.1.1.3 Odměny z dohod (DPP) | G17: Karel Novotný | H17: Pozice 3 | I17: DPP | J17: 25000 | K17: 25 | L17: 1000 | M17: 6250 | N17: 2250 | P17: TP | Q17: 33500 | Z17: 152000 | AA17: TP | AB17: Projektový účet | AD17: 2012-02-15 | AE17: 2012-02-15
B18: MV.4 | C18: 04/02/2012 | D18: MZDY - 1/2012 | E18: MZ012012 | F18: 1.1.1.4 Autorské honoráře | G18: Monika Nová | H18: Pozice 4 | I18: AH | J18: 65000 | K18: 20 | L18: 3250 | M18: 0 | N18: 0 | P18: TP | Q18: 65000 | Z18: 152000 | AA18: TP | AB18: Projektový účet | AD18: 2012-02-15 | AE18: 2012-02-15
B19: MV.5 | C19: 04/02/2012 | D19: MZDY - 1/2012 | E19: MZ012012 | F19: 1.4 FKSP | O19: 5600 | P19: TP | Q19: 5600 | Z19: 152000 | AA19: TP | AB19: Projektový účet | AD19: 2012-02-15 | AE19: 2012-02-15
B20: MV.6 | C20: 04/02/2012 | D20: MZDY - 1/2012 | E20: MZ012012 | F20: 1.5 Jiné povinné výdaje (Zákonné pojištění zaměstnanců) | O20: 2500 | P20: TP | Q20: 2500 | Z20: 152000 | AA20: TP | AB20: Projektový účet | AD20: 2012-02-15 | AE20: 2012-02-15
B21: MV.7
B22: MV.8
B23: MV.9
B24: MV.10
B25: MV.11
B26: MV.12
B27: MV.13
B28: MV.14
B29: MV.15
B30: MV.16
B31: MV.17
B32: MV.18
B33: MV.19
B34: MV.20
B35: MV.21
B36: MV.22
B37: MV.23
B38: MV.24
B39: MV.25
B40: MV.26
B41: MV.27
B42: MV.28
B43: MV.29
B44: MV.30
B45: MV.31
B46: MV.32
B47: MV.33
B48: MV.34
B49: MV.35
B50: MV.36
B51: MV.37
B52: MV.38
B53: MV.39
B54: MV.40
B55: MV.41
B56: MV.42
B57: MV.43
B58: MV.44
B59: MV.45
B60: MV.46
B61: MV.47
B62: MV.48
B63: MV.49
B64: MV.50
B65: MV.51
B66: MV.52
B67: MV.53
B68: MV.54
B69: MV.55
B70: MV.56
B71: MV.57
B72: MV.58
B73: MV.59
B74: MV.60
B75: MV.61
B76: MV.62
B77: MV.63
B78: MV.64
B79: MV.65
B80: MV.66
B81: MV.67
B82: MV.68
B83: MV.69
B84: MV.70
B85: MV.71
B86: MV.72
B87: MV.73
B88: MV.74
B89: MV.75
B90: MV.76
B91: MV.77
B92: MV.78
B93: MV.79
B94: MV.80
B95: MV.81
B96: MV.82
B97: MV.83
B98: MV.84
B99: MV.85
B100: MV.86
B101: MV.87
B102: MV.88
B103: MV.89
B104: MV.90
B105: MV.91
B106: MV.92
B107: MV.93
B108: MV.94
B109: MV.95
B110: MV.96
B111: MV.97
B112: MV.98
B113: MV.99
B114: MV.100
B115: MV.101
B116: MV.102
B117: MV.103
B118: MV.104
B119: MV.105
B120: MV.106
B121: MV.107
B122: MV.108
B123: MV.109
B124: MV.110
B125: MV.111
B126: MV.112
B127: MV.113
B128: MV.114
B129: MV.115
B130: MV.116
B131: MV.117
B132: MV.118
B133: MV.119
B134: MV.120
B135: MV.121
B136: MV.122
B137: MV.123
B138: MV.124
B139: MV.125
B140: MV.126
B141: MV.127
B142: MV.128
B143: MV.129
B144: MV.130
B145: MV.131
B146: MV.132
B147: MV.133
B148: MV.134
B149: MV.135
B150: MV.136
B151: MV.137
B152: MV.138
B153: MV.139
B154: MV.140
B155: MV.141
B156: MV.142
B157: MV.143
B158: MV.144
B159: MV.145
B160: MV.146
B161: MV.147
B162: MV.148
B163: MV.149
B164: MV.150
B165: MV.151
B166: MV.152
B167: MV.153
B168: MV.154
B169: MV.155
B170: MV.156
B171: MV.157
B172: MV.158
B173: MV.159
B174: MV.160
B175: MV.161
B176: MV.162
B177: MV.163
B178: MV.164
B179: MV.165
B180: MV.166
B181: MV.167
B182: MV.168
B183: MV.169
B184: MV.170
B185: MV.171
B186: MV.172
B187: MV.173
B188: MV.174
B189: MV.175
B190: MV.176
B191: MV.177
B192: MV.178
B193: MV.179
B194: MV.180
B195: MV.181
B196: MV.182
B197: MV.183
B198: MV.184
B199: MV.185
B200: MV.186
B201: MV.187
B202: MV.188
B203: MV.189
... 311 more rows

Sheet Cestovní náhrady
B3: ROZPIS CESTOVNÍCH NÁHRAD
A5: Registrační číslo projektu | E5: CZ.1.07/3.2.04/03.0001
A6: Název projektu | E6: Tvorba a ověření komplexního vzdělávacího programu pro rozvoj klíčových pracovníků ve vzdělávání
A7: Název příjemce podpory | E7: Test plzeň
A8: Pořadové číslo Monitorovací zprávy | E8: 02/2012
A9: Období | E9: 30.6.2012 - 31.12.2012
A10: Počet stran seznamu: | E10: 2
B11: 2 | R11: 1) Vyplňuje pouze ZS/ŘO
I12: Cestovné celkem: | J12: 3200 | K12: Ubytování celkem: | L12: 1700 | M12: Stravné celkem: | N12: 300 | O12: Nutné vedlejší výdaje celkem: | P12: 190 | Q12: 5390 | R12: Vyplňuje ŘO/ZS1) Korekce v rámci ZS/ŘO
A13: Subjekt | B13: Pořadové číslo | C13: Číslo dokladu projektu | D13: Číslo dokladu v účetním systému | E13: Zaměstnanec | F13: Datum zahájení pracovní cesty | G13: Datum ukončení pracovní cesty | H13: Účel pracovní cesty | I13: Vazba na položku v rozpočtu | J13: Cestovné v Kč | K13: Vazba na položku v rozpočtu | L13: Ubytování v Kč | M13: Vazba na položku v rozpočtu | N13: Stravné v Kč | O13: Vazba na položku v rozpočtu | P13: Nutné vedlejší výdaje v Kč | Q13: Celkem v Kč | R13: Korekce - cestovné | S13: Korekce - ubytování | T13: Korekce - stravné | U13: Korekce - nutné vedlejší výdaje | V13: Způsobilé výdaje po korekci | X13: Částka uvedená na dokladu | Y13: Subjekt | Z13: Typ úhrady | AA13: Datum úhrady zprovozních prostředků | AB13: Datum úhrady z projektového účtu | AC13: Datum uskutečnění výdaje
A14: P1 | B14: CN.1 | C14: 01/02/2012 | D14: CS122012 | E14: Josef Mánes | F14: 2012-01-01 | G14: 2012-02-03 | H14: Test1 | I14: 2.1 Cestovné (vč. provozu služebního auta) | J14: 500 | K14: 2.2 Ubytování | L14: 800 | M14: 2.3 Stravné | N14: 100 | O14: 2.4 Ostatní | P14: 50 | Q14: 1450 | X14: 2300 | Y14: P1 | Z14: Projektový účet | AB14: 2012-03-04 | AC14: 2012-03-04
A15: P1 | B15: CN.2 | C15: 02/02/2012 | D15: CS1220121 | E15: Franta Úprka | F15: 2012-02-01 | G15: 2012-02-03 | H15: Test2 | I15: 2.1 Cestovné (vč. provozu služebního auta) | J15: 2100 | K15: 2.2 Ubytování | L15: 100 | M15: 2.3 Stravné | N15: 100 | O15: 2.4 Ostatní | P15: 50 | Q15: 2350 | X15: 2300 | Y15: P1 | Z15: Projektový účet | AB15: 2012-03-04 | AC15: 2012-03-04
A16: P1 | B16: CN.3 | C16: 03/02/2012 | D16: CS1220122 | E16: Karel Novotný | F16: 2012-02-01 | G16: 2012-02-03 | H16: Test2 | I16: 2.1 Cestovné (vč. provozu služebního auta) | J16: 600 | K16: 2.2 Ubytování | L16: 800 | M16: 2.3 Stravné | N16: 100 | O16: 2.4 Ostatní | P16: 90 | Q16: 1590 | X16: 2300 | Y16: P1 | Z16: Projektový účet | AB16: 2012-03-04 | AC16: 2012-03-04
B17: CN.4 | Q17: 0
B18: CN.5 | Q18: 0
B19: CN.6 | Q19: 0
B20: CN.7 | Q20: 0
B21: CN.8 | Q21: 0
B22: CN.9 | Q22: 0
B23: CN.10 | Q23: 0
B24: CN.11 | Q24: 0
B25: CN.12 | Q25: 0
B26: CN.13 | Q26: 0
B27: CN.14 | Q27: 0
B28: CN.15 | Q28: 0
B29: CN.16 | Q29: 0
B30: CN.17 | Q30: 0
B31: CN.18 | Q31: 0
B32: CN.19 | Q32: 0
B33: CN.20 | Q33: 0
B34: CN.21 | Q34: 0
B35: CN.22 | Q35: 0
B36: CN.23 | Q36: 0
B37: CN.24 | Q37: 0
B38: CN.25 | Q38: 0
B39: CN.26 | Q39: 0
B40: CN.27 | Q40: 0
B41: CN.28 | Q41: 0
B42: CN.29 | Q42: 0
B43: CN.30 | Q43: 0
B44: CN.31 | Q44: 0
B45: CN.32 | Q45: 0
B46: CN.33 | Q46: 0
B47: CN.34 | Q47: 0
B48: CN.35 | Q48: 0
B49: CN.36 | Q49: 0
B50: CN.37 | Q50: 0
B51: CN.38 | Q51: 0
B52: CN.39 | Q52: 0
B53: CN.40 | Q53: 0
B54: CN.41 | Q54: 0
B55: CN.42 | Q55: 0
B56: CN.43 | Q56: 0
B57: CN.44 | Q57: 0
B58: CN.45 | Q58: 0
B59: CN.46 | Q59: 0
B60: CN.47 | Q60: 0
B61: CN.48 | Q61: 0
B62: CN.49 | Q62: 0
B63: CN.50 | Q63: 0
B64: CN.51 | Q64: 0
B65: CN.52 | Q65: 0
B66: CN.53 | Q66: 0
B67: CN.54 | Q67: 0
B68: CN.55 | Q68: 0
B69: CN.56 | Q69: 0
B70: CN.57 | Q70: 0
B71: CN.58 | Q71: 0
B72: CN.59 | Q72: 0
B73: CN.60 | Q73: 0
B74: CN.61 | Q74: 0
B75: CN.62 | Q75: 0
B76: CN.63 | Q76: 0
B77: CN.64 | Q77: 0
B78: CN.65 | Q78: 0
B79: CN.66 | Q79: 0
B80: CN.67 | Q80: 0
B81: CN.68 | Q81: 0
B82: CN.69 | Q82: 0
B83: CN.70 | Q83: 0
B84: CN.71 | Q84: 0
B85: CN.72 | Q85: 0
B86: CN.73 | Q86: 0
B87: CN.74 | Q87: 0
B88: CN.75 | Q88: 0
B89: CN.76 | Q89: 0
B90: CN.77 | Q90: 0
B91: CN.78 | Q91: 0
B92: CN.79 | Q92: 0
B93: CN.80 | Q93: 0
B94: CN.81 | Q94: 0
B95: CN.82 | Q95: 0
B96: CN.83 | Q96: 0
B97: CN.84 | Q97: 0
B98: CN.85 | Q98: 0
B99: CN.86 | Q99: 0
B100: CN.87 | Q100: 0
B101: CN.88 | Q101: 0
B102: CN.89 | Q102: 0
B103: CN.90 | Q103: 0
B104: CN.91 | Q104: 0
B105: CN.92 | Q105: 0
B106: CN.93 | Q106: 0
B107: CN.94 | Q107: 0
B108: CN.95 | Q108: 0
B109: CN.96 | Q109: 0
B110: CN.97 | Q110: 0
B111: CN.98 | Q111: 0
B112: CN.99 | Q112: 0
B113: CN.100 | Q113: 0
B114: CN.101 | Q114: 0
B115: CN.102 | Q115: 0
B116: CN.103 | Q116: 0
B117: CN.104 | Q117: 0
B118: CN.105 | Q118: 0
B119: CN.106 | Q119: 0
B120: CN.107 | Q120: 0
B121: CN.108 | Q121: 0
B122: CN.109 | Q122: 0
B123: CN.110 | Q123: 0
B124: CN.111 | Q124: 0
B125: CN.112 | Q125: 0
B126: CN.113 | Q126: 0
B127: CN.114 | Q127: 0
B128: CN.115 | Q128: 0
B129: CN.116 | Q129: 0
B130: CN.117 | Q130: 0
B131: CN.118 | Q131: 0
B132: CN.119 | Q132: 0
B133: CN.120 | Q133: 0
B134: CN.121 | Q134: 0
B135: CN.122 | Q135: 0
B136: CN.123 | Q136: 0
B137: CN.124 | Q137: 0
B138: CN.125 | Q138: 0
B139: CN.126 | Q139: 0
B140: CN.127 | Q140: 0
B141: CN.128 | Q141: 0
B142: CN.129 | Q142: 0
B143: CN.130 | Q143: 0
B144: CN.131 | Q144: 0
B145: CN.132 | Q145: 0
B146: CN.133 | Q146: 0
B147: CN.134 | Q147: 0
B148: CN.135 | Q148: 0
B149: CN.136 | Q149: 0
B150: CN.137 | Q150: 0
B151: CN.138 | Q151: 0
B152: CN.139 | Q152: 0
B153: CN.140 | Q153: 0
B154: CN.141 | Q154: 0
B155: CN.142 | Q155: 0
B156: CN.143 | Q156: 0
B157: CN.144 | Q157: 0
B158: CN.145 | Q158: 0
B159: CN.146 | Q159: 0
B160: CN.147 | Q160: 0
B161: CN.148 | Q161: 0
B162: CN.149 | Q162: 0
B163: CN.150 | Q163: 0
B164: CN.151 | Q164: 0
B165: CN.152 | Q165: 0
B166: CN.153 | Q166: 0
B167: CN.154 | Q167: 0
B168: CN.155 | Q168: 0
B169: CN.156 | Q169: 0
B170: CN.157 | Q170: 0
B171: CN.158 | Q171: 0
B172: CN.159 | Q172: 0
B173: CN.160 | Q173: 0
B174: CN.161 | Q174: 0
B175: CN.162 | Q175: 0
B176: CN.163 | Q176: 0
B177: CN.164 | Q177: 0
B178: CN.165 | Q178: 0
B179: CN.166 | Q179: 0
B180: CN.167 | Q180: 0
B181: CN.168 | Q181: 0
B182: CN.169 | Q182: 0
B183: CN.170 | Q183: 0
B184: CN.171 | Q184: 0
B185: CN.172 | Q185: 0
B186: CN.173 | Q186: 0
B187: CN.174 | Q187: 0
B188: CN.175 | Q188: 0
B189: CN.176 | Q189: 0
B190: CN.177 | Q190: 0
B191: CN.178 | Q191: 0
B192: CN.179 | Q192: 0
B193: CN.180 | Q193: 0
B194: CN.181 | Q194: 0
B195: CN.182 | Q195: 0
B196: CN.183 | Q196: 0
B197: CN.184 | Q197: 0
B198: CN.185 | Q198: 0
B199: CN.186 | Q199: 0
B200: CN.187 | Q200: 0
B201: CN.188 | Q201: 0
B202: CN.189 | Q202: 0
B203: CN.190 | Q203: 0
... 211 more rows

Sheet Ostatní výdaje
B3: ROZPIS OSTATNÍCH VÝDAJŮ
A5: Registrační číslo projektu | E5: CZ.1.07/3.2.04/03.0001
A6: Název projektu | E6: Tvorba a ověření komplexního vzdělávacího programu pro rozvoj klíčových pracovníků ve vzdělávání
A7: Název příjemce podpory | E7: Test plzeň
A8: Pořadové číslo Monitorovací zprávy | E8: 02/2012
A9: Období | E9: 30.6.2012 - 31.12.2012
A10: Počet stran seznamu: | E10: 2
B11: 2 | G11: Celkové součty: | H11: 336000 | I11: 56000 | J11: 56000 | K11: 56000 | L11: Korekce v rámci ZS/ŘO | M11: Způsobilé výdaje po korekci | O11: 336000
A12: Subjekt | B12: Pořadové číslo | C12: Číslo dokladu projektu | D12: Číslo dokladu v účetním systému | E12: Vazba na položku v rozpočtu | F12: Název výdaje | G12: Název dodavatele | H12: Částka zahrnutá k proplacení pro projekt | I12: Investiční prostředky | J12: Křížové financování investice | K12: Křížové financování neinvestice | L12: Vyplňuje ŘO/ZS1) | O12: Částka uvedená na dokladu | P12: Subjekt | Q12: Typ úhrady | R12: Datum úhrady z provozních prostředků | S12: Datum úhrady z projektových prostředků | T12: Datum uskutečnění výdaje | U12: Kapitola
A13: TP | B13: OV.1 | C13: 06/02/2012 | D13: O152012 | E13: 3.1.1.2 Microsoft Office | F13: Software | H13: 56000 | O13: 56000 | P13: TP | Q13: Provozní účet/ projektový účet | R13: 2012-03-15 | S13: 2012-03-16 | T13: 2012-03-16 | U13: 3
A14: TP | B14: OV.2 | C14: 07/02/2012 | D14: O1520121 | E14: 3.3.3 Kamera | F14: Kamera | H14: 56000 | O14: 56000 | P14: TP | Q14: Provozní účet/ projektový účet | R14: 2012-03-15 | S14: 2012-03-16 | T14: 2012-03-16 | U14: 3
A15: TP | B15: OV.3 | C15: Doklad se nedokládá | D15: O1520122 | E15: 5.5.1 Akreditace | F15: Počítač | H15: 56000 | O15: 56000 | P15: TP | Q15: Provozní účet/ projektový účet | R15: 2012-03-15 | S15: 2012-03-16 | T15: 2012-03-16 | U15: 5
A16: TP | B16: OV.4 | C16: Doklad se nedokládá | D16: O1520122 | E16: 8.1 Audit | F16: Počítač | H16: 56000 | O16: 56000 | P16: TP | Q16: Provozní účet/ projektový účet | R16: 2012-03-15 | S16: 2012-03-16 | T16: 2012-03-16 | U16: 8
A17: TP | B17: OV.5 | C17: 06/02/2012 | D17: O152012 | E17: 3.8.1 Investiční část | F17: Software | H17: 56000 | I17: 56000 | J17: 56000 | O17: 56000 | P17: TP | Q17: Provozní účet/ projektový účet | R17: 2012-03-15 | S17: 2012-03-16 | T17: 2012-03-16 | U17: 3
A18: TP | B18: OV.6 | C18: 07/02/2012 | D18: O1520121 | E18: 3.8.2 Neinvestiční část | F18: Kamera | H18: 56000 | K18: 56000 | O18: 56000 | P18: TP | Q18: Provozní účet/ projektový účet | R18: 2012-03-15 | S18: 2012-03-16 | T18: 2012-03-16 | U18: 3
B19: OV.7
B20: OV.8
B21: OV.9
B22: OV.10
B23: OV.11
B24: OV.12
B25: OV.13
B26: OV.14
B27: OV.15
B28: OV.16
B29: OV.17
B30: OV.18
B31: OV.19
B32: OV.20
B33: OV.21
B34: OV.22
B35: OV.23
B36: OV.24
B37: OV.25
B38: OV.26
B39: OV.27
B40: OV.28
B41: OV.29
B42: OV.30
B43: OV.31
B44: OV.32
B45: OV.33
B46: OV.34
B47: OV.35
B48: OV.36
B49: OV.37
B50: OV.38
B51: OV.39
B52: OV.40
B53: OV.41
B54: OV.42
B55: OV.43
B56: OV.44
B57: OV.45
B58: OV.46
B59: OV.47
B60: OV.48
B61: OV.49
B62: OV.50
B63: OV.51
B64: OV.52
B65: OV.53
B66: OV.54
B67: OV.55
B68: OV.56
B69: OV.57
B70: OV.58
B71: OV.59
B72: OV.60
B73: OV.61
B74: OV.62
B75: OV.63
B76: OV.64
B77: OV.65
B78: OV.66
B79: OV.67
B80: OV.68
B81: OV.69
B82: OV.70
B83: OV.71
B84: OV.72
B85: OV.73
B86: OV.74
B87: OV.75
B88: OV.76
B89: OV.77
B90: OV.78
B91: OV.79
B92: OV.80
B93: OV.81
B94: OV.82
B95: OV.83
B96: OV.84
B97: OV.85
B98: OV.86
B99: OV.87
B100: OV.88
B101: OV.89
B102: OV.90
B103: OV.91
B104: OV.92
B105: OV.93
B106: OV.94
B107: OV.95
B108: OV.96
B109: OV.97
B110: OV.98
B111: OV.99
B112: OV.100
B113: OV.101
B114: OV.102
B115: OV.103
B116: OV.104
B117: OV.105
B118: OV.106
B119: OV.107
B120: OV.108
B121: OV.109
B122: OV.110
B123: OV.111
B124: OV.112
B125: OV.113
B126: OV.114
B127: OV.115
B128: OV.116
B129: OV.117
B130: OV.118
B131: OV.119
B132: OV.120
B133: OV.121
B134: OV.122
B135: OV.123
B136: OV.124
B137: OV.125
B138: OV.126
B139: OV.127
B140: OV.128
B141: OV.129
B142: OV.130
B143: OV.131
B144: OV.132
B145: OV.133
B146: OV.134
B147: OV.135
B148: OV.136
B149: OV.137
B150: OV.138
B151: OV.139
B152: OV.140
B153: OV.141
B154: OV.142
B155: OV.143
B156: OV.144
B157: OV.145
B158: OV.146
B159: OV.147
B160: OV.148
B161: OV.149
B162: OV.150
B163: OV.151
B164: OV.152
B165: OV.153
B166: OV.154
B167: OV.155
B168: OV.156
B169: OV.157
B170: OV.158
B171: OV.159
B172: OV.160
B173: OV.161
B174: OV.162
B175: OV.163
B176: OV.164
B177: OV.165
B178: OV.166
B179: OV.167
B180: OV.168
B181: OV.169
B182: OV.170
B183: OV.171
B184: OV.172
B185: OV.173
B186: OV.174
B187: OV.175
B188: OV.176
B189: OV.177
B190: OV.178
B191: OV.179
B192: OV.180
B193: OV.181
B194: OV.182
B195: OV.183
B196: OV.184
B197: OV.185
B198: OV.186
B199: OV.187
B200: OV.188
B201: OV.189
B202: OV.190
B203: OV.191
... 309 more rows

Sheet Odpisy
B2: ODPISY
A4: Registrační číslo projektu | E4: CZ.1.07/3.2.04/03.0001
A5: Název projektu | E5: Tvorba a ověření komplexního vzdělávacího programu pro rozvoj klíčových pracovníků ve vzdělávání
A6: Název příjemce podpory | E6: Test plzeň
A7: Pořadové číslo Monitorovací zprávy | E7: 02/2012
A8: Období | E8: 30.6.2012 - 31.12.2012
A9: Počet stran seznamu: | E9: 2
B10: 2 | H10: Celkem: | I10: 150000 | J10: 56000 | M10: 56000 | N10: Korekce v rámci ZS/ŘO | O10: Způsobilé výdaje po korekci | S10: návrh na vypuštění | T10: návrh na vypuštění
A11: Subjekt | B11: Pořadové číslo | C11: Číslo dokladu projektu | D11: Číslo dokladu v účetním systému | E11: Vazba na položku v rozpočtu | F11: Inventární číslo | G11: Název odepisovaného majetku | H11: Daňová odpisová skupina/způsob odepisování (zrychlené / rovnoměrné) | I11: Pořizovací cena v Kč | J11: Odpis, který přísluší projektu | K11: Počet měsíců, po které byl majetek používán v projektu v daném monitorovacím období | L11: Využití majetku v projektu (v %) | M11: Odpis, který přísluší projektu v Kč | N11: Vyplňuje ŘO/ZS1) | Q11: Částka uvedená na dokladu | R11: Subjekt | S11: Typ úhrady | T11: Datum úhrady z provozních prostředků | U11: Datum úhrady z projektových prostředků | V11: Datum uskutečnění výdaje
A12: TP | B12: O.1 | C12: Doklad se nedokládá | D12: O1520122 | E12: 3.6 Odpisy | F12: 44556666 | G12: Počítač | H12: 4 | I12: 150000 | J12: 56000 | K12: 5 | L12: 0.2 | M12: 56000 | Q12: 56000 | R12: TP | S12: Provozní účet/ projektový účet | T12: 2012-03-15 | U12: 2012-03-16 | V12: 2012-03-16
B13: O.2
B14: O.3
B15: O.4
B16: O.5
B17: O.6
B18: O.7
B19: O.8
B20: O.9
B21: O.10
B22: O.11
B23: O.12
B24: O.13
B25: O.14
B26: O.15
B27: O.16
B28: O.17
B29: O.18
B30: O.19
B31: O.20
B32: O.21
B33: O.22
B34: O.23
B35: O.24
B36: O.25
B37: O.26
B38: O.27
B39: O.28
B40: O.29
B41: O.30
B42: O.31
B43: O.32
B44: O.33
B45: O.34
B46: O.35
B47: O.36
B48: O.37
B49: O.38
B50: O.39
B51: O.40
B52: O.41
B53: O.42
B54: O.43
B55: O.44
B56: O.45
B57: O.46
B58: O.47
B59: O.48
B60: O.49
B61: O.50
B62: O.51
B63: O.52
B64: O.53
B65: O.54
B66: O.55
B67: O.56
B68: O.57
B69: O.58
B70: O.59
B71: O.60
B72: O.61
B73: O.62
B74: O.63
B75: O.64
B76: O.65
B77: O.66
B78: O.67
B79: O.68
B80: O.69
B81: O.70
B82: O.71
B83: O.72
B84: O.73
B85: O.74
B86: O.75
B87: O.76
B88: O.77
B89: O.78
B90: O.79
B91: O.80
B92: O.81
B93: O.82
B94: O.83
B95: O.84
B96: O.85
B97: O.86
B98: O.87
B99: O.88
B100: O.89
B101: O.90
B102: O.91
B103: O.92
B104: O.93
B105: O.94
B106: O.95
B107: O.96
B108: O.97
B109: O.98
B110: O.99
B111: O.100
A112: 0 | D112: Celkem: | I112: 150000 | J112: 56000 | K112: 5 | L112: 0.2 | M112: 56000 | N112: 0 | O112: 0

Sheet Mzdové příspěvky
B2: ROZPIS MZDOVÝCH PŘÍSPĚVKŮ PRO ŠKOLENÉ OSOBY
A4: Registrační číslo projektu | E4: CZ.1.07/3.2.04/03.0001
A5: Název projektu | E5: Tvorba a ověření komplexního vzdělávacího programu pro rozvoj klíčových pracovníků ve vzdělávání
A6: Název příjemce podpory | E6: Test plzeň
A7: Pořadové číslo Monitorovací zprávy | E7: 02/2012
A8: Období | E8: 30.6.2012 - 31.12.2012
A9: Počet stran seznamu: | E9: 2
B10: 2 | H10: Zrušit? | J10: Celkem: | K10: 15800 | L10: 2500 | M10: 2500 | P10: 2164 | S10: Korekce v rámci ZS/ŘO | T10: Způsobilé výdaje po korekci
A11: Subjekt | B11: Číslo dokladu v účetním systému | C11: Číslo dokladu projektu | D11: Vazba na položku v rozpočtu | E11: Název zaměstnavatele (dodavatele) | F11: Jméno a příjmení zaměstnance1) | G11: Měsíc/Rok školení | H11: Školení dle kódu | I11: Počet hodin školení | J11: Měsíční fond pracovní doby v hodinách | K11: Zúčtovaná hrubá mzda v Kč | L11: Pojistné na sociální a zdravotní pojištění | M11: Další odvody | N11: Hodinový mzdový náklad v Kč | O11: Podmínka uznatel- nosti v Kč | P11: Uznatelný mzdový náklad v Kč | Q11: Výdaj se řídí PPP | R11: Výše minimální hodinové mzdy | S11: Vyplňuje ŘO/ZS1) | V11: Částka uvedená na dokladu | W11: Subjekt | X11: Typ úhrady | Y11: Datum úhrady z provozních prostředků | Z11: Datum úhrady z projektových prostředků | AA11: Datum uskutečnění výdaje
A12: TP | B12: MZ0220122 | C12: 05/02/2012 | D12: 7.1 Mzdové příspěvky | E12: Pokus | F12: Kolibřík | G12: 2012-07-01 | I12: 15 | J12: 45 | K12: 15800 | L12: 2500 | M12: 2500 | N12: 462.2222222 | O12: 144.3 | P12: 2164 | Q12: Verze 6 | R12: 48.1 | V12: 126000 | W12: TP | X12: Projektový účet | Z12: 2012-03-15 | AA12: 2012-03-15
Q13: Verze 6
Q14: Verze 6
Q15: Verze 6
Q16: Verze 6
Q17: Verze 6
Q18: Verze 6
Q19: Verze 6
Q20: Verze 6
Q21: Verze 6
Q22: Verze 6
Q23: Verze 6
Q24: Verze 6
Q25: Verze 6
Q26: Verze 6
Q27: Verze 6
Q28: Verze 6
Q29: Verze 6
Q30: Verze 6
Q31: Verze 6
Q32: Verze 6
Q33: Verze 6
Q34: Verze 6
Q35: Verze 6
Q36: Verze 6
Q37: Verze 6
Q38: Verze 6
Q39: Verze 6
Q40: Verze 6
Q41: Verze 6
Q42: Verze 6
Q43: Verze 6
Q44: Verze 6
Q45: Verze 6
Q46: Verze 6
Q47: Verze 6
Q48: Verze 6
Q49: Verze 6
Q50: Verze 6
Q51: Verze 6
Q52: Verze 6
Q53: Verze 6
Q54: Verze 6
Q55: Verze 6
Q56: Verze 6
Q57: Verze 6
Q58: Verze 6
Q59: Verze 6
Q60: Verze 6
Q61: Verze 6
Q62: Verze 6
Q63: Verze 6
Q64: Verze 6
Q65: Verze 6
Q66: Verze 6
Q67: Verze 6
Q68: Verze 6
Q69: Verze 6
Q70: Verze 6
Q71: Verze 6
Q72: Verze 6
Q73: Verze 6
Q74: Verze 6
Q75: Verze 6
Q76: Verze 6
Q77: Verze 6
Q78: Verze 6
Q79: Verze 6
Q80: Verze 6
Q81: Verze 6
Q82: Verze 6
Q83: Verze 6
Q84: Verze 6
Q85: Verze 6
Q86: Verze 6
Q87: Verze 6
Q88: Verze 6
Q89: Verze 6
Q90: Verze 6
Q91: Verze 6
Q92: Verze 6
Q93: Verze 6
Q94: Verze 6
Q95: Verze 6
Q96: Verze 6
Q97: Verze 6
Q98: Verze 6
Q99: Verze 6
Q100: Verze 6
Q101: Verze 6
Q102: Verze 6
Q103: Verze 6
Q104: Verze 6
Q105: Verze 6
Q106: Verze 6
Q107: Verze 6
Q108: Verze 6
Q109: Verze 6
Q110: Verze 6
Q111: Verze 6
Q112: Verze 6
Q113: Verze 6
Q114: Verze 6
Q115: Verze 6
Q116: Verze 6
Q117: Verze 6
Q118: Verze 6
Q119: Verze 6
Q120: Verze 6
Q121: Verze 6
Q122: Verze 6
Q123: Verze 6
Q124: Verze 6
Q125: Verze 6
Q126: Verze 6
Q127: Verze 6
Q128: Verze 6
Q129: Verze 6
Q130: Verze 6
Q131: Verze 6
Q132: Verze 6
Q133: Verze 6
Q134: Verze 6
Q135: Verze 6
Q136: Verze 6
Q137: Verze 6
Q138: Verze 6
Q139: Verze 6
Q140: Verze 6
Q141: Verze 6
Q142: Verze 6
Q143: Verze 6
Q144: Verze 6
Q145: Verze 6
Q146: Verze 6
Q147: Verze 6
Q148: Verze 6
Q149: Verze 6
Q150: Verze 6
Q151: Verze 6
Q152: Verze 6
Q153: Verze 6
Q154: Verze 6
Q155: Verze 6
Q156: Verze 6
Q157: Verze 6
Q158: Verze 6
Q159: Verze 6
Q160: Verze 6
Q161: Verze 6
Q162: Verze 6
Q163: Verze 6
Q164: Verze 6
Q165: Verze 6
Q166: Verze 6
Q167: Verze 6
Q168: Verze 6
Q169: Verze 6
Q170: Verze 6
Q171: Verze 6
Q172: Verze 6
Q173: Verze 6
Q174: Verze 6
Q175: Verze 6
Q176: Verze 6
Q177: Verze 6
Q178: Verze 6
Q179: Verze 6
Q180: Verze 6
Q181: Verze 6
Q182: Verze 6
Q183: Verze 6
Q184: Verze 6
Q185: Verze 6
Q186: Verze 6
Q187: Verze 6
Q188: Verze 6
Q189: Verze 6
Q190: Verze 6
Q191: Verze 6
Q192: Verze 6
Q193: Verze 6
Q194: Verze 6
Q195: Verze 6
Q196: Verze 6
Q197: Verze 6
Q198: Verze 6
Q199: Verze 6
Q200: Verze 6
Q201: Verze 6
Q202: Verze 6
... 310 more rows

Sheet Příjmy
B2: ROZPIS PŘÍJMŮ
B4: Registrační číslo projektu | E4: =IF(Hlavička!$B$3<>"",Hlavička!$B$3,"Zadejte hodnotu na listu Hlavička") -> CZ.1.07/3.2.xx/yy.1111
B5: Název projektu | E5: =IF(Hlavička!$B$4<>"",Hlavička!$B$4,"Zadejte hodnotu na listu Hlavička") -> Tvorba a ověření komplexního vzdělávacího programu
B6: Název příjemce podpory | E6: =IF(Hlavička!$B$5<>"",Hlavička!$B$5,"Zadejte hodnotu na listu Hlavička") -> Test
B7: Pořadové číslo Monitorovací zprávy | E7: =IF(Hlavička!$B$6<>"",Hlavička!$B$6,"Zadejte hodnotu na listu Hlavička") -> 02/2012
B8: Období | E8: =IF(OR(Hlavička!$B$8<>"",Hlavička!$C$8<>""),DAY(Hlavička!$B$8)&"."&MONTH(Hlavička!$B$8)&"."&YEAR(Hlavička!$B$8)&" - "&DAY(Hlavička!$D$8)&"."&MONTH(Hlavička!$D$8)&"."&YEAR(Hlavička!$D$8),"Zadejte hodnotu na listu Hlavička") -> 30.6.2012 - 31.12.2012
B9: Počet stran seznamu: | E9: =B10 -> 2
B10: 2 | F10: Celkem: | G10: =SUM(G13:G113) -> 690
B11: Číslo dokladu v účetním systému1 | C11: Částka uvedená na dokladu2 | D11: Subjekt | E11: Datum příjmu na projektovém účtu | F11: Popis příjmu | G11: Částka připsaná ku prospěchu projektu | H11: Vyplňuje ŘO/ZS1)
H12: Korekce v rámci ZS/ŘO | I12: Příjmy po korekci
B13: P1620122 | C13: =IF(ISERROR(VLOOKUP(B13,DOKLADY_DATA,2,FALSE))," ",VLOOKUP(B13,DOKLADY_DATA,2,FALSE)) -> 230 | D13: =IF(ISERROR(VLOOKUP(B13,DOKLADY_DATA,4,FALSE))," ",VLOOKUP(B13,DOKLADY_DATA,4,FALSE)) -> TP | E13: =IF(ISERROR(VLOOKUP(B13,DOKLADY_DATA,8,FALSE))," ",VLOOKUP(B13,DOKLADY_DATA,8,FALSE)) -> 2012-04-16 | F13: =IF(ISERROR(VLOOKUP(B13,DOKLADY_DATA,10,FALSE))," ",VLOOKUP(B13,DOKLADY_DATA,10,FALSE)) -> Kladné úroky na účtu | G13: =IF(ISERROR(VLOOKUP(B13,DOKLADY_DATA,3,FALSE))," ",VLOOKUP(B13,DOKLADY_DATA,3,FALSE)) -> 230 | I13: =IF(OR(B13="",H13=0),"",G13-H13) -> 
B14: P1620121 | C14: 230 | D14: TP | E14: 2012-04-16 | F14: Kladné úroky na účtu | G14: 230 | I14: =IF(OR(B14="",H14=0),"",G14-H14) -> 
B15: P1620122 | C15: 230 | D15: TP | E15: 2012-04-16 | F15: Kladné úroky na účtu | G15: 230
C77: =IF(ISERROR(VLOOKUP(B77,DOKLADY_DATA,2,FALSE))," ",VLOOKUP(B77,DOKLADY_DATA,2,FALSE)) ->  | D77: =IF(ISERROR(VLOOKUP(B77,DOKLADY_DATA,4,FALSE))," ",VLOOKUP(B77,DOKLADY_DATA,4,FALSE)) ->  | E77: =IF(ISERROR(VLOOKUP(B77,DOKLADY_DATA,8,FALSE))," ",VLOOKUP(B77,DOKLADY_DATA,8,FALSE)) ->  | F77: =IF(ISERROR(VLOOKUP(B77,DOKLADY_DATA,10,FALSE))," ",VLOOKUP(B77,DOKLADY_DATA,10,FALSE)) ->  | G77: =IF(ISERROR(VLOOKUP(B77,DOKLADY_DATA,3,FALSE))," ",VLOOKUP(B77,DOKLADY_DATA,3,FALSE)) -> 
I78: =IF(OR(B78="",H78=0),"",G78-H78) -> 
C141: =IF(ISERROR(VLOOKUP(B141,DOKLADY_DATA,2,FALSE))," ",VLOOKUP(B141,DOKLADY_DATA,2,FALSE)) ->  | D141: =IF(ISERROR(VLOOKUP(B141,DOKLADY_DATA,4,FALSE))," ",VLOOKUP(B141,DOKLADY_DATA,4,FALSE)) ->  | E141: =IF(ISERROR(VLOOKUP(B141,DOKLADY_DATA,8,FALSE))," ",VLOOKUP(B141,DOKLADY_DATA,8,FALSE)) ->  | F141: =IF(ISERROR(VLOOKUP(B141,DOKLADY_DATA,10,FALSE))," ",VLOOKUP(B141,DOKLADY_DATA,10,FALSE)) ->  | G141: =IF(ISERROR(VLOOKUP(B141,DOKLADY_DATA,3,FALSE))," ",VLOOKUP(B141,DOKLADY_DATA,3,FALSE)) -> 
C205: =IF(ISERROR(VLOOKUP(B205,DOKLADY_DATA,2,FALSE))," ",VLOOKUP(B205,DOKLADY_DATA,2,FALSE)) ->  | D205: =IF(ISERROR(VLOOKUP(B205,DOKLADY_DATA,4,FALSE))," ",VLOOKUP(B205,DOKLADY_DATA,4,FALSE)) ->  | E205: =IF(ISERROR(VLOOKUP(B205,DOKLADY_DATA,8,FALSE))," ",VLOOKUP(B205,DOKLADY_DATA,8,FALSE)) ->  | F205: =IF(ISERROR(VLOOKUP(B205,DOKLADY_DATA,10,FALSE))," ",VLOOKUP(B205,DOKLADY_DATA,10,FALSE)) ->  | G205: =IF(ISERROR(VLOOKUP(B205,DOKLADY_DATA,3,FALSE))," ",VLOOKUP(B205,DOKLADY_DATA,3,FALSE)) -> 
C269: =IF(ISERROR(VLOOKUP(B269,DOKLADY_DATA,2,FALSE))," ",VLOOKUP(B269,DOKLADY_DATA,2,FALSE)) ->  | D269: =IF(ISERROR(VLOOKUP(B269,DOKLADY_DATA,4,FALSE))," ",VLOOKUP(B269,DOKLADY_DATA,4,FALSE)) ->  | E269: =IF(ISERROR(VLOOKUP(B269,DOKLADY_DATA,8,FALSE))," ",VLOOKUP(B269,DOKLADY_DATA,8,FALSE)) ->  | F269: =IF(ISERROR(VLOOKUP(B269,DOKLADY_DATA,10,FALSE))," ",VLOOKUP(B269,DOKLADY_DATA,10,FALSE)) ->  | G269: =IF(ISERROR(VLOOKUP(B269,DOKLADY_DATA,3,FALSE))," ",VLOOKUP(B269,DOKLADY_DATA,3,FALSE)) -> 
C333: =IF(ISERROR(VLOOKUP(B333,DOKLADY_DATA,2,FALSE))," ",VLOOKUP(B333,DOKLADY_DATA,2,FALSE)) ->  | D333: =IF(ISERROR(VLOOKUP(B333,DOKLADY_DATA,4,FALSE))," ",VLOOKUP(B333,DOKLADY_DATA,4,FALSE)) ->  | E333: =IF(ISERROR(VLOOKUP(B333,DOKLADY_DATA,8,FALSE))," ",VLOOKUP(B333,DOKLADY_DATA,8,FALSE)) ->  | F333: =IF(ISERROR(VLOOKUP(B333,DOKLADY_DATA,10,FALSE))," ",VLOOKUP(B333,DOKLADY_DATA,10,FALSE)) ->  | G333: =IF(ISERROR(VLOOKUP(B333,DOKLADY_DATA,3,FALSE))," ",VLOOKUP(B333,DOKLADY_DATA,3,FALSE)) -> 
C397: =IF(ISERROR(VLOOKUP(B397,DOKLADY_DATA,2,FALSE))," ",VLOOKUP(B397,DOKLADY_DATA,2,FALSE)) ->  | D397: =IF(ISERROR(VLOOKUP(B397,DOKLADY_DATA,4,FALSE))," ",VLOOKUP(B397,DOKLADY_DATA,4,FALSE)) ->  | E397: =IF(ISERROR(VLOOKUP(B397,DOKLADY_DATA,8,FALSE))," ",VLOOKUP(B397,DOKLADY_DATA,8,FALSE)) ->  | F397: =IF(ISERROR(VLOOKUP(B397,DOKLADY_DATA,10,FALSE))," ",VLOOKUP(B397,DOKLADY_DATA,10,FALSE)) ->  | G397: =IF(ISERROR(VLOOKUP(B397,DOKLADY_DATA,3,FALSE))," ",VLOOKUP(B397,DOKLADY_DATA,3,FALSE)) -> 
C461: =IF(ISERROR(VLOOKUP(B461,DOKLADY_DATA,2,FALSE))," ",VLOOKUP(B461,DOKLADY_DATA,2,FALSE)) ->  | D461: =IF(ISERROR(VLOOKUP(B461,DOKLADY_DATA,4,FALSE))," ",VLOOKUP(B461,DOKLADY_DATA,4,FALSE)) ->  | E461: =IF(ISERROR(VLOOKUP(B461,DOKLADY_DATA,8,FALSE))," ",VLOOKUP(B461,DOKLADY_DATA,8,FALSE)) ->  | F461: =IF(ISERROR(VLOOKUP(B461,DOKLADY_DATA,10,FALSE))," ",VLOOKUP(B461,DOKLADY_DATA,10,FALSE)) ->  | G461: =IF(ISERROR(VLOOKUP(B461,DOKLADY_DATA,3,FALSE))," ",VLOOKUP(B461,DOKLADY_DATA,3,FALSE)) -> 
C525: =IF(ISERROR(VLOOKUP(B525,DOKLADY_DATA,2,FALSE))," ",VLOOKUP(B525,DOKLADY_DATA,2,FALSE)) ->  | D525: =IF(ISERROR(VLOOKUP(B525,DOKLADY_DATA,4,FALSE))," ",VLOOKUP(B525,DOKLADY_DATA,4,FALSE)) ->  | E525: =IF(ISERROR(VLOOKUP(B525,DOKLADY_DATA,8,FALSE))," ",VLOOKUP(B525,DOKLADY_DATA,8,FALSE)) ->  | F525: =IF(ISERROR(VLOOKUP(B525,DOKLADY_DATA,10,FALSE))," ",VLOOKUP(B525,DOKLADY_DATA,10,FALSE)) ->  | G525: =IF(ISERROR(VLOOKUP(B525,DOKLADY_DATA,3,FALSE))," ",VLOOKUP(B525,DOKLADY_DATA,3,FALSE)) -> 
C589: =IF(ISERROR(VLOOKUP(B589,DOKLADY_DATA,2,FALSE))," ",VLOOKUP(B589,DOKLADY_DATA,2,FALSE)) ->  | D589: =IF(ISERROR(VLOOKUP(B589,DOKLADY_DATA,4,FALSE))," ",VLOOKUP(B589,DOKLADY_DATA,4,FALSE)) ->  | E589: =IF(ISERROR(VLOOKUP(B589,DOKLADY_DATA,8,FALSE))," ",VLOOKUP(B589,DOKLADY_DATA,8,FALSE)) ->  | F589: =IF(ISERROR(VLOOKUP(B589,DOKLADY_DATA,10,FALSE))," ",VLOOKUP(B589,DOKLADY_DATA,10,FALSE)) ->  | G589: =IF(ISERROR(VLOOKUP(B589,DOKLADY_DATA,3,FALSE))," ",VLOOKUP(B589,DOKLADY_DATA,3,FALSE)) -> 
C653: =IF(ISERROR(VLOOKUP(B653,DOKLADY_DATA,2,FALSE))," ",VLOOKUP(B653,DOKLADY_DATA,2,FALSE)) ->  | D653: =IF(ISERROR(VLOOKUP(B653,DOKLADY_DATA,4,FALSE))," ",VLOOKUP(B653,DOKLADY_DATA,4,FALSE)) ->  | E653: =IF(ISERROR(VLOOKUP(B653,DOKLADY_DATA,8,FALSE))," ",VLOOKUP(B653,DOKLADY_DATA,8,FALSE)) ->  | F653: =IF(ISERROR(VLOOKUP(B653,DOKLADY_DATA,10,FALSE))," ",VLOOKUP(B653,DOKLADY_DATA,10,FALSE)) ->  | G653: =IF(ISERROR(VLOOKUP(B653,DOKLADY_DATA,3,FALSE))," ",VLOOKUP(B653,DOKLADY_DATA,3,FALSE)) -> 
C717: =IF(ISERROR(VLOOKUP(B717,DOKLADY_DATA,2,FALSE))," ",VLOOKUP(B717,DOKLADY_DATA,2,FALSE)) ->  | D717: =IF(ISERROR(VLOOKUP(B717,DOKLADY_DATA,4,FALSE))," ",VLOOKUP(B717,DOKLADY_DATA,4,FALSE)) ->  | E717: =IF(ISERROR(VLOOKUP(B717,DOKLADY_DATA,8,FALSE))," ",VLOOKUP(B717,DOKLADY_DATA,8,FALSE)) ->  | F717: =IF(ISERROR(VLOOKUP(B717,DOKLADY_DATA,10,FALSE))," ",VLOOKUP(B717,DOKLADY_DATA,10,FALSE)) ->  | G717: =IF(ISERROR(VLOOKUP(B717,DOKLADY_DATA,3,FALSE))," ",VLOOKUP(B717,DOKLADY_DATA,3,FALSE)) -> 
C781: =IF(ISERROR(VLOOKUP(B781,DOKLADY_DATA,2,FALSE))," ",VLOOKUP(B781,DOKLADY_DATA,2,FALSE)) ->  | D781: =IF(ISERROR(VLOOKUP(B781,DOKLADY_DATA,4,FALSE))," ",VLOOKUP(B781,DOKLADY_DATA,4,FALSE)) ->  | E781: =IF(ISERROR(VLOOKUP(B781,DOKLADY_DATA,8,FALSE))," ",VLOOKUP(B781,DOKLADY_DATA,8,FALSE)) ->  | F781: =IF(ISERROR(VLOOKUP(B781,DOKLADY_DATA,10,FALSE))," ",VLOOKUP(B781,DOKLADY_DATA,10,FALSE)) ->  | G781: =IF(ISERROR(VLOOKUP(B781,DOKLADY_DATA,3,FALSE))," ",VLOOKUP(B781,DOKLADY_DATA,3,FALSE)) -> 
C845: =IF(ISERROR(VLOOKUP(B845,DOKLADY_DATA,2,FALSE))," ",VLOOKUP(B845,DOKLADY_DATA,2,FALSE)) ->  | D845: =IF(ISERROR(VLOOKUP(B845,DOKLADY_DATA,4,FALSE))," ",VLOOKUP(B845,DOKLADY_DATA,4,FALSE)) ->  | E845: =IF(ISERROR(VLOOKUP(B845,DOKLADY_DATA,8,FALSE))," ",VLOOKUP(B845,DOKLADY_DATA,8,FALSE)) ->  | F845: =IF(ISERROR(VLOOKUP(B845,DOKLADY_DATA,10,FALSE))," ",VLOOKUP(B845,DOKLADY_DATA,10,FALSE)) ->  | G845: =IF(ISERROR(VLOOKUP(B845,DOKLADY_DATA,3,FALSE))," ",VLOOKUP(B845,DOKLADY_DATA,3,FALSE)) -> 
C909: =IF(ISERROR(VLOOKUP(B909,DOKLADY_DATA,2,FALSE))," ",VLOOKUP(B909,DOKLADY_DATA,2,FALSE)) ->  | D909: =IF(ISERROR(VLOOKUP(B909,DOKLADY_DATA,4,FALSE))," ",VLOOKUP(B909,DOKLADY_DATA,4,FALSE)) ->  | E909: =IF(ISERROR(VLOOKUP(B909,DOKLADY_DATA,8,FALSE))," ",VLOOKUP(B909,DOKLADY_DATA,8,FALSE)) ->  | F909: =IF(ISERROR(VLOOKUP(B909,DOKLADY_DATA,10,FALSE))," ",VLOOKUP(B909,DOKLADY_DATA,10,FALSE)) ->  | G909: =IF(ISERROR(VLOOKUP(B909,DOKLADY_DATA,3,FALSE))," ",VLOOKUP(B909,DOKLADY_DATA,3,FALSE)) -> 
C973: =IF(ISERROR(VLOOKUP(B973,DOKLADY_DATA,2,FALSE))," ",VLOOKUP(B973,DOKLADY_DATA,2,FALSE)) ->  | D973: =IF(ISERROR(VLOOKUP(B973,DOKLADY_DATA,4,FALSE))," ",VLOOKUP(B973,DOKLADY_DATA,4,FALSE)) ->  | E973: =IF(ISERROR(VLOOKUP(B973,DOKLADY_DATA,8,FALSE))," ",VLOOKUP(B973,DOKLADY_DATA,8,FALSE)) ->  | F973: =IF(ISERROR(VLOOKUP(B973,DOKLADY_DATA,10,FALSE))," ",VLOOKUP(B973,DOKLADY_DATA,10,FALSE)) ->  | G973: =IF(ISERROR(VLOOKUP(B973,DOKLADY_DATA,3,FALSE))," ",VLOOKUP(B973,DOKLADY_DATA,3,FALSE)) -> 

Sheet Hodiny
A2: PŘEHLED ODPRACOVANÝCH HODIN
A3: (součet odpracovaných hodin zaměstnanců za monitrorovací období)
A5: Projekt | B5: CZ.1.07/3.2.04/03.0001
B7: Popisky sloupců
A8: Popisky řádků | B8: PS | C8: DPP | D8: DPČ | E8: Celkový součet
A9: 1.1.1.1.1 Lektor | B9: 45 | E9: 45
A10: Pozice 1 | B10: 45 | E10: 45
A11: Josef Mánes | B11: 45 | E11: 45
A12: 1.1.1.2.1 Lektor | D12: 40 | E12: 40
A13: Pozice 2 | D13: 40 | E13: 40
A14: Franta Úprka | D14: 40 | E14: 40
A15: 1.1.1.3 Odměny z dohod (DPP) | C15: 25 | E15: 25
A16: Pozice 3 | C16: 25 | E16: 25
A17: Karel Novotný | C17: 25 | E17: 25
A18: Celkový součet | B18: 45 | C18: 25 | D18: 40 | E18: 110

Sheet Doklady k doložení
A2: INFORMATIVNÍ PŘEHLED DOKLADŮ (automaticky generováno) | M2: PŘEHLED ŘAZENÍ DOKLADŮ K DOLOŽENÍ (automaticky generováno)
M3: Dle tohoto seznamu příjemce řadí doklady dokládané k MZ
A4: Doložení dokladu | B4: (Vše)
M5: Číslo MZ: | N5: 02/2012
A6: Počet z Částka uvedená na dokladu
A7: Označení dokladu v účetnictví organizace | B7: Celkem | L7: Označení dokladu v účetnictví organizace | M7: Označení dokladu v účetnictví organizace | N7: ID | O7: Projektové číslo dokladu | P7: Text dokladu
A8: CS122012 | B8: 4 | M8: CS122012 | N8: 1 | O8: 01/02/2012 | P8: Cesťák do Belgie
A9: CS1220121 | B9: 4 | M9: CS1220121 | N9: 2 | O9: 02/02/2012 | P9: Cesťák do Ameriky
A10: CS1220122 | B10: 4 | M10: CS1220122 | N10: 3 | O10: 03/02/2012 | P10: Cesťák do Holandska
A11: MZ012012 | B11: 18 | M11: MZ012012 | N11: 4 | O11: 04/02/2012 | P11: Mzdy za leden
A12: MZ0220122 | B12: 1 | M12: MZ0220122 | N12: 5 | O12: 05/02/2012 | P12: Mzdy červen
A13: O152012 | B13: 2 | M13: O152012 | N13: 6 | O13: 06/02/2012 | P13: Software
A14: O1520121 | B14: 2 | M14: O1520121 | N14: 7 | O14: 07/02/2012 | P14: Kamera
A15: O1520122 | B15: 3

Sheet SoupiskaVýdajů
A2: SOUPISKA VÝDAJŮ
A4: Registrační číslo projektu | D4: CZ.1.07/3.2.04/03.0001
A5: Název projektu | D5: Tvorba a ověření komplexního vzdělávacího programu pro rozvoj klíčových pracovníků ve vzdělávání
A6: Název příjemce podpory | D6: Test plzeň
A7: Pořadové číslo Monitorovací zprávy | D7: 02/2012
A8: Období | D8: 30.6.2012 - 31.12.2012
A9: Data na tomto listu jsou automaticky generována. Při vstupu na list se automaticky aktualizují. K aktualizaci je nutné povolit spuštění maker. Aktualizaci můžete provést také manuálně tlačítkem z nabídky MS Excel Data > Aktualizovat vše.
A13: Kapitola | B13: Číslo kapitoly, do které je výdaj zahrnut | C13: Popis účetního případu | D13: Subjekt | E13: Částka uvedená na dokladu | F13: Označení dokladu v účetnictví organizace | G13: Datum uskutečnění výdaje | H13: Celkem
A14: 1 | B14: 1.1.1.1.1 Lektor | C14: MZDY - 1/2012 | D14: TP | E14: 152000 | F14: MZ012012 | G14: 2012-02-15 | H14: 20100
B15: 1.1.1.2.1 Lektor | C15: MZDY - 1/2012 | D15: TP | E15: 152000 | F15: MZ012012 | G15: 2012-02-15 | H15: 16080
B16: 1.1.1.3 Odměny z dohod (DPP) | C16: MZDY - 1/2012 | D16: TP | E16: 152000 | F16: MZ012012 | G16: 2012-02-15 | H16: 33500
B17: 1.1.1.4 Autorské honoráře | C17: MZDY - 1/2012 | D17: TP | E17: 152000 | F17: MZ012012 | G17: 2012-02-15 | H17: 65000
B18: 1.2 Sociální pojištění | C18: MZDY - 1/2012 | D18: TP | E18: 152000 | F18: MZ012012 | G18: 2012-02-15 | H18: 13000
B19: 1.3 Zdravotní pojištění | C19: MZDY - 1/2012 | D19: TP | E19: 152000 | F19: MZ012012 | G19: 2012-02-15 | H19: 4680
B20: 1.4 FKSP | C20: MZDY - 1/2012 | D20: TP | E20: 152000 | F20: MZ012012 | G20: 2012-02-15 | H20: 5600
B21: 1.5 Jiné povinné výdaje (Zákonné pojištění zaměstnanců) | C21: MZDY - 1/2012 | D21: TP | E21: 152000 | F21: MZ012012 | G21: 2012-02-15 | H21: 2500
A22: 2 | B22: 2.1 Cestovné (vč. provozu služebního auta) | C22: Test1 | D22: P1 | E22: 2300 | F22: CS122012 | G22: 2012-03-04 | H22: 500
C23: Test2 | D23: P1 | E23: 2300 | F23: CS1220121 | G23: 2012-03-04 | H23: 2100
F24: CS1220122 | G24: 2012-03-04 | H24: 600
B25: 2.2 Ubytování | C25: Test1 | D25: P1 | E25: 2300 | F25: CS122012 | G25: 2012-03-04 | H25: 800
C26: Test2 | D26: P1 | E26: 2300 | F26: CS1220121 | G26: 2012-03-04 | H26: 100
F27: CS1220122 | G27: 2012-03-04 | H27: 800
B28: 2.3 Stravné | C28: Test1 | D28: P1 | E28: 2300 | F28: CS122012 | G28: 2012-03-04 | H28: 100
C29: Test2 | D29: P1 | E29: 2300 | F29: CS1220121 | G29: 2012-03-04 | H29: 100
F30: CS1220122 | G30: 2012-03-04 | H30: 100
B31: 2.4 Ostatní | C31: Test1 | D31: P1 | E31: 2300 | F31: CS122012 | G31: 2012-03-04 | H31: 50
C32: Test2 | D32: P1 | E32: 2300 | F32: CS1220121 | G32: 2012-03-04 | H32: 50
F33: CS1220122 | G33: 2012-03-04 | H33: 90
A34: 3 | B34: 3.1.1.2 Microsoft Office | C34: Software | D34: TP | E34: 56000 | F34: O152012 | G34: 2012-03-16 | H34: 56000
B35: 3.3.3 Kamera | C35: Kamera | D35: TP | E35: 56000 | F35: O1520121 | G35: 2012-03-16 | H35: 56000
B36: 3.6 Odpisy | C36: Počítač | D36: TP | E36: 56000 | F36: O1520122 | G36: 2012-03-16 | H36: 56000
B37: 3.8.1 Investiční část | C37: Software | D37: TP | E37: 56000 | F37: O152012 | G37: 2012-03-16 | H37: 56000
B38: 3.8.2 Neinvestiční část | C38: Kamera | D38: TP | E38: 56000 | F38: O1520121 | G38: 2012-03-16 | H38: 56000
A39: 5 | B39: 5.5.1 Akreditace | C39: Počítač | D39: TP | E39: 56000 | F39: O1520122 | G39: 2012-03-16 | H39: 56000
A40: 8 | B40: 8.1 Audit | C40: Počítač | D40: TP | E40: 56000 | F40: O1520122 | G40: 2012-03-16 | H40: 56000
A41: 7 | B41: 7.1 Mzdové příspěvky | C41: Kolibřík | D41: TP | E41: 126000 | F41: MZ0220122 | G41: 2012-03-15 | H41: 2164

Sheet Podklady pro ŽoP
B5: Datum poslední aktualizace:
B6: 2012-09-14T12:02:07
A7: PODKLADY PRO ŽOP - EX-ANTE Přepis do Zjednodušené žádosti o platbu v aplikaci Benefit 7+
A9: Předpokládané výdaje
A10: Údaje pro zálohové platby (klasifikace platby předfinancování)
A11: Požadovaná částka dotace celkem: | B11: 0 | F11: Komentář
A12: Požadovaná částka dotace - investiční:
A13: Požadovaná částka dotace - neinvestiční:
A14: Schválená výše zálohy z právního aktu | B14: 228000
A15: Vyúčtování vynaložených celkových způsobilých výdajů
A16: Údaje pro vyúčtování zálohových plateb (klasifikace platby refundace předfinancování)
A17: Výběr z jiných peněžních příjmů:
A18: Celkové zdroje připadající na způsobilé výdaje: | B18: 619794.12 | F18: Suma(dolů)
A19: Celkové zdroje připadající na způsobilé výdaje - investiční: | B19: 56000 | F19: Kapitola 11.1.
A20: Celkové zdroje připadající na způsobilé výdaje - neinvestiční: | B20: 563794.12 | D20: 563794.12 | E20: 11.2. | F20: Kapitola 11.2. + List Příjmy celkem G10
A21: Způsobilé výdaje z dotace - celkem: | B21: 619104.12 | F21: Suma(dolů)
A22: Způsobilé výdaje z dotace – investiční výdaje | B22: 56000 | F22: Kapitola 11.1.
A23: Způsobilé výdaje z dotace – neinvestiční výdaje | B23: 563104.12 | F23: Kapitola 11.2.
A24: Celkové způsobilé výdaje z dotace vynaložené v rámci křížového financování: | B24: 112000
A25: Investiční způsobilé výdaje vynaložené v rámci křížového financování | B25: 56000
A26: Neinvestiční způsobilé výdaje vynaložené v rámci křížového financování | B26: 56000
A27: Jiné peněžní příjmy: | B27: 690
A28: Celkové zdroje připadající na způsobilé výdaje snížené o jiné peněžní příjmy | B28: 619104.12
A29: Nepřímé náklady stanovené paušální sazbou v Kč | B29: 77460.12
A32: REKAPITULACE VÝDAJŮ/PŘÍJMŮ
A34: Součet přímých výdajů v monitorovaném období
A36: Mzdové výdaje | B36: 142780
A37: Cestovní náhrady | B37: 5390
A38: Ostatní výdaje | B38: 336000
A39: Odpisy | B39: 56000
A40: Mzdové příspěvky | B40: 2164
A41: Celkem přímé výdaje | B41: 542334
A43: Výpočet nepřímých nákladů
A45: Celkové přímé výdaje | B45: 542334
A46: Křížové financování celkem | B46: 112000
A47: Přímé náklady bez KF | B47: 430334
A48: Procento nepřímých nákladů | B48: 18
A49: Částka nepřímých nákladů | B49: 77460.12
A50: Skutečně čerpané nepřímé náklady po dobu realizace: | B50: 0
A51: Skutečně čerpané nepřímé náklady v daném monitorovacím období:
A53: Výpočet částky požadované k vyúčtování
A55: Součet přímých výdajů a nepřímých nákladů | B55: 619794.12
A56: Příjmy projektu | B56: 690
A57: Celková částka vyúčtovaná v MO a předkládaná k vyúčtování v ŽOP | B57: 619794.12
A58: Podíl požadovaných prostředků oproti záloze (cílová hodnota 100%) | B58: 2.718395263
A59: Kontrola zda požadovaná částka dotace není větší než způsobilé výdaje z dotace | B59: OK
A61: Struktura platby v limitech mzdové regulace
A62: Vyplňuje pouze organizace se stanovenými závaznými ukazateli/limity mzdové regulace.
A64: Údaje o zřizovateli příjemce
A65: Vyplňte pouze v případě, že došlo ke změně oproti předchozímu období.
A66: Název zřizovatele
A67: IČ
A68: Kontaktní osoba zřizovatele, kterému bude zasláno avízo o zaslání zálohové platby (jméno, email)
A69: Číslo bankovního účtu zřizovatele
A71: Členění neinvestičních výdajů v zálohové platbě dle závazných ukazatelů/limitů
A73: Limit prostředků na platy
A74: Limit prostředků na ostatní platby za provedenou práci
A75: Limit prostředků na zdravotní a sociální pojištění
A76: Limit prostředků na FKSP
A77: Ostatní běžné výdaje
A79: Limit přepočteného počtu zaměstnanců
A81: Komentáře příjemce:

Sheet Podklady pro ŽoP2 (hidden)
B2: Datum poslední aktualizace:
B3: 2012-08-13T17:16:16
A4: PODKLADY PRO ŽOP - EX-POST Přepis do Zjednodušené žádosti o platbu v aplikaci Benefit 7+
A6: Vyúčtování vynaložených celkových způsobilých výdajů:
A8: Výdaje: | D8: Popis
A9: Celkové výdaje: | B9: =B11 -> 0
A10: Výběr z jiných peněžních příjmů: | B10: =IF(B20>0,"Projekt vytváří jiné peněžní příjmy","Projekt nevytváří jiné peněžní příjmy") -> Projekt vytváří jiné peněžní příjmy
A11: Celkové zdroje připadající na způsobilé výdaje: | B11: =B12+B13 -> 0 | E11: Suma(dolů)
A12: Celkové zdroje připadající na způsobilé výdaje - investiční: | E12: Kapitola 11.1.
A13: Celkové zdroje připadající na způsobilé výdaje - neinvestiční: | B13: =D13 -> 0 | E13: Kapitola 11.2. + List Příjmy celkem G10
A14: Požadovaná částka dotace - celkem: | B14: =B15+B16 -> -690 | E14: Suma(dolů)
A15: Požadovaná částka dotace - investiční výdaje | B15: =B12 -> 0 | E15: Kapitola 11.1.
A16: Požadovaná částka dotace - neinvestiční výdaje | B16: =D13-Příjmy!G10 -> -690 | E16: Kapitola 11.2.
A17: Celkové způsobilé výdaje z dotace vynaložené v rámci křížového financování: | B17: =B11 -> 0
A18: Investiční způsobilé výdaje vynaložené v rámci křížového financování | B18: ='Ostatní výdaje'!J11 -> 56000
A19: Neinvestiční způsobilé výdaje vynaložené v rámci křížového financování | B19: ='Ostatní výdaje'!K11 -> 56000
A20: Jiné peněžní příjmy: | B20: =B45 -> 690
A21: Celkové zdroje připadající na způsobilé výdaje snížené o jiné peněžní příjmy | B21: =B11-B20 -> -690
A23: REKAPITULACE VÝDAJŮ/PŘÍJMŮ
A25: Součet přímých výdajů v monitorovaném období
A27: Mzdové výdaje | B27: ='Mzdové výdaje'!Q12 -> 142780
A28: Cestovní náhrady | B28: ='Cestovní náhrady'!Q12 -> 5390
A29: Ostatní výdaje | B29: ='Ostatní výdaje'!H11 -> 336000
A30: Odpisy | B30: =Odpisy!J10 -> 56000
A31: Mzdové příspěvky | B31: ='Mzdové příspěvky'!P10 -> 2164
A32: Celkem přímé výdaje | B32: =SUM(B27:B31) -> 542334
A34: Výpočet nepřímých nákladů
A36: Celkové přímé výdaje | B36: =B32 -> 542334
A37: Křížové financování celkem | B37: ='Ostatní výdaje'!J11+'Ostatní výdaje'!K11 -> 112000
A38: Přímé náklady bez KF | B38: =B36-B37 -> 430334
A39: Procento nepřímých nákladů | B39: =Hlavička!B12 -> 18
A40: Částka nepřímých nákladů | B40: =B38*B39/100 -> 77460.12
A42: Výpočet částky požadované k proplacení
A44: Součet přímých výdajů a nepřímých nákladů | B44: =B36+B40 -> 619794.12
A45: Příjmy projektu | B45: =Příjmy!G10 -> 690
A46: Celková částka vyúčtovaná v MO a předkládaná k proplacení v ŽOP | B46: =B44 -> 619794.12
A48: Struktura platby v limitech mzdové regulace
A49: Vyplňuje pouze organizace se stanovenými závaznými ukazateli/limity mzdové regulace.
A51: Údaje o zřizovateli příjemce
A52: Vyplňte pouze v případě, že došlo ke změně oproti předchozímu období.
A53: Název zřizovatele
A54: IČ
A55: Kontaktní osoba zřizovatele, kterému bude zasláno avízo o zaslání zálohové platby (jméno, email)
A56: Číslo bankovního účtu zřizovatele
A58: Členění neinvestičních výdajů v zálohové platbě dle závazných ukazatelů/limitů
A60: Limit prostředků na platy
A61: Limit prostředků na ostatní platby za provedenou práci
A62: Limit prostředků na zdravotní a sociální pojištění
A63: Limit prostředků na FKSP
A64: Ostatní běžné výdaje
A67: Komentáře příjemce:

Sheet Evidence_změn
S1: 14 | T1: No | V1: 5
A2: EVIDENCE ZMĚN ROZPOČTU
T3: =COUNTA(T5:T19938) -> 2
A4: ID změny | B4: Datum změny | C4: Popis změny | D4: Položka odkud | E4: Původní počet jednotek | F4: Původní jednotková cena | G4: Původní částka rozpočtu | H4: Nový počet jednotek | I4: Nová jednotková cena | J4: Nová částka rozpočtu | K4: Položka Odkud / Kam | L4: Původní počet jednotek | M4: Původní jednotková cena | N4: Původní částka rozpočtu | O4: Nový počet jednotek | P4: Nová jednotková cena | Q4: Nová částka rozpočtu | R4: Podstatná změna | S4: Číslo monitorovací zprávy | T4: Typ změny | U4: Rozdíl v položce | V4: Číslo dodatku | W4: Poznámka
A5: 1 | B5: 2012-09-14T12:05:06 | C5: Změna Test přesunu na kapitolu 4 - Změnilo se vyhodnocení limitů pro povolený podíl kapitoly MÍSTNÍ KANCELÁŘ na celkových výdajích! | S5: 01/2012
A6: 2 | B6: 2012-09-14T12:05:09 | C6: Změna Test přesunu na kapitolu 4 - Změnilo se vyhodnocení limitu mzdové regulace pro kapitoly 1.1.1.1 a 1.1.2.1. | S6: 01/2012
A7: 3 | B7: 2012-09-14T12:05:12 | C7: Test přesunu na kapitolu 4 | K7: 1.1.1.1.1 Lektor | L7: 224 | M7: 290 | N7: 64960 | O7: 200 | P7: 290 | Q7: 58000 | S7: 01/2012 | T7: Přesun částek rozpočtu | U7: -6960
A8: 4 | B8: 2012-09-14T12:05:16 | C8: Test přesunu na kapitolu 4 | K8: 4 MÍSTNÍ KANCELÁŘ | N8: 0 | O8: 24 | P8: 290 | Q8: 6960 | S8: 01/2012 | T8: Přesun částek rozpočtu | U8: 6960

Sheet Sloučení_Rozpisů (hidden)
A1: Rozpis | B1: Číslo kapitoly, do které je výdaj zahrnut | C1: Popis účetního případu | D1: Dodavatel | E1: Částka uvedená na dokladu | F1: Částka zahrnutá k proplacení pro projekt | G1: Označení dokladu v účetnictví organizace | H1: Datum uskutečnění výdaje | I1: Doložení dokladu | J1: Kapitola | M1: Rozpis | N1: Částka uvedená na dokladu | O1: Rozpis | P1: Číslo kapitoly, do které je výdaj zahrnut | Q1: Popis účetního případu | R1: Dodavatel | S1: Částka uvedená na dokladu | T1: Částka zahrnutá k proplacení pro projekt | U1: Označení dokladu v účetnictví organizace | V1: Datum uskutečnění výdaje | W1: Doložení dokladu | X1: Kapitola
A2: 1. Mzdové výdaje | B2: 1.1.1.1.1 Lektor | C2: MZDY - 1/2012 | D2: TP | E2: 152000 | F2: 20100 | G2: MZ012012 | H2: 2012-02-15 | I2: 04/02/2012 | J2: 1 | N2: =">"&TEXT(Hlavička!$B$9,0) -> >0 | O2: 1. Mzdové výdaje | P2: 1.1.1.1.1 Lektor | Q2: MZDY - 1/2012 | R2: TP | S2: 152000 | T2: 20100 | U2: MZ012012 | V2: 2012-02-15 | W2: 04/02/2012 | X2: 1
A3: 1. Mzdové výdaje | B3: 1.1.1.2.1 Lektor | C3: MZDY - 1/2012 | D3: TP | E3: 152000 | F3: 16080 | G3: MZ012012 | H3: 2012-02-15 | I3: 04/02/2012 | J3: 1 | M3: 1. Mzdové výdaje | O3: 1. Mzdové výdaje | P3: 1.1.1.2.1 Lektor | Q3: MZDY - 1/2012 | R3: TP | S3: 152000 | T3: 16080 | U3: MZ012012 | V3: 2012-02-15 | W3: 04/02/2012 | X3: 1
A4: 1. Mzdové výdaje | B4: 1.1.1.3 Odměny z dohod (DPP) | C4: MZDY - 1/2012 | D4: TP | E4: 152000 | F4: 33500 | G4: MZ012012 | H4: 2012-02-15 | I4: 04/02/2012 | J4: 1 | O4: 1. Mzdové výdaje | P4: 1.1.1.3 Odměny z dohod (DPP) | Q4: MZDY - 1/2012 | R4: TP | S4: 152000 | T4: 33500 | U4: MZ012012 | V4: 2012-02-15 | W4: 04/02/2012 | X4: 1
A5: 1. Mzdové výdaje | B5: 1.1.1.4 Autorské honoráře | C5: MZDY - 1/2012 | D5: TP | E5: 152000 | F5: 65000 | G5: MZ012012 | H5: 2012-02-15 | I5: 04/02/2012 | J5: 1 | O5: 1. Mzdové výdaje | P5: 1.1.1.4 Autorské honoráře | Q5: MZDY - 1/2012 | R5: TP | S5: 152000 | T5: 65000 | U5: MZ012012 | V5: 2012-02-15 | W5: 04/02/2012 | X5: 1
A6: 1. Mzdové výdaje | B6: 1.4 FKSP | C6: MZDY - 1/2012 | D6: TP | E6: 152000 | F6: 5600 | G6: MZ012012 | H6: 2012-02-15 | I6: 04/02/2012 | J6: 1 | O6: 1. Mzdové výdaje | P6: 1.4 FKSP | Q6: MZDY - 1/2012 | R6: TP | S6: 152000 | T6: 5600 | U6: MZ012012 | V6: 2012-02-15 | W6: 04/02/2012 | X6: 1
A7: 1. Mzdové výdaje | B7: 1.5 Jiné povinné výdaje (Zákonné pojištění zaměstnanců) | C7: MZDY - 1/2012 | D7: TP | E7: 152000 | F7: 2500 | G7: MZ012012 | H7: 2012-02-15 | I7: 04/02/2012 | J7: 1 | O7: 1. Mzdové výdaje | P7: 1.5 Jiné povinné výdaje (Zákonné pojištění zaměstnanců) | Q7: MZDY - 1/2012 | R7: TP | S7: 152000 | T7: 2500 | U7: MZ012012 | V7: 2012-02-15 | W7: 04/02/2012 | X7: 1
A8: 1. Mzdové výdaje | B8: 1.2 Sociální pojištění | C8: MZDY - 1/2012 | D8: TP | E8: 152000 | F8: 3750 | G8: MZ012012 | H8: 2012-02-15 | I8: 04/02/2012 | J8: 1 | O8: 1. Mzdové výdaje | P8: 1.2 Sociální pojištění | Q8: MZDY - 1/2012 | R8: TP | S8: 152000 | T8: 3750 | U8: MZ012012 | V8: 2012-02-15 | W8: 04/02/2012 | X8: 1
A9: 1. Mzdové výdaje | B9: 1.2 Sociální pojištění | C9: MZDY - 1/2012 | D9: TP | E9: 152000 | F9: 3000 | G9: MZ012012 | H9: 2012-02-15 | I9: 04/02/2012 | J9: 1 | O9: 1. Mzdové výdaje | P9: 1.2 Sociální pojištění | Q9: MZDY - 1/2012 | R9: TP | S9: 152000 | T9: 3000 | U9: MZ012012 | V9: 2012-02-15 | W9: 04/02/2012 | X9: 1
A10: 1. Mzdové výdaje | B10: 1.2 Sociální pojištění | C10: MZDY - 1/2012 | D10: TP | E10: 152000 | F10: 6250 | G10: MZ012012 | H10: 2012-02-15 | I10: 04/02/2012 | J10: 1 | O10: 1. Mzdové výdaje | P10: 1.2 Sociální pojištění | Q10: MZDY - 1/2012 | R10: TP | S10: 152000 | T10: 6250 | U10: MZ012012 | V10: 2012-02-15 | W10: 04/02/2012 | X10: 1
A11: 1. Mzdové výdaje | B11: 1.2 Sociální pojištění | C11: MZDY - 1/2012 | D11: TP | E11: 152000 | F11: 0 | G11: MZ012012 | H11: 2012-02-15 | I11: 04/02/2012 | J11: 1 | O11: 1. Mzdové výdaje | P11: 1.2 Sociální pojištění | Q11: MZDY - 1/2012 | R11: TP | S11: 152000 | T11: 0 | U11: MZ012012 | V11: 2012-02-15 | W11: 04/02/2012 | X11: 1
A12: 1. Mzdové výdaje | B12: 1.2 Sociální pojištění | C12: MZDY - 1/2012 | D12: TP | E12: 152000 | G12: MZ012012 | H12: 2012-02-15 | I12: 04/02/2012 | J12: 1 | O12: 1. Mzdové výdaje | P12: 1.2 Sociální pojištění | Q12: MZDY - 1/2012 | R12: TP | S12: 152000 | U12: MZ012012 | V12: 2012-02-15 | W12: 04/02/2012 | X12: 1
A13: 1. Mzdové výdaje | B13: 1.2 Sociální pojištění | C13: MZDY - 1/2012 | D13: TP | E13: 152000 | G13: MZ012012 | H13: 2012-02-15 | I13: 04/02/2012 | J13: 1 | O13: 1. Mzdové výdaje | P13: 1.2 Sociální pojištění | Q13: MZDY - 1/2012 | R13: TP | S13: 152000 | U13: MZ012012 | V13: 2012-02-15 | W13: 04/02/2012 | X13: 1
A14: 1. Mzdové výdaje | B14: 1.3 Zdravotní pojištění | C14: MZDY - 1/2012 | D14: TP | E14: 152000 | F14: 1350 | G14: MZ012012 | H14: 2012-02-15 | I14: 04/02/2012 | J14: 1 | O14: 1. Mzdové výdaje | P14: 1.3 Zdravotní pojištění | Q14: MZDY - 1/2012 | R14: TP | S14: 152000 | T14: 1350 | U14: MZ012012 | V14: 2012-02-15 | W14: 04/02/2012 | X14: 1
A15: 1. Mzdové výdaje | B15: 1.3 Zdravotní pojištění | C15: MZDY - 1/2012 | D15: TP | E15: 152000 | F15: 1080 | G15: MZ012012 | H15: 2012-02-15 | I15: 04/02/2012 | J15: 1 | O15: 1. Mzdové výdaje | P15: 1.3 Zdravotní pojištění | Q15: MZDY - 1/2012 | R15: TP | S15: 152000 | T15: 1080 | U15: MZ012012 | V15: 2012-02-15 | W15: 04/02/2012 | X15: 1
A16: 1. Mzdové výdaje | B16: 1.3 Zdravotní pojištění | C16: MZDY - 1/2012 | D16: TP | E16: 152000 | F16: 2250 | G16: MZ012012 | H16: 2012-02-15 | I16: 04/02/2012 | J16: 1 | O16: 1. Mzdové výdaje | P16: 1.3 Zdravotní pojištění | Q16: MZDY - 1/2012 | R16: TP | S16: 152000 | T16: 2250 | U16: MZ012012 | V16: 2012-02-15 | W16: 04/02/2012 | X16: 1
A17: 1. Mzdové výdaje | B17: 1.3 Zdravotní pojištění | C17: MZDY - 1/2012 | D17: TP | E17: 152000 | F17: 0 | G17: MZ012012 | H17: 2012-02-15 | I17: 04/02/2012 | J17: 1 | O17: 1. Mzdové výdaje | P17: 1.3 Zdravotní pojištění | Q17: MZDY - 1/2012 | R17: TP | S17: 152000 | T17: 0 | U17: MZ012012 | V17: 2012-02-15 | W17: 04/02/2012 | X17: 1
A18: 1. Mzdové výdaje | B18: 1.3 Zdravotní pojištění | C18: MZDY - 1/2012 | D18: TP | E18: 152000 | G18: MZ012012 | H18: 2012-02-15 | I18: 04/02/2012 | J18: 1 | O18: 1. Mzdové výdaje | P18: 1.3 Zdravotní pojištění | Q18: MZDY - 1/2012 | R18: TP | S18: 152000 | U18: MZ012012 | V18: 2012-02-15 | W18: 04/02/2012 | X18: 1
A19: 1. Mzdové výdaje | B19: 1.3 Zdravotní pojištění | C19: MZDY - 1/2012 | D19: TP | E19: 152000 | G19: MZ012012 | H19: 2012-02-15 | I19: 04/02/2012 | J19: 1 | O19: 1. Mzdové výdaje | P19: 1.3 Zdravotní pojištění | Q19: MZDY - 1/2012 | R19: TP | S19: 152000 | U19: MZ012012 | V19: 2012-02-15 | W19: 04/02/2012 | X19: 1
A20: 2. Cestovní náhrady | B20: 2.1 Cestovné (vč. provozu služebního auta) | C20: Test1 | D20: P1 | E20: 2300 | F20: 500 | G20: CS122012 | H20: 2012-03-04 | I20: 01/02/2012 | J20: 2 | O20: 2. Cestovní náhrady | P20: 2.1 Cestovné (vč. provozu služebního auta) | Q20: Test1 | R20: P1 | S20: 2300 | T20: 500 | U20: CS122012 | V20: 2012-03-04 | W20: 01/02/2012 | X20: 2
A21: 2. Cestovní náhrady | B21: 2.1 Cestovné (vč. provozu služebního auta) | C21: Test2 | D21: P1 | E21: 2300 | F21: 2100 | G21: CS1220121 | H21: 2012-03-04 | I21: 02/02/2012 | J21: 2 | O21: 2. Cestovní náhrady | P21: 2.1 Cestovné (vč. provozu služebního auta) | Q21: Test2 | R21: P1 | S21: 2300 | T21: 2100 | U21: CS1220121 | V21: 2012-03-04 | W21: 02/02/2012 | X21: 2
A22: 2. Cestovní náhrady | B22: 2.1 Cestovné (vč. provozu služebního auta) | C22: Test2 | D22: P1 | E22: 2300 | F22: 600 | G22: CS1220122 | H22: 2012-03-04 | I22: 03/02/2012 | J22: 2 | O22: 2. Cestovní náhrady | P22: 2.1 Cestovné (vč. provozu služebního auta) | Q22: Test2 | R22: P1 | S22: 2300 | T22: 600 | U22: CS1220122 | V22: 2012-03-04 | W22: 03/02/2012 | X22: 2
A23: 2. Cestovní náhrady | B23: 2.2 Ubytování | C23: Test1 | D23: P1 | E23: 2300 | F23: 800 | G23: CS122012 | H23: 2012-03-04 | I23: 01/02/2012 | J23: 2 | O23: 2. Cestovní náhrady | P23: 2.2 Ubytování | Q23: Test1 | R23: P1 | S23: 2300 | T23: 800 | U23: CS122012 | V23: 2012-03-04 | W23: 01/02/2012 | X23: 2
A24: 2. Cestovní náhrady | B24: 2.2 Ubytování | C24: Test2 | D24: P1 | E24: 2300 | F24: 100 | G24: CS1220121 | H24: 2012-03-04 | I24: 02/02/2012 | J24: 2 | O24: 2. Cestovní náhrady | P24: 2.2 Ubytování | Q24: Test2 | R24: P1 | S24: 2300 | T24: 100 | U24: CS1220121 | V24: 2012-03-04 | W24: 02/02/2012 | X24: 2
A25: 2. Cestovní náhrady | B25: 2.2 Ubytování | C25: Test2 | D25: P1 | E25: 2300 | F25: 800 | G25: CS1220122 | H25: 2012-03-04 | I25: 03/02/2012 | J25: 2 | O25: 2. Cestovní náhrady | P25: 2.2 Ubytování | Q25: Test2 | R25: P1 | S25: 2300 | T25: 800 | U25: CS1220122 | V25: 2012-03-04 | W25: 03/02/2012 | X25: 2
A26: 2. Cestovní náhrady | B26: 2.3 Stravné | C26: Test1 | D26: P1 | E26: 2300 | F26: 100 | G26: CS122012 | H26: 2012-03-04 | I26: 01/02/2012 | J26: 2 | O26: 2. Cestovní náhrady | P26: 2.3 Stravné | Q26: Test1 | R26: P1 | S26: 2300 | T26: 100 | U26: CS122012 | V26: 2012-03-04 | W26: 01/02/2012 | X26: 2
A27: 2. Cestovní náhrady | B27: 2.3 Stravné | C27: Test2 | D27: P1 | E27: 2300 | F27: 100 | G27: CS1220121 | H27: 2012-03-04 | I27: 02/02/2012 | J27: 2 | O27: 2. Cestovní náhrady | P27: 2.3 Stravné | Q27: Test2 | R27: P1 | S27: 2300 | T27: 100 | U27: CS1220121 | V27: 2012-03-04 | W27: 02/02/2012 | X27: 2
A28: 2. Cestovní náhrady | B28: 2.3 Stravné | C28: Test2 | D28: P1 | E28: 2300 | F28: 100 | G28: CS1220122 | H28: 2012-03-04 | I28: 03/02/2012 | J28: 2 | O28: 2. Cestovní náhrady | P28: 2.3 Stravné | Q28: Test2 | R28: P1 | S28: 2300 | T28: 100 | U28: CS1220122 | V28: 2012-03-04 | W28: 03/02/2012 | X28: 2
A29: 2. Cestovní náhrady | B29: 2.4 Ostatní | C29: Test1 | D29: P1 | E29: 2300 | F29: 50 | G29: CS122012 | H29: 2012-03-04 | I29: 01/02/2012 | J29: 2 | O29: 2. Cestovní náhrady | P29: 2.4 Ostatní | Q29: Test1 | R29: P1 | S29: 2300 | T29: 50 | U29: CS122012 | V29: 2012-03-04 | W29: 01/02/2012 | X29: 2
A30: 2. Cestovní náhrady | B30: 2.4 Ostatní | C30: Test2 | D30: P1 | E30: 2300 | F30: 50 | G30: CS1220121 | H30: 2012-03-04 | I30: 02/02/2012 | J30: 2 | O30: 2. Cestovní náhrady | P30: 2.4 Ostatní | Q30: Test2 | R30: P1 | S30: 2300 | T30: 50 | U30: CS1220121 | V30: 2012-03-04 | W30: 02/02/2012 | X30: 2
A31: 2. Cestovní náhrady | B31: 2.4 Ostatní | C31: Test2 | D31: P1 | E31: 2300 | F31: 90 | G31: CS1220122 | H31: 2012-03-04 | I31: 03/02/2012 | J31: 2 | O31: 2. Cestovní náhrady | P31: 2.4 Ostatní | Q31: Test2 | R31: P1 | S31: 2300 | T31: 90 | U31: CS1220122 | V31: 2012-03-04 | W31: 03/02/2012 | X31: 2
A32: 3. Ostatní výdaje | B32: 3.1.1.2 Microsoft Office | C32: Software | D32: TP | E32: 56000 | F32: 56000 | G32: O152012 | H32: 2012-03-16 | I32: 06/02/2012 | J32: 3 | O32: 3. Ostatní výdaje | P32: 3.1.1.2 Microsoft Office | Q32: Software | R32: TP | S32: 56000 | T32: 56000 | U32: O152012 | V32: 2012-03-16 | W32: 06/02/2012 | X32: 3
A33: 3. Ostatní výdaje | B33: 3.3.3 Kamera | C33: Kamera | D33: TP | E33: 56000 | F33: 56000 | G33: O1520121 | H33: 2012-03-16 | I33: 07/02/2012 | J33: 3 | O33: 3. Ostatní výdaje | P33: 3.3.3 Kamera | Q33: Kamera | R33: TP | S33: 56000 | T33: 56000 | U33: O1520121 | V33: 2012-03-16 | W33: 07/02/2012 | X33: 3
A34: 3. Ostatní výdaje | B34: 5.5.1 Akreditace | C34: Počítač | D34: TP | E34: 56000 | F34: 56000 | G34: O1520122 | H34: 2012-03-16 | I34: Doklad se nedokládá | J34: 5 | O34: 3. Ostatní výdaje | P34: 5.5.1 Akreditace | Q34: Počítač | R34: TP | S34: 56000 | T34: 56000 | U34: O1520122 | V34: 2012-03-16 | W34: Doklad se nedokládá | X34: 5
A35: 3. Ostatní výdaje | B35: 8.1 Audit | C35: Počítač | D35: TP | E35: 56000 | F35: 56000 | G35: O1520122 | H35: 2012-03-16 | I35: Doklad se nedokládá | J35: 8 | O35: 3. Ostatní výdaje | P35: 8.1 Audit | Q35: Počítač | R35: TP | S35: 56000 | T35: 56000 | U35: O1520122 | V35: 2012-03-16 | W35: Doklad se nedokládá | X35: 8
A36: 3. Ostatní výdaje | B36: 3.8.1 Investiční část | C36: Software | D36: TP | E36: 56000 | F36: 56000 | G36: O152012 | H36: 2012-03-16 | I36: 06/02/2012 | J36: 3 | O36: 3. Ostatní výdaje | P36: 3.8.1 Investiční část | Q36: Software | R36: TP | S36: 56000 | T36: 56000 | U36: O152012 | V36: 2012-03-16 | W36: 06/02/2012 | X36: 3
A37: 3. Ostatní výdaje | B37: 3.8.2 Neinvestiční část | C37: Kamera | D37: TP | E37: 56000 | F37: 56000 | G37: O1520121 | H37: 2012-03-16 | I37: 07/02/2012 | J37: 3 | O37: 3. Ostatní výdaje | P37: 3.8.2 Neinvestiční část | Q37: Kamera | R37: TP | S37: 56000 | T37: 56000 | U37: O1520121 | V37: 2012-03-16 | W37: 07/02/2012 | X37: 3
A38: 4. Odpisy | B38: 3.6 Odpisy | C38: Počítač | D38: TP | E38: 56000 | F38: 56000 | G38: O1520122 | H38: 2012-03-16 | I38: Doklad se nedokládá | J38: 3 | O38: 4. Odpisy | P38: 3.6 Odpisy | Q38: Počítač | R38: TP | S38: 56000 | T38: 56000 | U38: O1520122 | V38: 2012-03-16 | W38: Doklad se nedokládá | X38: 3
A39: 5. Mzdové příspěvky | B39: 7.1 Mzdové příspěvky | C39: Kolibřík | D39: TP | E39: 126000 | F39: 2164 | G39: MZ0220122 | H39: 2012-03-15 | I39: 05/02/2012 | J39: 7 | O39: 5. Mzdové příspěvky | P39: 7.1 Mzdové příspěvky | Q39: Kolibřík | R39: TP | S39: 126000 | T39: 2164 | U39: MZ0220122 | V39: 2012-03-15 | W39: 05/02/2012 | X39: 7
A40: 6. Příjmy | C40: Kladné úroky na účtu | D40: TP | E40: 230 | F40: 230 | G40: P1620122 | H40: 2012-04-16 | O40: 6. Příjmy | Q40: Kladné úroky na účtu | R40: TP | S40: 230 | T40: 230 | U40: P1620122 | V40: 2012-04-16
A41: 6. Příjmy | C41: Kladné úroky na účtu | D41: TP | E41: 230 | F41: 230 | G41: P1620121 | H41: 2012-04-16 | O41: 6. Příjmy | Q41: Kladné úroky na účtu | R41: TP | S41: 230 | T41: 230 | U41: P1620121 | V41: 2012-04-16
A42: 6. Příjmy | C42: Kladné úroky na účtu | D42: TP | E42: 230 | F42: 230 | G42: P1620122 | H42: 2012-04-16 | O42: 6. Příjmy | Q42: Kladné úroky na účtu | R42: TP | S42: 230 | T42: 230 | U42: P1620122 | V42: 2012-04-16

Sheet Názvy (hidden)
A1: Typy úhrad | B1: Druh pracovního poměru
A2: Projektový účet | B2: PS
A3: Provozní účet/ projektový účet | B3: DPČ
A4: Provozní pokladna/ projektový účet | B4: DPP
A5: Projektová pokladna | B5: AH
A6: Provozní účet/ zádržné

Sheet Rozp_TMP (hidden)
A2: ROZPOČET - Pracovní list - SKRÝT !!!
A4: Registrační číslo projektu | D4: =IF(Hlavička!$B$3<>"",Hlavička!$B$3,"Zadejte hodnotu na listu Hlavička") -> CZ.1.07/3.2.xx/yy.1111
A5: Název projektu | D5: =IF(Hlavička!$B$4<>"",Hlavička!$B$4,"Zadejte hodnotu na listu Hlavička") -> Tvorba a ověření komplexního vzdělávacího programu
A6: Název příjemce podpory | D6: =IF(Hlavička!$B$5<>"",Hlavička!$B$5,"Zadejte hodnotu na listu Hlavička") -> Test
A7: Pořadové číslo Monitorovací zprávy | D7: =IF(Hlavička!$B$6<>"",Hlavička!$B$6,"Zadejte hodnotu na listu Hlavička") -> 02/2012
A8: Období | D8: =IF(OR(Hlavička!$B$8<>"",Hlavička!$C$8<>""),DAY(Hlavička!$B$8)&"."&MONTH(Hlavička!$B$8)&"."&YEAR(Hlavička!$B$8)&" - "&DAY(Hlavička!$D$8)&"."&MONTH(Hlavička!$D$8)&"."&YEAR(Hlavička!$D$8),"Zadejte hodnotu na listu Hlavička") -> 30.6.2012 - 31.12.2012
A9: Data na tomto listu jsou automaticky generována. Při vstupu na list se automaticky aktualizují. K aktualizaci je nutné povolit spuštění maker. Aktualizaci můžete provést také manuálně tlačítkem z nabídky MS Excel Data > Aktualizovat vše.
A10: Rozpis | B10: (Vše)
A12: Součet z Částka zahrnutá k proplacení pro projekt
A13: Číslo kapitoly, do které je výdaj zahrnut | B13: Celkem
A14: 1.1.1.1.1 Lektor | B14: 20100
A15: 1.1.1.2.1 Lektor | B15: 16080
A16: 1.1.1.3 Odměny z dohod (DPP) | B16: 33500
A17: 1.1.1.4 Autorské honoráře | B17: 65000
A18: 1.2 Sociální pojištění | B18: 13000
A19: 1.3 Zdravotní pojištění | B19: 4680
A20: 1.4 FKSP | B20: 5600
A21: 1.5 Jiné povinné výdaje (Zákonné pojištění zaměstnanců) | B21: 2500
A22: 2.1 Cestovné (vč. provozu služebního auta) | B22: 3200
A23: 2.2 Ubytování | B23: 1700
A24: 2.3 Stravné | B24: 300
A25: 2.4 Ostatní | B25: 190
A26: 3.1.1.2 Microsoft Office | B26: 56000
A27: 3.3.3 Kamera | B27: 56000
A28: 3.6 Odpisy | B28: 56000
A29: 3.8.1 Investiční část | B29: 56000
A30: 3.8.2 Neinvestiční část | B30: 56000
A31: 5.5.1 Akreditace | B31: 56000
A32: 7.1 Mzdové příspěvky | B32: 2164
A33: 8.1 Audit | B33: 56000
A34: (prázdné) | B34: 690
A35: Celkový součet | B35: 560704

Sheet Přehled_plateb
A2: PŘEHLED PLATEB ZA JEDNOTLIVÁ MONITOROVACÍ OBDOBÍ
A4: ID | B4: Datum zadání | C4: Monitorovací období / mimořádná záloha | D4: Zálohy/Platby příjemci | E4: Kumulované zálohy/platby příjemci | F4: Vyúčtování
A5: 1 | B5: nedef. | C5: 0. záloha | D5: 228000 | E5: 228000 | F5: 0
A6: 2 | B6: 2012-09-14 | C6: 01/2012 | D6: Vyplní příjemce po obdržení platby! | E6: 228000 | F6: 619794.12
A7: 3 | E7: 228000
A8: 4 | E8: 228000
A9: 5 | E9: 228000
A10: 6 | E10: 228000
A11: 7 | E11: 228000
A12: 8 | E12: 228000
A13: 9 | E13: 228000
A14: 10 | E14: 228000
A15: 11 | E15: 228000
A16: 12 | E16: 228000
A17: 13 | E17: 228000
A18: 14 | E18: 228000
A19: 15 | E19: 228000
A20: 16 | E20: 228000
A21: 17 | E21: 228000
A22: 18 | E22: 228000
A23: 19 | E23: 228000
A24: 20 | E24: 228000
A25: 21 | E25: 228000
A26: 22 | E26: 228000
A27: 23 | E27: 228000
A28: 24 | E28: 228000
A29: 25 | E29: 228000
C30: Celkem | D30: 228000 | E30: 228000 | F30: 619794.12
C32: Celková částka projektu: | D32: 3148165.896
C33: % plnění rozpočtu: | D33: 0.07242312112 | E33: 0.07242312112 | F33: 0.1968746694

Sheet Kontrola_dokladů
A2: KONTROLA DOKLADŮ
A4: Registrační číslo projektu | D4: CZ.1.07/3.2.04/03.0001
A5: Název projektu | D5: Tvorba a ověření komplexního vzdělávacího programu pro rozvoj klíčových pracovníků ve vzdělávání
A6: Název příjemce podpory | D6: Test plzeň
A7: Pořadové číslo Monitorovací zprávy | D7: 02/2012
A8: Období | D8: 30.6.2012 - 31.12.2012
A9: Data na tomto listu jsou automaticky generována. Při vstupu na list se automaticky aktualizují. K aktualizaci je nutné povolit spuštění maker. Aktualizaci můžete provést také manuálně tlačítkem z nabídky MS Excel Data > Aktualizovat vše.
A11: Souhrn | B11: Částka uvedená na dokladu | C11: Částka k proplacení pro projekt | D11: komentář
A12: Celkem na seznamu dokladů | B12: 1009590 | C12: 1009590
A13: Celkem na rozpisech | B13: 301360 | C13: 400244
A14: k tomu příjmy | B14: 690 | C14: 690
A15: Částka chybějící na rozpisech | B15: 707540 | C15: 608656
A16: Částka uvedená v rozpočtu | C16: 542929.2542
A17: Částka nezahrnutá do rozpočtu | C17: -142685.2542 | D17: Nula je vyžadována pouze pokud není vykazováno křížové financování.
A19: Rozpis | B19: (Vše)
B21: Hodnoty
A22: Označení dokladu v účetnictví organizace | B22: Částka uvedená na seznamu dokladů | C22: Částka k proplacení pro projekt | D22: Kontrola | E22: Poznámka
A23: MZ012012 | B23: 152000 | C23: 160460 | D23: -8460
A24: CS122012 | B24: 2300 | C24: 1450 | D24: 850
A25: CS1220121 | B25: 2300 | C25: 2350 | D25: -50
A26: CS1220122 | B26: 2300 | C26: 1590 | D26: 710
A27: O152012 | B27: 56000 | C27: 112000 | D27: -56000
A28: O1520121 | B28: 56000 | C28: 112000 | D28: -56000
A29: O1520122 | B29: 56000 | C29: 168000 | D29: -112000
A30: MZ0220122 | B30: 126000 | C30: 2164 | D30: 123836
A31: P1620122 | B31: 230 | C31: 460 | D31: -230
A32: P1620121 | B32: 230 | C32: 230

Sheet VP podle přechodného rámce
A1: Příloha č. 3A Monitorovací zprávy OP VK
A3: PŘEHLED ČERPÁNÍ VEŘEJNÉ PODPORY - "Český přechodný rámec - State aid N 236/2009 Czech Republic"
A5: Registrační číslo projektu | C5: =IF(Hlavička!$B$3<>"",Hlavička!$B$3,"Zadejte hodnotu na listu Hlavička") -> CZ.1.07/3.2.xx/yy.1111
A6: Název projektu | C6: =IF(Hlavička!$B$4<>"",Hlavička!$B$4,"Zadejte hodnotu na listu Hlavička") -> Tvorba a ověření komplexního vzdělávacího programu
A7: Název příjemce podpory | C7: =IF(Hlavička!$B$5<>"",Hlavička!$B$5,"Zadejte hodnotu na listu Hlavička") -> Test
A8: Pořadové číslo Monitorovací zprávy | C8: =IF(Hlavička!$B$6<>"",Hlavička!$B$6,"Zadejte hodnotu na listu Hlavička") -> 02/2012
A10: Pořadové číslo | B10: Název subjektu | C10: IČ | D10: Datum poskytnutí veřejné podpory | F10: Čerpaná veřejná podpora
F11: v monitorov. období (v Kč) | G11: celkem v roce 2010 | H11: celkem v roce 2011 | I11: celkem v roce 2012 | J11: celkem v roce 2013 | K11: celkem od začátku projektu (v Kč)
K12: =J12+I12+H12+G12 -> 0
K13: =J13+I13+H13+G13 -> 0
K14: 0
K15: 0
K16: 0
K17: 0
K18: 0
K19: 0
K20: 0
K21: 0
K22: 0
K23: 0
K24: 0
K25: 0
A26: Celkem | F26: =SUM(F12:F25) -> 0 | G26: 0 | H26: 0 | I26: 0 | J26: 0 | K26: 0

Sheet VP podle de minimis
A1: Příloha č. 3B Monitorovací zprávy OP VK
A3: PŘEHLED ČERPÁNÍ VEŘEJNÉ PODPORY PODLE DE MINIMIS
A5: Registrační číslo projektu | C5: =IF(Hlavička!$B$3<>"",Hlavička!$B$3,"Zadejte hodnotu na listu Hlavička") -> CZ.1.07/3.2.xx/yy.1111
A6: Název projektu | C6: =IF(Hlavička!$B$4<>"",Hlavička!$B$4,"Zadejte hodnotu na listu Hlavička") -> Tvorba a ověření komplexního vzdělávacího programu
A7: Název příjemce podpory | C7: =IF(Hlavička!$B$5<>"",Hlavička!$B$5,"Zadejte hodnotu na listu Hlavička") -> Test
A8: Pořadové číslo Monitorovací zprávy | C8: =IF(Hlavička!$B$6<>"",Hlavička!$B$6,"Zadejte hodnotu na listu Hlavička") -> 02/2012
A10: Pořadové číslo | B10: Název subjektu | C10: IČ | D10: Datum poskytnutí veřejné podpory | E10: Čerpaná veřejná podpora
E11: v monitorovaném období | G11: celkem od začátku projektu
E12: (v Kč) | F12: (v EUR) | G12: (v Kč) | H12: (v EUR)
A29: Celkem | E29: =SUM(E13:E28) -> 0 | F29: =SUM(F13:F28) -> 0 | G29: =SUM(G13:G28) -> 0 | H29: =SUM(H13:H28) -> 0

Sheet Rozpocty (hidden)
A1: Položka | B1: Název | C1: Lze editovat | D1: součtová položka? | E1: Lze vložit položku | F1: Vzorec | G1: Složená položka | H1: Přidávání | I1: Položka | J1: Položka | K1: Název | L1: Kapitola Mzdy | M1: Celkové způsobilé výdaje investiční | N1: Celkové způsobilé výdaje neinvestiční | O1: Investiční část | P1: Neinvestiční část | Q1: Stavební úpravy v rámci křížového financování | R1: Nákup Služeb | S1: Celkové výdaje | T1: Přímá podpora | U1: Křížové financování | V1: Kapitola 1 | W1: 0 | X1: Kapitola 3 | Y1: Kapitola 4 | Z1: Kapitola 5 | AA1: Kapitola 6 | AB1: Kapitola 7 | AC1: Kapitola 8 | AD1: Kapitola 9 | AE1: Kapitola 10 | AF1: Kapitola 11 | AG1: Kapitola 12 | AH1: Kapitola 13 | AI1: Kapitola 14 | AJ1: Kapitola 15 | AK1: Kapitola 16 | AL1: Přímé způsobilé výdaje | AM1: Celkové způsobilé výdaje
A2: Rozpočet projektu (OPVK) - verze 3 | G2: =A2&" "&B2 -> Rozpočet projektu (OPVK) - verze 3 | I2: ="R*" -> R* | J2: Rozpočet projektu (OPVK) - verze 3 | L2: ="7.1*" -> 7.1* | M2: ="9.1" -> 9.1 | N2: ="9.2" -> 9.2 | O2: ="3.8.1" -> 3.8.1 | P2: ="3.8.2" -> 3.8.2 | Q2: ="6.2" -> 6.2 | R2: ="5" -> 5 | S2: ="11 " -> 11 | T2: 7 PŘÍMA PODPORA | U2: 14 KŘÍŽOVÉ FINANCOVÁNÍ | V2: 1 OSOBNÍ NÁKLADY | W2: 2 CESTOVNÍ NÁHRADY | X2: 3 ZAŘÍZENÍ
A3: 1 | B3: OSOBNÍ NÁKLADY | C3: Ne | D3: ano | E3: Ne | G3: =A3&" "&B3 -> 1 OSOBNÍ NÁKLADY | H3: =E3 -> Ne | J3: Rozpočet projektu (OPVK) - verze 4 | L3: ="7.1*" -> 7.1* | M3: ="9.1" -> 9.1 | N3: ="9.2" -> 9.2 | O3: ="3.8.1" -> 3.8.1 | P3: ="3.8.2" -> 3.8.2 | Q3: ="6.2" -> 6.2 | R3: ="5" -> 5 | S3: ="11 " -> 11 | T3: 7 PŘÍMA PODPORA | U3: 14 KŘÍŽOVÉ FINANCOVÁNÍ | V3: 1 OSOBNÍ NÁKLADY | W3: 2 CESTOVNÍ NÁHRADY | X3: 3 ZAŘÍZENÍ
A4: 1.1 | B4: Platy, odměny z dohod a pojistné | C4: Ne | D4: ano | E4: Ne | G4: 1.1 Platy, odměny z dohod a pojistné | H4: =E4 -> Ne | J4: Rozpočet projektu (OPVK) - verze 5 | L4: ="7.1*" -> 7.1* | M4: ="9.1" -> 9.1 | N4: ="9.2" -> 9.2 | O4: ="3.8.1" -> 3.8.1 | P4: ="3.8.2" -> 3.8.2 | Q4: 6.2 | R4: 5 | S4: ="11 " -> 11 | T4: 7 PŘÍMA PODPORA | U4: 14 KŘÍŽOVÉ FINANCOVÁNÍ | V4: 1 OSOBNÍ NÁKLADY | W4: 2 CESTOVNÍ NÁHRADY | X4: 3 ZAŘÍZENÍ
A5: 1.1.1 | B5: Náklady na odborné zaměstnance, v tom | C5: Ne | D5: ano | E5: Ne | G5: 1.1.1 Náklady na odborné zaměstnance, v tom | H5: Ne | J5: Rozpočet projektu (OPVK) - verze 6 - Nepřímé náklady | L5: ="6.1*" -> 6.1* | M5: ="10.1" -> 10.1 | N5: ="10.2" -> 10.2 | O5: ="3.8.1" -> 3.8.1 | P5: ="3.8.2" -> 3.8.2 | Q5: ="5.2" -> 5.2 | R5: ="4" -> 4 | S5: ="12 " -> 12 | T5: 6 PŘÍMA PODPORA | U5: 15 KŘÍŽOVÉ FINANCOVÁNÍ | V5: 1 OSOBNÍ NÁKLADY | W5: 2 SLUŽEBNÍ CESTY ZAHRANIČNÍ | X5: 3 ZAŘÍZENÍ | Y5: 4 NÁKUP SLUŽEB | Z5: 5 STAVEBNÍ ÚPRAVY | AA5: 6 PŘÍMA PODPORA | AB5: 7 NÁKLADY VYPLÝVAJÍCÍ PŘÍMO ZE SMLOUVY/ROZHODNUTÍ | AC5: 8 PŘÍMÉ ZPŮSOBILÉ VÝDAJE CELKEM | AD5: 9 NEPŘÍMÉ VÝDAJE | AE5: 10 CELKOVÉ ZPŮSOBILÉ VÝDAJE | AF5: 11 CELKOVÉ NEZPŮSOBILÉ VÝDAJE | AG5: 12 CELKOVÉ VÝDAJE PROJEKTU | AH5: 13 PŘÍJMY PROJEKTU CELKEM | AI5: 14 ZDROJE PŘIPADAJÍCÍ NA NEZPŮSOBILÉ VÝDAJE | AJ5: 15 KŘÍŽOVÉ FINANCOVÁNÍ | AL5: 8 PŘÍMÉ ZPŮSOBILÉ VÝDAJE CELKEM
A6: 1.1.1.1 | B6: Platy | C6: ano | D6: ne | E6: ano | G6: 1.1.1.1 Platy | H6: ano | J6: Rozpočet projektu (OPVK) - verze 7 | L6: ="7.1*" -> 7.1* | M6: ="9.1" -> 9.1 | N6: ="9.2" -> 9.2 | O6: ="3.8.1" -> 3.8.1 | P6: ="3.8.2" -> 3.8.2 | Q6: 6.2 | R6: 5 | S6: ="11 " -> 11 | T6: 7 PŘÍMA PODPORA | U6: 14 KŘÍŽOVÉ FINANCOVÁNÍ | V6: 1 OSOBNÍ NÁKLADY | W6: 2 CESTOVNÍ NÁHRADY (dle § 152-189 zákona 262/2006 Sb.) | X6: 3 ZAŘÍZENÍ | Y6: 4 MÍSTNÍ KANCELÁŘ | Z6: 5 NÁKUP SLUŽEB | AA6: 6 STAVEBNÍ ÚPRAVY | AB6: 7 PŘÍMA PODPORA | AC6: 8 NÁKLADY VYPLÝVAJÍCÍ PŘÍMO ZE SMLOUVY/ROZHODNUTÍ | AD6: 9 CELKOVÉ ZPŮSOBILÉ VÝDAJE | AE6: 10 CELKOVÉ NEZPŮSOBILÉ VÝDAJE | AF6: 11 CELKOVÉ VÝDAJE PROJEKTU | AG6: 12 PŘÍJMY PROJEKTU CELKEM | AH6: 13 ZDROJE PŘIPADAJÍCÍ NA NEZPŮSOBILÉ VÝDAJE | AI6: 14 KŘÍŽOVÉ FINANCOVÁNÍ
A7: 1.1.1.2 | B7: Odměny z dohod (DPČ) | C7: ano | D7: ne | E7: ano | G7: 1.1.1.2 Odměny z dohod (DPČ) | H7: ano | J7: Rozpočet projektu (OPVK) - verze 6 - Nepřímé náklady 2 | L7: ="6.1*" -> 6.1* | M7: ="10.1" -> 10.1 | N7: ="10.2" -> 10.2 | O7: ="3.7.1" -> 3.7.1 | P7: ="3.7.2" -> 3.7.2 | Q7: ="5.2" -> 5.2 | R7: ="4" -> 4 | S7: ="12 " -> 12 | T7: 6 PŘÍMA PODPORA | U7: 15 KŘÍŽOVÉ FINANCOVÁNÍ | V7: 1 OSOBNÍ NÁKLADY | W7: 2 SLUŽEBNÍ CESTY ZAHRANIČNÍ | X7: 3 ZAŘÍZENÍ | Y7: 4 NÁKUP SLUŽEB | Z7: 5 STAVEBNÍ ÚPRAVY | AA7: 6 PŘÍMA PODPORA | AB7: 7 NÁKLADY VYPLÝVAJÍCÍ PŘÍMO ZE SMLOUVY/ROZHODNUTÍ | AC7: 8 PŘÍMÉ ZPŮSOBILÉ VÝDAJE CELKEM | AD7: 9 NEPŘÍMÉ VÝDAJE | AE7: 10 CELKOVÉ ZPŮSOBILÉ VÝDAJE | AF7: 11 CELKOVÉ NEZPŮSOBILÉ VÝDAJE | AG7: 12 CELKOVÉ VÝDAJE PROJEKTU | AH7: 13 PŘÍJMY PROJEKTU CELKEM | AI7: 14 ZDROJE PŘIPADAJÍCÍ NA NEZPŮSOBILÉ VÝDAJE | AJ7: 15 KŘÍŽOVÉ FINANCOVÁNÍ | AL7: 8 PŘÍMÉ ZPŮSOBILÉ VÝDAJE CELKEM
A8: 1.1.1.3 | B8: Odměny z dohod (DPP) | C8: ano | D8: ne | E8: ano | G8: 1.1.1.3 Odměny z dohod (DPP) | H8: ano | J8: Rozpočet projektu (OPVK) - verze 6a - Nepřímé náklady | L8: ="7.1*" -> 7.1* | M8: ="11.1" -> 11.1 | N8: ="11.2" -> 11.2 | O8: ="3.8.1" -> 3.8.1 | P8: ="3.8.2" -> 3.8.2 | Q8: 6.2 | R8: 5 | S8: ="13 " -> 13 | T8: 7 PŘÍMA PODPORA | U8: 16 KŘÍŽOVÉ FINANCOVÁNÍ | V8: 1 OSOBNÍ NÁKLADY | W8: 2 SLUŽEBNÍ CESTY ZAHRANIČNÍ | X8: 3 ZAŘÍZENÍ | Y8: 4 MÍSTNÍ KANCELÁŘ | Z8: 5 NÁKUP SLUŽEB | AA8: 6 STAVEBNÍ ÚPRAVY | AB8: 7 PŘÍMA PODPORA | AC8: 8 NÁKLADY VYPLÝVAJÍCÍ PŘÍMO ZE SMLOUVY/ROZHODNUTÍ | AD8: 9 PŘÍMÉ ZPŮSOBILÉ VÝDAJE CELKEM | AE8: 10 NEPŘÍMÉ VÝDAJE | AF8: 11 CELKOVÉ ZPŮSOBILÉ VÝDAJE | AG8: 12 CELKOVÉ NEZPŮSOBILÉ VÝDAJE | AH8: 13 CELKOVÉ VÝDAJE PROJEKTU | AI8: 14 PŘÍJMY PROJEKTU CELKEM | AJ8: 15 ZDROJE PŘIPADAJÍCÍ NA NEZPŮSOBILÉ VÝDAJE | AK8: 16 KŘÍŽOVÉ FINANCOVÁNÍ | AL8: 9 PŘÍMÉ ZPŮSOBILÉ VÝDAJE CELKEM
A9: 1.1.1.4 | B9: Autorské honoráře | C9: ano | D9: ne | E9: ano | G9: 1.1.1.4 Autorské honoráře | H9: ano | J9: Rozpočet projektu (OPVK) - verze 7 - Nepřímé náklady, doplnění 6.3 (odpisy) | L9: ="7.1*" -> 7.1* | M9: ="11.1" -> 11.1 | N9: ="11.2" -> 11.2 | O9: ="3.8.1" -> 3.8.1 | P9: ="3.8.2" -> 3.8.2 | Q9: 6.2 | R9: 5 | S9: ="13 " -> 13 | T9: 7 PŘÍMA PODPORA | U9: 16 KŘÍŽOVÉ FINANCOVÁNÍ | V9: 1 OSOBNÍ NÁKLADY | W9: 2 SLUŽEBNÍ CESTY ZAHRANIČNÍ | X9: 3 ZAŘÍZENÍ | Y9: 4 MÍSTNÍ KANCELÁŘ | Z9: 5 NÁKUP SLUŽEB | AA9: 6 STAVEBNÍ ÚPRAVY | AB9: 7 PŘÍMA PODPORA | AC9: 8 NÁKLADY VYPLÝVAJÍCÍ PŘÍMO ZE SMLOUVY/ROZHODNUTÍ | AD9: 9 PŘÍMÉ ZPŮSOBILÉ VÝDAJE CELKEM | AE9: 10 NEPŘÍMÉ VÝDAJE | AF9: 11 CELKOVÉ ZPŮSOBILÉ VÝDAJE | AG9: 12 CELKOVÉ NEZPŮSOBILÉ VÝDAJE | AH9: 13 CELKOVÉ VÝDAJE PROJEKTU | AI9: 14 PŘÍJMY PROJEKTU CELKEM | AJ9: 15 ZDROJE PŘIPADAJÍCÍ NA NEZPŮSOBILÉ VÝDAJE | AK9: 16 KŘÍŽOVÉ FINANCOVÁNÍ | AL9: 9 PŘÍMÉ ZPŮSOBILÉ VÝDAJE CELKEM
A10: 1.1.2 | B10: Náklady na administrativní zaměstnance, v tom | C10: Ne | D10: ano | E10: Ne | G10: 1.1.2 Náklady na administrativní zaměstnance, v tom | H10: Ne | J10: Rozpočet projektu (OPVK) - verze 8 | L10: ="7.1*" -> 7.1* | M10: ="11.1" -> 11.1 | N10: ="11.2" -> 11.2 | O10: ="3.8.1" -> 3.8.1 | P10: ="3.8.2" -> 3.8.2 | Q10: 6.2 | R10: 5 | S10: ="12 " -> 12 | T10: 7 PŘÍMÁ PODPORA | U10: 13 KŘÍŽOVÉ FINANCOVÁNÍ | V10: 1 OSOBNÍ NÁKLADY | W10: 2 CESTOVNÍ NÁHRADY | X10: 3 ZAŘÍZENÍ | Y10: 4 MÍSTNÍ KANCELÁŘ | Z10: 5 NÁKUP SLUŽEB | AA10: 6 STAVEBNÍ ÚPRAVY | AB10: 7 PŘÍMÁ PODPORA | AC10: 8 NÁKLADY VYPLÝVAJÍCÍ PŘÍMO ZE SMLOUVY/ROZHODNUTÍ | AD10: 9 PŘÍMÉ ZPŮSOBILÉ VÝDAJE CELKEM | AE10: 10 NEPŘÍMÉ NÁKLADY | AF10: 11 CELKOVÉ ZPŮSOBILÉ VÝDAJE | AG10: 12 CELKOVÉ VÝDAJE PROJEKTU | AH10: 13 KŘÍŽOVÉ FINANCOVÁNÍ | AL10: 9 PŘÍMÉ ZPŮSOBILÉ VÝDAJE CELKEM
A11: 1.1.2.1 | B11: Platy | C11: ano | D11: ne | E11: ano | G11: 1.1.2.1 Platy | H11: ano | J11: Rozpočet projektu (OPVK) - verze9 | L11: ="7.1*" -> 7.1* | M11: ="11.1" -> 11.1 | N11: ="11.2" -> 11.2 | O11: ="3.8.1" -> 3.8.1 | P11: ="3.8.2" -> 3.8.2 | Q11: 6.2 | R11: 5 | S11: ="13 " -> 13 | T11: 7 PŘÍMA PODPORA | U11: 15 KŘÍŽOVÉ FINANCOVÁNÍ | V11: 1 OSOBNÍ NÁKLADY | W11: 2 SLUŽEBNÍ CESTY ZAHRANIČNÍ | X11: 3 ZAŘÍZENÍ | Y11: 4 MÍSTNÍ KANCELÁŘ | Z11: 5 NÁKUP SLUŽEB | AA11: 6 STAVEBNÍ ÚPRAVY | AB11: 7 PŘÍMA PODPORA | AC11: 8 NÁKLADY VYPLÝVAJÍCÍ PŘÍMO ZE SMLOUVY/ROZHODNUTÍ | AD11: 9 PŘÍMÉ ZPŮSOBILÉ VÝDAJE CELKEM | AE11: 10 NEPŘÍMÉ NÁKLADY | AF11: 11 CELKOVÉ ZPŮSOBILÉ VÝDAJE | AG11: 12 CELKOVÉ NEZPŮSOBILÉ VÝDAJE | AH11: 13 CELKOVÉ VÝDAJE PROJEKTU | AI11: 14 PŘÍJMY PROJEKTU CELKEM | AJ11: 15 KŘÍŽOVÉ FINANCOVÁNÍ | AL11: 9 PŘÍMÉ ZPŮSOBILÉ VÝDAJE CELKEM
A12: 1.1.2.2 | B12: Odměny z dohod (DPČ) | C12: ano | D12: ne | E12: ano | G12: 1.1.2.2 Odměny z dohod (DPČ) | H12: ano
A13: 1.1.2.3 | B13: Odměny z dohod (DPP) | C13: ano | D13: ne | E13: ano | G13: 1.1.2.3 Odměny z dohod (DPP) | H13: ano
A14: 1.1.2.4 | B14: Autorské honoráře | C14: ano | D14: ne | E14: ano | G14: 1.1.2.4 Autorské honoráře | H14: ano
A15: 1.4 | B15: FKSP | C15: ano | D15: ne | E15: ano | G15: 1.4 FKSP | H15: ano
A16: 1.2 | B16: Sociální pojištění | C16: ano | D16: ne | E16: ano | G16: 1.2 Sociální pojištění | H16: ano
A17: 1.3 | B17: Zdravotní pojištění | C17: ano | D17: ne | E17: ano | G17: 1.3 Zdravotní pojištění | H17: ano
A18: 1.5 | B18: Jiné povinné údaje (Zákonné pojištění zaměstnanců) | C18: ano | D18: ne | E18: ano | G18: 1.5 Jiné povinné údaje (Zákonné pojištění zaměstnanců) | H18: ano
A19: 2 | B19: CESTOVNÍ NÁHRADY (dle § 152-189 zákona 262/2006 Sb.) | C19: Ne | D19: ano | E19: Ne | G19: 2 CESTOVNÍ NÁHRADY (dle § 152-189 zákona 262/2006 Sb.) | H19: Ne
A20: 2.1 | B20: Služební cesty tuzemské | C20: Ne | D20: ano | E20: Ne | G20: 2.1 Služební cesty tuzemské | H20: Ne
A21: 2.1.1 | B21: Cestovné (vč. provozu služebního auta) | C21: ano | D21: ne | E21: ano | G21: 2.1.1 Cestovné (vč. provozu služebního auta) | H21: ano
A22: 2.1.2 | B22: Ubytování | C22: ano | D22: ne | E22: ano | G22: 2.1.2 Ubytování | H22: ano
A23: 2.1.3 | B23: Stravné | C23: ano | D23: ne | E23: ano | G23: 2.1.3 Stravné | H23: ano
A24: 2.1.4 | B24: Nutné vedlejší výdaje | C24: ano | D24: ne | E24: ano | G24: 2.1.4 Nutné vedlejší výdaje | H24: ano
A25: 2.2 | B25: Služební cesty zahraniční | C25: Ne | D25: ano | E25: Ne | G25: 2.2 Služební cesty zahraniční | H25: Ne
A26: 2.2.1 | B26: Cestovné (vč. provozu služebního auta) | C26: ano | D26: ne | E26: ano | G26: 2.2.1 Cestovné (vč. provozu služebního auta) | H26: ano
A27: 2.2.2 | B27: Ubytování | C27: ano | D27: ne | E27: ano | G27: 2.2.2 Ubytování | H27: ano
A28: 2.2.3 | B28: Stravné | C28: ano | D28: ne | E28: ano | G28: 2.2.3 Stravné | H28: ano
A29: 2.2.4 | B29: Ostatní | C29: ano | D29: ne | E29: ano | G29: 2.2.4 Ostatní | H29: ano
A30: 3 | B30: ZAŘÍZENÍ | C30: Ne | D30: ano | E30: Ne | G30: 3 ZAŘÍZENÍ | H30: Ne
A31: 3.1 | B31: Nehmotný majetek do 60 tis. Kč | C31: Ne | D31: ano | E31: Ne | G31: 3.1 Nehmotný majetek do 60 tis. Kč | H31: Ne
A32: 3.1.1 | B32: Software | C32: ano | D32: ne | E32: ano | G32: 3.1.1 Software | H32: ano
A33: 3.1.2 | B33: Ostatní | C33: ano | D33: ne | E33: ano | G33: 3.1.2 Ostatní | H33: ano
A34: 3.2 | B34: Dlouhodobý nehmotný majetek | C34: Ne | D34: ano | E34: Ne | G34: 3.2 Dlouhodobý nehmotný majetek | H34: Ne
A35: 3.2.1 | B35: Software | C35: ano | D35: ne | E35: ano | G35: 3.2.1 Software | H35: ano
A36: 3.2.2 | B36: Ostatní | C36: ano | D36: ne | E36: ano | G36: 3.2.2 Ostatní | H36: ano
A37: 3.3 | B37: Drobný hmotný majetek | C37: ano | D37: ne | E37: ano | G37: 3.3 Drobný hmotný majetek | H37: ano
A38: 3.4 | B38: Použitý drobný hmotný majetek | C38: ano | D38: ne | E38: ano | G38: 3.4 Použitý drobný hmotný majetek | H38: ano
A39: 3.5 | B39: Nájem zařízení, leasing | C39: ano | D39: ne | E39: ano | G39: 3.5 Nájem zařízení, leasing | H39: ano
A40: 3.6 | B40: Odpisy | C40: ano | D40: ne | E40: ano | G40: 3.6 Odpisy | H40: ano
A41: 3.7 | B41: Výdaje na opravy a údržbu | C41: ano | D41: ne | E41: ano | G41: 3.7 Výdaje na opravy a údržbu | H41: ano
A42: 3.8 | B42: Křížové financování | C42: Ne | D42: ano | E42: Ne | G42: 3.8 Křížové financování | H42: Ne
A43: 3.8.1 | B43: Investiční část | C43: ano | D43: ne | E43: ano | G43: 3.8.1 Investiční část | H43: ano
A44: 3.8.2 | B44: Neinvestiční část | C44: ano | D44: ne | E44: ano | G44: 3.8.2 Neinvestiční část | H44: ano
A45: 4 | B45: MÍSTNÍ KANCELÁŘ | C45: Ne | D45: ano | E45: Ne | G45: 4 MÍSTNÍ KANCELÁŘ | H45: Ne
A46: 4.1 | B46: Spotřební zboží a provozní materiál | C46: ano | D46: ne | E46: ano | G46: 4.1 Spotřební zboží a provozní materiál | H46: ano
A47: 4.2 | B47: Telefon, poštovné, fax | C47: ano | D47: ne | E47: ano | G47: 4.2 Telefon, poštovné, fax | H47: ano
A48: 4.3 | B48: Spotřeba vody, paliv a energie | C48: ano | D48: ne | E48: ano | G48: 4.3 Spotřeba vody, paliv a energie | H48: ano
A49: 5 | B49: NÁKUP SLUŽEB | C49: Ne | D49: ano | E49: Ne | G49: 5 NÁKUP SLUŽEB | H49: Ne
A50: 5.1 | B50: Publikace/školící materiály/manuály | C50: ano | D50: ne | E50: ano | G50: 5.1 Publikace/školící materiály/manuály | H50: ano
A51: 5.2 | B51: Odborné služby/Studie a výzkum | C51: ano | D51: ne | E51: ano | G51: 5.2 Odborné služby/Studie a výzkum | H51: ano
A52: 5.3 | B52: Náklady na konference/kurzy | C52: ano | D52: ne | E52: ano | G52: 5.3 Náklady na konference/kurzy | H52: ano
A53: 5.4 | B53: Podpora účastníků (stravné, ubytování?) | C53: ano | D53: ne | E53: ano | G53: 5.4 Podpora účastníků (stravné, ubytování?) | H53: ano
A54: 5.5 | B54: Jiné náklady | C54: ano | D54: ne | E54: ano | G54: 5.5 Jiné náklady | H54: ano
A55: 6 | B55: STAVEBNÍ ÚPRAVY | C55: Ne | D55: ano | E55: Ne | G55: 6 STAVEBNÍ ÚPRAVY | H55: Ne
A56: 6.1 | B56: Drobné stavební úpravy | C56: ano | D56: ne | E56: ano | G56: 6.1 Drobné stavební úpravy | H56: ano
A57: 6.2 | B57: Stavební úpravy v rámci křížového financování | C57: ano | D57: ne | E57: ano | G57: 6.2 Stavební úpravy v rámci křížového financování | H57: ano
A58: 7 | B58: PŘÍMA PODPORA | C58: Ne | D58: ano | E58: Ne | G58: 7 PŘÍMA PODPORA | H58: Ne
A59: 7.1 | B59: Mzdové příspěvky | C59: ano | D59: ne | E59: ano | G59: 7.1 Mzdové příspěvky | H59: ano
A60: 7.2 | B60: Cestovné, ubytování a stravné | C60: ano | D60: ne | E60: ano | G60: 7.2 Cestovné, ubytování a stravné | H60: ano
A61: 7.3 | B61: Doprovodné aktivity | C61: ano | D61: ne | E61: ano | G61: 7.3 Doprovodné aktivity | H61: ano
A62: 8 | B62: NÁKLADY VYPLÝVAJÍCÍ PŘÍMO ZE SMLOUVY/ROZHODNUTÍ | C62: Ne | D62: ano | E62: Ne | G62: 8 NÁKLADY VYPLÝVAJÍCÍ PŘÍMO ZE SMLOUVY/ROZHODNUTÍ | H62: Ne
A63: 8.1 | B63: Audit | C63: ano | D63: ne | E63: ano | G63: 8.1 Audit | H63: ano
A64: 8.2 | B64: Publicita | C64: ano | D64: ne | E64: ano | G64: 8.2 Publicita | H64: ano
A65: 8.3 | B65: Ostatní | C65: ano | D65: ne | E65: ano | G65: 8.3 Ostatní | H65: ano
A66: 9 | B66: CELKOVÉ ZPŮSOBILÉ VÝDAJE | C66: Ne | D66: ano | E66: Ne | G66: 9 CELKOVÉ ZPŮSOBILÉ VÝDAJE | H66: Ne
A67: 9.1 | B67: Celkové způsobilé výdaje investiční | C67: ano | D67: ne | E67: ano | G67: =A67&" "&B67 -> 9.1 Celkové způsobilé výdaje investiční | H67: Ne
A68: 9.2 | B68: Celkové způsobilé výdaje neinvestiční | C68: ano | D68: ne | E68: ano | G68: 9.2 Celkové způsobilé výdaje neinvestiční | H68: Ne
A69: 10 | B69: CELKOVÉ NEZPŮSOBILÉ VÝDAJE | C69: Ne | D69: ano | E69: Ne | G69: 10 CELKOVÉ NEZPŮSOBILÉ VÝDAJE | H69: =E69 -> Ne
A70: 10.1 | B70: Celkové nezpůsobilé výdaje investiční | C70: ano | D70: ne | E70: ano | G70: 10.1 Celkové nezpůsobilé výdaje investiční | H70: Ne
A71: 10.2 | B71: Celkové nezpůsobilé výdaje neinvestiční | C71: ano | D71: ne | E71: ano | G71: 10.2 Celkové nezpůsobilé výdaje neinvestiční | H71: Ne
A72: 11 | B72: CELKOVÉ VÝDAJE PROJEKTU | C72: Ne | D72: ano | E72: Ne | G72: 11 CELKOVÉ VÝDAJE PROJEKTU | H72: Ne
A73: 11.1 | B73: Celkem investiční výdaje | C73: ano | D73: ne | E73: ano | G73: 11.1 Celkem investiční výdaje | H73: Ne
A74: 11.2 | B74: Celkem neinvestiční výdaje | C74: ano | D74: ne | E74: ano | G74: 11.2 Celkem neinvestiční výdaje | H74: Ne
A75: 12 | B75: PŘÍJMY PROJEKTU CELKEM | C75: Ne | D75: ano | E75: Ne | G75: 12 PŘÍJMY PROJEKTU CELKEM | H75: Ne
A76: 12.1 | B76: Příjmy projektu připadající na způsobilé výdaje | C76: ano | D76: ne | E76: ano | G76: 12.1 Příjmy projektu připadající na způsobilé výdaje | H76: Ne
A77: 12.2 | B77: Příjmy projektu připadající na nezpůsobilé výdaje | C77: ano | D77: ne | E77: ano | G77: 12.2 Příjmy projektu připadající na nezpůsobilé výdaje | H77: Ne
A78: 13 | B78: ZDROJE PŘIPADAJÍCÍ NA NEZPŮSOBILÉ VÝDAJE | C78: Ne | D78: ano | E78: Ne | G78: 13 ZDROJE PŘIPADAJÍCÍ NA NEZPŮSOBILÉ VÝDAJE | H78: Ne
A79: 14 | B79: KŘÍŽOVÉ FINANCOVÁNÍ | C79: Ne | D79: ano | E79: Ne | G79: 14 KŘÍŽOVÉ FINANCOVÁNÍ | H79: Ne
A81: Rozpočet projektu (OPVK) - verze 4 | G81: Rozpočet projektu (OPVK) - verze 4
A82: 1 | B82: OSOBNÍ NÁKLADY | C82: Ne | D82: ano | E82: Ne | G82: 1 OSOBNÍ NÁKLADY | H82: Ne
A83: 1.1 | B83: Platy, odměny z dohod a pojistné | C83: Ne | D83: ano | E83: Ne | G83: 1.1 Platy, odměny z dohod a pojistné | H83: Ne
A84: 1.1.1 | B84: Náklady na odborné zaměstnance, v tom | C84: Ne | D84: ano | E84: Ne | G84: 1.1.1 Náklady na odborné zaměstnance, v tom | H84: Ne
A85: 1.1.1.1 | B85: Platy | C85: ano | D85: ne | E85: ano | G85: 1.1.1.1 Platy | H85: ano
A86: 1.1.1.2 | B86: Odměny z dohod (DPČ) | C86: ano | D86: ne | E86: ano | G86: 1.1.1.2 Odměny z dohod (DPČ) | H86: ano
A87: 1.1.1.3 | B87: Odměny z dohod (DPP) | C87: ano | D87: ne | E87: ano | G87: 1.1.1.3 Odměny z dohod (DPP) | H87: ano
A88: 1.1.1.4 | B88: Autorské honoráře | C88: ano | D88: ne | E88: ano | G88: 1.1.1.4 Autorské honoráře | H88: ano
A89: 1.1.2 | B89: Náklady na administrativní zaměstnance, v tom | C89: Ne | D89: ano | E89: Ne | G89: 1.1.2 Náklady na administrativní zaměstnance, v tom | H89: Ne
A90: 1.1.2.1 | B90: Platy | C90: ano | D90: ne | E90: ano | G90: 1.1.2.1 Platy | H90: ano
A91: 1.1.2.2 | B91: Odměny z dohod (DPČ) | C91: ano | D91: ne | E91: ano | G91: 1.1.2.2 Odměny z dohod (DPČ) | H91: ano
A92: 1.1.2.3 | B92: Odměny z dohod (DPP) | C92: ano | D92: ne | E92: ano | G92: 1.1.2.3 Odměny z dohod (DPP) | H92: ano
A93: 1.1.2.4 | B93: Autorské honoráře | C93: ano | D93: ne | E93: ano | G93: 1.1.2.4 Autorské honoráře | H93: ano
A94: 1.2 | B94: Sociální pojištění | C94: ano | D94: ne | E94: ano | G94: 1.2 Sociální pojištění | H94: ano
A95: 1.3 | B95: Zdravotní pojištění | C95: ano | D95: ne | E95: ano | G95: 1.3 Zdravotní pojištění | H95: ano
A96: 1.4 | B96: FKSP | C96: ano | D96: ne | E96: ano | G96: 1.4 FKSP | H96: ano
A97: 1.5 | B97: Jiné povinné údaje (Zákonné pojištění zaměstnanců) | C97: ano | D97: ne | E97: ano | G97: 1.5 Jiné povinné údaje (Zákonné pojištění zaměstnanců) | H97: ano
A98: 2 | B98: CESTOVNÍ NÁHRADY (dle § 152-189 zákona 262/2006 Sb.) | C98: Ne | D98: ano | E98: Ne | G98: 2 CESTOVNÍ NÁHRADY (dle § 152-189 zákona 262/2006 Sb.) | H98: Ne
A99: 2.1 | B99: Služební cesty tuzemské | C99: Ne | D99: ano | E99: Ne | G99: 2.1 Služební cesty tuzemské | H99: Ne
A100: 2.1.1 | B100: Cestovné (vč. provozu služebního auta) | C100: ano | D100: ne | E100: ano | G100: 2.1.1 Cestovné (vč. provozu služebního auta) | H100: ano
A101: 2.1.2 | B101: Ubytování | C101: ano | D101: ne | E101: ano | G101: 2.1.2 Ubytování | H101: ano
A102: 2.1.3 | B102: Stravné | C102: ano | D102: ne | E102: ano | G102: 2.1.3 Stravné | H102: ano
A103: 2.1.4 | B103: Nutné vedlejší výdaje | C103: ano | D103: ne | E103: ano | G103: 2.1.4 Nutné vedlejší výdaje | H103: ano
A104: 2.2 | B104: Služební cesty zahraniční | C104: Ne | D104: ano | E104: Ne | G104: 2.2 Služební cesty zahraniční | H104: Ne
A105: 2.2.1 | B105: Cestovné (vč. provozu služebního auta) | C105: ano | D105: ne | E105: ano | G105: 2.2.1 Cestovné (vč. provozu služebního auta) | H105: ano
A106: 2.2.2 | B106: Ubytování | C106: ano | D106: ne | E106: ano | G106: 2.2.2 Ubytování | H106: ano
A107: 2.2.3 | B107: Stravné | C107: ano | D107: ne | E107: ano | G107: 2.2.3 Stravné | H107: ano
A108: 2.2.4 | B108: Ostatní | C108: ano | D108: ne | E108: ano | G108: 2.2.4 Ostatní | H108: ano
A109: 3 | B109: ZAŘÍZENÍ | C109: Ne | D109: ano | E109: Ne | G109: 3 ZAŘÍZENÍ | H109: Ne
A110: 3.1 | B110: Nehmotný majetek do 60 tis. Kč | C110: Ne | D110: ano | E110: Ne | G110: 3.1 Nehmotný majetek do 60 tis. Kč | H110: Ne
A111: 3.1.1 | B111: Software | C111: ano | D111: ne | E111: ano | G111: 3.1.1 Software | H111: ano
A112: 3.1.2 | B112: Ostatní | C112: ano | D112: ne | E112: ano | G112: 3.1.2 Ostatní | H112: ano
A113: 3.2 | B113: Dlouhodobý nehmotný majetek | C113: Ne | D113: ano | E113: Ne | G113: 3.2 Dlouhodobý nehmotný majetek | H113: Ne
A114: 3.2.1 | B114: Software | C114: ano | D114: ne | E114: ano | G114: 3.2.1 Software | H114: ano
A115: 3.2.2 | B115: Ostatní | C115: ano | D115: ne | E115: ano | G115: 3.2.2 Ostatní | H115: ano
A116: 3.3 | B116: Drobný hmotný majetek | C116: ano | D116: ne | E116: ano | G116: 3.3 Drobný hmotný majetek | H116: ano
A117: 3.4 | B117: Použitý drobný hmotný majetek | C117: ano | D117: ne | E117: ano | G117: 3.4 Použitý drobný hmotný majetek | H117: ano
A118: 3.5 | B118: Nájem zařízení, leasing | C118: ano | D118: ne | E118: ano | G118: 3.5 Nájem zařízení, leasing | H118: ano
A119: 3.6 | B119: Odpisy | C119: ano | D119: ne | E119: ano | G119: 3.6 Odpisy | H119: ano
A120: 3.7 | B120: Výdaje na opravy a údržbu | C120: ano | D120: ne | E120: ano | G120: 3.7 Výdaje na opravy a údržbu | H120: ano
A121: 3.8 | B121: Křížové financování | C121: Ne | D121: ano | E121: Ne | G121: 3.8 Křížové financování | H121: Ne
A122: 3.8.1 | B122: Investiční část | C122: ano | D122: ne | E122: ano | G122: 3.8.1 Investiční část | H122: ano
A123: 3.8.2 | B123: Neinvestiční část | C123: ano | D123: ne | E123: ano | G123: 3.8.2 Neinvestiční část | H123: ano
A124: 4 | B124: MÍSTNÍ KANCELÁŘ | C124: Ne | D124: ano | E124: Ne | G124: 4 MÍSTNÍ KANCELÁŘ | H124: Ne
A125: 4.1 | B125: Spotřební zboží a provozní materiál | C125: ano | D125: ne | E125: ano | G125: 4.1 Spotřební zboží a provozní materiál | H125: ano
A126: 4.2 | B126: Telefon, poštovné, fax | C126: ano | D126: ne | E126: ano | G126: 4.2 Telefon, poštovné, fax | H126: ano
A127: 4.3 | B127: Spotřeba vody, paliv a energie | C127: ano | D127: ne | E127: ano | G127: 4.3 Spotřeba vody, paliv a energie | H127: ano
A128: 4.4 | B128: Nájemné | C128: ano | D128: ne | E128: ano | G128: 4.4 Nájemné | H128: ano
A129: 5 | B129: NÁKUP SLUŽEB | C129: Ne | D129: ano | E129: Ne | G129: 5 NÁKUP SLUŽEB | H129: Ne
A130: 5.1 | B130: Publikace/školící materiály/manuály | C130: ano | D130: ne | E130: ano | G130: 5.1 Publikace/školící materiály/manuály | H130: ano
A131: 5.2 | B131: Odborné služby/Studie a výzkum | C131: ano | D131: ne | E131: ano | G131: =A131&" "&B131 -> 5.2 Odborné služby/Studie a výzkum | H131: ano
A132: 5.3 | B132: Náklady na konference/kurzy | C132: ano | D132: ne | E132: ano | G132: 5.3 Náklady na konference/kurzy | H132: =E132 -> ano
A133: 5.4 | B133: Podpora účastníků (stravné, ubytování?) | C133: ano | D133: ne | E133: ano | G133: 5.4 Podpora účastníků (stravné, ubytování?) | H133: ano
A134: 5.5 | B134: Jiné náklady | C134: ano | D134: ne | E134: ano | G134: 5.5 Jiné náklady | H134: ano
A135: 6 | B135: STAVEBNÍ ÚPRAVY | C135: Ne | D135: ano | E135: Ne | G135: 6 STAVEBNÍ ÚPRAVY | H135: Ne
A136: 6.1 | B136: Drobné stavební úpravy | C136: ano | D136: ne | E136: ano | G136: 6.1 Drobné stavební úpravy | H136: ano
A137: 6.2 | B137: Stavební úpravy v rámci křížového financování | C137: ano | D137: ne | E137: ano | G137: 6.2 Stavební úpravy v rámci křížového financování | H137: ano
A138: 7 | B138: PŘÍMA PODPORA | C138: Ne | D138: ano | E138: Ne | G138: 7 PŘÍMA PODPORA | H138: Ne
A139: 7.1 | B139: Mzdové příspěvky | C139: ano | D139: ne | E139: ano | G139: 7.1 Mzdové příspěvky | H139: ano
A140: 7.2 | B140: Cestovné, ubytování a stravné | C140: ano | D140: ne | E140: ano | G140: 7.2 Cestovné, ubytování a stravné | H140: ano
A141: 7.3 | B141: Doprovodné aktivity | C141: ano | D141: ne | E141: ano | G141: 7.3 Doprovodné aktivity | H141: ano
A142: 8 | B142: NÁKLADY VYPLÝVAJÍCÍ PŘÍMO ZE SMLOUVY/ROZHODNUTÍ | C142: Ne | D142: ano | E142: Ne | G142: 8 NÁKLADY VYPLÝVAJÍCÍ PŘÍMO ZE SMLOUVY/ROZHODNUTÍ | H142: Ne
A143: 8.1 | B143: Audit | C143: ano | D143: ne | E143: ano | G143: 8.1 Audit | H143: ano
A144: 8.2 | B144: Publicita | C144: ano | D144: ne | E144: ano | G144: 8.2 Publicita | H144: ano
A145: 8.3 | B145: Ostatní | C145: ano | D145: ne | E145: ano | G145: 8.3 Ostatní | H145: ano
A146: 9 | B146: CELKOVÉ ZPŮSOBILÉ VÝDAJE | C146: Ne | D146: ano | E146: Ne | G146: 9 CELKOVÉ ZPŮSOBILÉ VÝDAJE | H146: Ne
A147: 9.1 | B147: Celkové způsobilé výdaje investiční | C147: ano | D147: ne | E147: ano | G147: 9.1 Celkové způsobilé výdaje investiční | H147: Ne
A148: 9.2 | B148: Celkové způsobilé výdaje neinvestiční | C148: ano | D148: ne | E148: ano | G148: 9.2 Celkové způsobilé výdaje neinvestiční | H148: Ne
A149: 10 | B149: CELKOVÉ NEZPŮSOBILÉ VÝDAJE | C149: Ne | D149: ano | E149: Ne | G149: 10 CELKOVÉ NEZPŮSOBILÉ VÝDAJE | H149: Ne
A150: 10.1 | B150: Celkové nezpůsobilé výdaje investiční | C150: ano | D150: ne | E150: ano | G150: 10.1 Celkové nezpůsobilé výdaje investiční | H150: Ne
A151: 10.2 | B151: Celkové nezpůsobilé výdaje neinvestiční | C151: ano | D151: ne | E151: ano | G151: 10.2 Celkové nezpůsobilé výdaje neinvestiční | H151: Ne
A152: 11 | B152: CELKOVÉ VÝDAJE PROJEKTU | C152: Ne | D152: ano | E152: Ne | G152: 11 CELKOVÉ VÝDAJE PROJEKTU | H152: Ne
A153: 11.1 | B153: Celkem investiční výdaje | C153: ano | D153: ne | E153: ano | G153: 11.1 Celkem investiční výdaje | H153: Ne
A154: 11.2 | B154: Celkem neinvestiční výdaje | C154: ano | D154: ne | E154: ano | G154: 11.2 Celkem neinvestiční výdaje | H154: Ne
A155: 12 | B155: PŘÍJMY PROJEKTU CELKEM | C155: Ne | D155: ano | E155: Ne | G155: 12 PŘÍJMY PROJEKTU CELKEM | H155: Ne
A156: 12.1 | B156: Příjmy projektu připadající na způsobilé výdaje | C156: ano | D156: ne | E156: ano | G156: 12.1 Příjmy projektu připadající na způsobilé výdaje | H156: Ne
A157: 12.2 | B157: Příjmy projektu připadající na nezpůsobilé výdaje | C157: ano | D157: ne | E157: ano | G157: 12.2 Příjmy projektu připadající na nezpůsobilé výdaje | H157: Ne
A158: 13 | B158: ZDROJE PŘIPADAJÍCÍ NA NEZPŮSOBILÉ VÝDAJE | C158: Ne | D158: ano | E158: Ne | G158: 13 ZDROJE PŘIPADAJÍCÍ NA NEZPŮSOBILÉ VÝDAJE | H158: Ne
A159: 14 | B159: KŘÍŽOVÉ FINANCOVÁNÍ | C159: Ne | D159: ano | E159: Ne | G159: 14 KŘÍŽOVÉ FINANCOVÁNÍ | H159: Ne
A161: Rozpočet projektu (OPVK) - verze 5 | G161: Rozpočet projektu (OPVK) - verze 5
A162: 1 | B162: OSOBNÍ NÁKLADY | C162: Ne | D162: ano | E162: Ne | G162: 1 OSOBNÍ NÁKLADY | H162: Ne
A163: 1.1 | B163: Platy, odměny z dohod a pojistné | C163: Ne | D163: ano | E163: Ne | G163: 1.1 Platy, odměny z dohod a pojistné | H163: Ne
A164: 1.1.1 | B164: Výdaje na odborné zaměstnance, v tom | C164: Ne | D164: ano | E164: Ne | G164: 1.1.1 Výdaje na odborné zaměstnance, v tom | H164: Ne
A165: 1.1.1.1 | B165: Platy | C165: ano | D165: ne | E165: ano | G165: 1.1.1.1 Platy | H165: ano
A166: 1.1.1.2 | B166: Odměny z dohod (DPČ) | C166: ano | D166: ne | E166: ano | G166: 1.1.1.2 Odměny z dohod (DPČ) | H166: ano
A167: 1.1.1.3 | B167: Odměny z dohod (DPP) | C167: ano | D167: ne | E167: ano | G167: 1.1.1.3 Odměny z dohod (DPP) | H167: ano
A168: 1.1.1.4 | B168: Autorské honoráře | C168: ano | D168: ne | E168: ano | G168: 1.1.1.4 Autorské honoráře | H168: ano
A169: 1.1.2 | B169: Výdaje na administrativní zaměstnance, v tom | C169: Ne | D169: ano | E169: Ne | G169: 1.1.2 Výdaje na administrativní zaměstnance, v tom | H169: Ne
A170: 1.1.2.1 | B170: Platy | C170: ano | D170: ne | E170: ano | G170: 1.1.2.1 Platy | H170: ano
A171: 1.1.2.2 | B171: Odměny z dohod (DPČ) | C171: ano | D171: ne | E171: ano | G171: 1.1.2.2 Odměny z dohod (DPČ) | H171: ano
A172: 1.1.2.3 | B172: Odměny z dohod (DPP) | C172: ano | D172: ne | E172: ano | G172: 1.1.2.3 Odměny z dohod (DPP) | H172: ano
A173: 1.1.2.4 | B173: Autorské honoráře | C173: ano | D173: ne | E173: ano | G173: 1.1.2.4 Autorské honoráře | H173: ano
A174: 1.2 | B174: Sociální pojištění | C174: ano | D174: ne | E174: ano | G174: 1.2 Sociální pojištění | H174: ano
A175: 1.3 | B175: Zdravotní pojištění | C175: ano | D175: ne | E175: ano | G175: 1.3 Zdravotní pojištění | H175: ano
A176: 1.4 | B176: FKSP | C176: ano | D176: ne | E176: ano | G176: 1.4 FKSP | H176: ano
A177: 1.5 | B177: Jiné povinné výdaje (Zákonné pojištění zaměstnanců) | C177: ano | D177: ne | E177: ano | G177: 1.5 Jiné povinné výdaje (Zákonné pojištění zaměstnanců) | H177: ano
A178: 2 | B178: CESTOVNÍ NÁHRADY (dle § 152-189 zákona 262/2006 Sb.) | C178: Ne | D178: ano | E178: Ne | G178: 2 CESTOVNÍ NÁHRADY (dle § 152-189 zákona 262/2006 Sb.) | H178: Ne
A179: 2.1 | B179: Služební cesty tuzemské | C179: Ne | D179: ano | E179: Ne | G179: 2.1 Služební cesty tuzemské | H179: Ne
A180: 2.1.1 | B180: Cestovné (vč. provozu služebního auta) | C180: ano | D180: ne | E180: ano | G180: 2.1.1 Cestovné (vč. provozu služebního auta) | H180: ano
A181: 2.1.2 | B181: Ubytování | C181: ano | D181: ne | E181: ano | G181: 2.1.2 Ubytování | H181: ano
A182: 2.1.3 | B182: Stravné | C182: ano | D182: ne | E182: ano | G182: 2.1.3 Stravné | H182: ano
A183: 2.1.4 | B183: Nutné vedlejší výdaje | C183: ano | D183: ne | E183: ano | G183: 2.1.4 Nutné vedlejší výdaje | H183: ano
A184: 2.2 | B184: Služební cesty zahraniční | C184: Ne | D184: ano | E184: Ne | G184: 2.2 Služební cesty zahraniční | H184: Ne
A185: 2.2.1 | B185: Cestovné (vč. provozu služebního auta) | C185: ano | D185: ne | E185: ano | G185: 2.2.1 Cestovné (vč. provozu služebního auta) | H185: ano
A186: 2.2.2 | B186: Ubytování | C186: ano | D186: ne | E186: ano | G186: 2.2.2 Ubytování | H186: ano
A187: 2.2.3 | B187: Stravné | C187: ano | D187: ne | E187: ano | G187: 2.2.3 Stravné | H187: ano
A188: 2.2.4 | B188: Ostatní | C188: ano | D188: ne | E188: ano | G188: 2.2.4 Ostatní | H188: ano
A189: 3 | B189: ZAŘÍZENÍ | C189: Ne | D189: ano | E189: Ne | G189: 3 ZAŘÍZENÍ | H189: Ne
A190: 3.1 | B190: Nehmotný majetek do 60 tis. Kč | C190: Ne | D190: ano | E190: Ne | G190: 3.1 Nehmotný majetek do 60 tis. Kč | H190: Ne
A191: 3.1.1 | B191: Software | C191: ano | D191: ne | E191: ano | G191: 3.1.1 Software | H191: ano
A192: 3.1.2 | B192: Ostatní | C192: ano | D192: ne | E192: ano | G192: 3.1.2 Ostatní | H192: ano
A193: 3.2 | B193: Dlouhodobý nehmotný majetek | C193: Ne | D193: ano | E193: Ne | G193: 3.2 Dlouhodobý nehmotný majetek | H193: Ne
A194: 3.2.1 | B194: Software | C194: ano | D194: ne | E194: ano | G194: 3.2.1 Software | H194: ano
A195: 3.2.2 | B195: Ostatní | C195: ano | D195: ne | E195: ano | G195: =A195&" "&B195 -> 3.2.2 Ostatní | H195: ano
A196: 3.3 | B196: Drobný hmotný majetek | C196: ano | D196: ne | E196: ano | G196: 3.3 Drobný hmotný majetek | H196: =E196 -> ano
A197: 3.4 | B197: Použitý drobný hmotný majetek | C197: ano | D197: ne | E197: ano | G197: 3.4 Použitý drobný hmotný majetek | H197: ano
A198: 3.5 | B198: Nájem zařízení, leasing | C198: ano | D198: ne | E198: ano | G198: 3.5 Nájem zařízení, leasing | H198: ano
A199: 3.6 | B199: Odpisy | C199: ano | D199: ne | E199: ano | G199: 3.6 Odpisy | H199: ano
A200: 3.7 | B200: Výdaje na opravy a údržbu | C200: ano | D200: ne | E200: ano | G200: 3.7 Výdaje na opravy a údržbu | H200: ano
A201: 3.8 | B201: Křížové financování | C201: Ne | D201: ano | E201: Ne | G201: 3.8 Křížové financování | H201: Ne
A202: 3.8.1 | B202: Investiční část | C202: ano | D202: ne | E202: ano | G202: 3.8.1 Investiční část | H202: ano
... 546 more rows
